 Batch Number,Vendor Name,Invoice Number, Line,Line Amount,Account Description,Issue Date ,Total Amount Paid
139740,GOOD ENERGY===================,003016060F,1,932.10,ELECTRICITY,02/07/12,932.10
260612C,REGENT OFFICE CARE LTD========,0036682,1,157.50,STRATEGIC (CYCLICAL),02/07/12,"5,670.00"
260612C,REGENT OFFICE CARE LTD========,0036682,2,157.50,STRATEGIC (CYCLICAL),02/07/12,
260612C,REGENT OFFICE CARE LTD========,0036682,3,189.00,STRATEGIC (CYCLICAL),02/07/12,
260612C,REGENT OFFICE CARE LTD========,0036682,4,189.00,STRATEGIC (CYCLICAL),02/07/12,
260612C,REGENT OFFICE CARE LTD========,0036682,5,189.00,STRATEGIC (CYCLICAL),02/07/12,
260612C,REGENT OFFICE CARE LTD========,0036682,6,157.50,STRATEGIC (CYCLICAL),02/07/12,
260612C,REGENT OFFICE CARE LTD========,0036682,7,189.00,STRATEGIC (CYCLICAL),02/07/12,
260612C,REGENT OFFICE CARE LTD========,0036682,8,189.00,STRATEGIC (CYCLICAL),02/07/12,
260612C,REGENT OFFICE CARE LTD========,0036682,9,189.00,STRATEGIC (CYCLICAL),02/07/12,
260612C,REGENT OFFICE CARE LTD========,0036682,10,189.00,STRATEGIC (CYCLICAL),02/07/12,
260612C,REGENT OFFICE CARE LTD========,0036682,11,189.00,STRATEGIC (CYCLICAL),02/07/12,
260612C,REGENT OFFICE CARE LTD========,0036682,12,157.50,STRATEGIC (CYCLICAL),02/07/12,
260612C,REGENT OFFICE CARE LTD========,0036682,13,157.50,STRATEGIC (CYCLICAL),02/07/12,
260612C,REGENT OFFICE CARE LTD========,0036682,14,157.50,STRATEGIC (CYCLICAL),02/07/12,
260612C,REGENT OFFICE CARE LTD========,0036682,15,189.00,STRATEGIC (CYCLICAL),02/07/12,
260612C,REGENT OFFICE CARE LTD========,0036682,16,189.00,STRATEGIC (CYCLICAL),02/07/12,
260612C,REGENT OFFICE CARE LTD========,0036682,17,157.50,STRATEGIC (CYCLICAL),02/07/12,
260612C,REGENT OFFICE CARE LTD========,0036682,18,157.50,STRATEGIC (CYCLICAL),02/07/12,
260612C,REGENT OFFICE CARE LTD========,0036682,19,189.00,STRATEGIC (CYCLICAL),02/07/12,
260612C,REGENT OFFICE CARE LTD========,0036682,20,157.50,STRATEGIC (CYCLICAL),02/07/12,
260612C,REGENT OFFICE CARE LTD========,0036682,21,189.00,STRATEGIC (CYCLICAL),02/07/12,
260612C,REGENT OFFICE CARE LTD========,0036682,22,157.50,STRATEGIC (CYCLICAL),02/07/12,
260612C,REGENT OFFICE CARE LTD========,0036682,23,157.50,STRATEGIC (CYCLICAL),02/07/12,
260612C,REGENT OFFICE CARE LTD========,0036682,24,157.50,STRATEGIC (CYCLICAL),02/07/12,
260612C,REGENT OFFICE CARE LTD========,0036682,25,189.00,STRATEGIC (CYCLICAL),02/07/12,
260612C,REGENT OFFICE CARE LTD========,0036682,26,189.00,STRATEGIC (CYCLICAL),02/07/12,
260612C,REGENT OFFICE CARE LTD========,0036682,27,157.50,STRATEGIC (CYCLICAL),02/07/12,
260612C,REGENT OFFICE CARE LTD========,0036682,28,157.50,STRATEGIC (CYCLICAL),02/07/12,
260612C,REGENT OFFICE CARE LTD========,0036682,29,157.50,STRATEGIC (CYCLICAL),02/07/12,
260612C,REGENT OFFICE CARE LTD========,0036682,30,157.50,STRATEGIC (CYCLICAL),02/07/12,
260612C,REGENT OFFICE CARE LTD========,0036682,31,189.00,STRATEGIC (CYCLICAL),02/07/12,
260612C,REGENT OFFICE CARE LTD========,0036682,32,157.50,STRATEGIC (CYCLICAL),02/07/12,
260612C,REGENT OFFICE CARE LTD========,0036682,33,157.50,STRATEGIC (CYCLICAL),02/07/12,
260612C,AEROFLEX INTERNATIONAL========,00708927,1,224.00,RADIO,02/07/12,592.26
260612C,AEROFLEX INTERNATIONAL========,00708927,2,368.26,RADIO,02/07/12,
139732,CORONA ENERGY RETAIL 4 LTD,07230393,1,658.45,GAS,02/07/12,658.45
139732,CORONA ENERGY RETAIL 4 LTD,07231692,1,861.12,GAS,02/07/12,861.12
139732,CORONA ENERGY RETAIL 4 LTD,07231697,1,895.10,GAS,02/07/12,895.10
139732,CORONA ENERGY RETAIL 4 LTD,07233406,1,937.18,GAS,02/07/12,937.18
139732,CORONA ENERGY RETAIL 4 LTD,07233600,1,696.32,GAS,02/07/12,696.32
139732,CORONA ENERGY RETAIL 4 LTD,07237637,1,663.81,GAS,02/07/12,663.81
139732,CORONA ENERGY RETAIL 4 LTD,07238486,1,"1,677.08",GAS,02/07/12,"1,677.08"
139732,CORONA ENERGY RETAIL 4 LTD,07242057,1,796.51,GAS,02/07/12,796.51
139732,CORONA ENERGY RETAIL 4 LTD,07242719,1,505.78,GAS,02/07/12,505.78
260612C,BT GLOBAL SERVICES============,0790070537,1,"1,205.54",TELECOMMUNICATIONS,02/07/12,"1,205.54"
270612C,ACORN BUSINESS SUPPLIES LTD,1/I0019386,1,520.00,OFFICE EQUIPMENT,02/07/12,520.00
210612E,HAYS ACCOUNTANCY & FINANCE====,1002212790,1,696.00,FRS STAFF AGENCY,02/07/12,696.00
210612E,HAYS ACCOUNTANCY & FINANCE====,1002212791,1,696.00,FRS STAFF AGENCY,02/07/12,696.00
270612C,*SPRUE SAFETY PRODUCTS LTD====,1033941,1,"1,769.60",FIRE DETECTORS,02/07/12,"1,769.60"
270612C,*SPRUE SAFETY PRODUCTS LTD====,1033945,1,"1,769.60",FIRE DETECTORS,02/07/12,"1,769.60"
270612C,*SPRUE SAFETY PRODUCTS LTD====,1033947,1,"1,011.20",FIRE DETECTORS,02/07/12,"1,011.20"
270612C,*SPRUE SAFETY PRODUCTS LTD====,1033948,1,"1,011.20",FIRE DETECTORS,02/07/12,"1,011.20"
270612C,*SPRUE SAFETY PRODUCTS LTD====,1033949,1,"1,769.60",FIRE DETECTORS,02/07/12,"1,769.60"
270612C,*SPRUE SAFETY PRODUCTS LTD====,1033950,1,"1,011.20",FIRE DETECTORS,02/07/12,"1,011.20"
270612C,*SPRUE SAFETY PRODUCTS LTD====,1033951,1,"1,011.20",FIRE DETECTORS,02/07/12,"1,011.20"
270612C,*SPRUE SAFETY PRODUCTS LTD====,1033952,1,"1,769.60",FIRE DETECTORS,02/07/12,"1,769.60"
270612C,*SPRUE SAFETY PRODUCTS LTD====,1033953,1,"3,160.00",FIRE DETECTORS,02/07/12,"3,160.00"
270612C,*SPRUE SAFETY PRODUCTS LTD====,1033958,1,"1,011.20",FIRE DETECTORS,02/07/12,"1,011.20"
270612C,*SPRUE SAFETY PRODUCTS LTD====,1033959,1,"1,769.60",FIRE DETECTORS,02/07/12,"1,769.60"
270612C,*SPRUE SAFETY PRODUCTS LTD====,1033962,1,"1,011.20",FIRE DETECTORS,02/07/12,"1,011.20"
270612C,*SPRUE SAFETY PRODUCTS LTD====,1033963,1,"1,011.20",FIRE DETECTORS,02/07/12,"1,011.20"
270612C,*SPRUE SAFETY PRODUCTS LTD====,1033967,1,"1,769.60",FIRE DETECTORS,02/07/12,"1,769.60"
260612C,BT GLOBAL SERVICES============,1120910,1,541.66,TELECOMMUNICATIONS,02/07/12,541.66
260612C,SURREY BLIND & CURTAIN CO=====,13309,1,604.00,FIXTURES & FITTINGS,02/07/12,604.00
260612C,SURREY BLIND & CURTAIN CO=====,13310,1,38.00,FIXTURES & FITTINGS,02/07/12,"1,068.00"
260612C,SURREY BLIND & CURTAIN CO=====,13310,2,76.00,FIXTURES & FITTINGS,02/07/12,
260612C,SURREY BLIND & CURTAIN CO=====,13310,3,524.00,FIXTURES & FITTINGS,02/07/12,
260612C,SURREY BLIND & CURTAIN CO=====,13310,4,430.00,FIXTURES & FITTINGS,02/07/12,
270612G,UK TAPES LTD==================,143979,1,"1,233.70",GENERAL CONSUMABLES,02/07/12,"1,233.70"
280612G,AEGIS ENGINEERING LTD,15507,1,"15,283.00",OPERATIONAL EQUIP-PURCHASE,02/07/12,"18,584.50"
280612G,AEGIS ENGINEERING LTD,15507,2,"2,991.50",OPERATIONAL EQUIP-PURCHASE,02/07/12,
280612G,AEGIS ENGINEERING LTD,15507,3,310.00,OPERATIONAL EQUIP-PURCHASE,02/07/12,
280612G,AEGIS ENGINEERING LTD,15545,1,"1,972.00",OPERATIONAL EQUIP-PURCHASE,02/07/12,"2,398.00"
280612G,AEGIS ENGINEERING LTD,15545,2,386.00,OPERATIONAL EQUIP-PURCHASE,02/07/12,
280612G,AEGIS ENGINEERING LTD,15545,3,40.00,OPERATIONAL EQUIP-PURCHASE,02/07/12,
260612C,CENTRAL LEARNING SOLUTIONS====,1746,1,950.00,TRAINING & CONFERENCES,02/07/12,950.00
180612E,STORM TECHNOLOGIES============,186005,1,571.04,PROFESSIONAL FESS - MISC,02/07/12,634.04
180612E,STORM TECHNOLOGIES============,186005,2,63.00,PROFESSIONAL FESS - MISC,02/07/12,
270612C,ASBESTOS FIRST================,21401/R11673,1,"4,177.50",DEVELOPMENT EXP - CONTRACTORS,02/07/12,"4,177.50"
270612C,ASBESTOS FIRST================,21415/R11674,1,"4,377.50",DEVELOPMENT EXP - CONTRACTORS,02/07/12,"4,377.50"
260612C,ARKAS LIMITED=================,22338,1,169.85,STRATEGIC (CYCLICAL),02/07/12,733.10
260612C,ARKAS LIMITED=================,22338,2,401.75,STRATEGIC (CYCLICAL),02/07/12,
260612C,ARKAS LIMITED=================,22338,3,161.50,STRATEGIC (CYCLICAL),02/07/12,
260612C,ARKAS LIMITED=================,22339,1,207.34,TACTICAL DAY TO DAY,02/07/12,720.34
260612C,ARKAS LIMITED=================,22339,2,161.50,TACTICAL DAY TO DAY,02/07/12,
260612C,ARKAS LIMITED=================,22339,3,190.00,STRATEGIC (CYCLICAL),02/07/12,
260612C,ARKAS LIMITED=================,22339,4,161.50,STRATEGIC (CYCLICAL),02/07/12,
260612C,ARKAS LIMITED=================,22340,1,228.04,STRATEGIC (CYCLICAL),02/07/12,849.14
260612C,ARKAS LIMITED=================,22340,2,255.35,TACTICAL DAY TO DAY,02/07/12,
260612C,ARKAS LIMITED=================,22340,3,190.00,STRATEGIC (CYCLICAL),02/07/12,
260612C,ARKAS LIMITED=================,22340,4,175.75,TACTICAL DAY TO DAY,02/07/12,
260612C,ARKAS LIMITED=================,22341,1,190.00,TACTICAL DAY TO DAY,02/07/12,"1,077.54"
260612C,ARKAS LIMITED=================,22341,2,161.50,STRATEGIC (CYCLICAL),02/07/12,
260612C,ARKAS LIMITED=================,22341,3,507.54,STRATEGIC (CYCLICAL),02/07/12,
260612C,ARKAS LIMITED=================,22341,4,218.50,STRATEGIC (CYCLICAL),02/07/12,
270612C,ARKAS LIMITED=================,22342,1,261.25,STRATEGIC (CYCLICAL),02/07/12,834.13
270612C,ARKAS LIMITED=================,22342,2,235.63,STRATEGIC (CYCLICAL),02/07/12,
270612C,ARKAS LIMITED=================,22342,3,175.75,STRATEGIC (CYCLICAL),02/07/12,
270612C,ARKAS LIMITED=================,22342,4,161.50,STRATEGIC (CYCLICAL),02/07/12,
260612C,ARKAS LIMITED=================,22343,1,322.71,STRATEGIC (CYCLICAL),02/07/12,"1,640.04"
260612C,ARKAS LIMITED=================,22343,2,493.47,STRATEGIC (CYCLICAL),02/07/12,
260612C,ARKAS LIMITED=================,22343,3,420.11,STRATEGIC (CYCLICAL),02/07/12,
260612C,ARKAS LIMITED=================,22343,4,403.75,TACTICAL DAY TO DAY,02/07/12,
260612C,ARKAS LIMITED=================,22344,1,458.83,STRATEGIC (CYCLICAL),02/07/12,"2,425.46"
260612C,ARKAS LIMITED=================,22344,2,"1,236.28",STRATEGIC (CYCLICAL),02/07/12,
260612C,ARKAS LIMITED=================,22344,3,540.35,TACTICAL DAY TO DAY,02/07/12,
260612C,ARKAS LIMITED=================,22344,4,190.00,STRATEGIC (CYCLICAL),02/07/12,
260612C,ARKAS LIMITED=================,22366,1,161.50,STRATEGIC (CYCLICAL),02/07/12,745.75
260612C,ARKAS LIMITED=================,22366,2,218.50,STRATEGIC (CYCLICAL),02/07/12,
260612C,ARKAS LIMITED=================,22366,3,175.75,STRATEGIC (CYCLICAL),02/07/12,
260612C,ARKAS LIMITED=================,22366,4,190.00,STRATEGIC (CYCLICAL),02/07/12,
260612C,ARKAS LIMITED=================,22422,1,"1,368.00",STRATEGIC (CYCLICAL),02/07/12,"1,368.00"
139740,OPHTHALMIC TECHNOLOGIES LTD,31559,1,"2,065.95",MEDICAL EXPENSES,02/07/12,"2,065.95"
270612C,MUSCO LIGHTING EUROPE LTD=====,3373,1,"3,402.00",GENERAL,02/07/12,"3,402.00"
270612C,L B OF MERTON=================,34442568,1,990.00,HFSC - MERTON BOROUGH,02/07/12,"1,140.87"
270612C,L B OF MERTON=================,34442568,2,150.87,HFSC - MERTON BOROUGH,02/07/12,
210612G,RIG EQUIPMENT LTD,417,1,73.25,OPERATIONAL EQUIP-PURCHASE,02/07/12,"1,002.50"
210612G,RIG EQUIPMENT LTD,417,2,293.00,OPERATIONAL EQUIP-PURCHASE,02/07/12,
210612G,RIG EQUIPMENT LTD,417,3,293.00,OPERATIONAL EQUIP-PURCHASE,02/07/12,
210612G,RIG EQUIPMENT LTD,417,4,73.25,OPERATIONAL EQUIP-PURCHASE,02/07/12,
210612G,RIG EQUIPMENT LTD,417,5,270.00,OPERATIONAL EQUIP-PURCHASE,02/07/12,
280612G,SUM TOTAL SYSTEMS UK LTD,4935,1,"1,225.00",MAINTENANCE & SUPPORT,02/07/12,"1,314.50"
280612G,SUM TOTAL SYSTEMS UK LTD,4935,2,89.50,MAINTENANCE & SUPPORT,02/07/12,
139740,LONDON PENSIONS FUND AUTHORITY,5043,1,"85,034.09",LOCAL GOVT PENSION SCHEME PAYM,02/07/12,"85,034.09"
260612C,URS SCOTT WILSON LIMITED,5156518,1,"2,672.63",PROFESSIONAL FEES - MISC,02/07/12,"2,672.63"
139740,THAMES WATER UTILITIES LTD====,5235978145N,1,643.69,WATER & SEWERAGE RATES,02/07/12,643.69
139737,BRITISH GAS BUSINESS==========,555776660,1,504.68,ELECTRICITY,02/07/12,"13,838.82"
139737,BRITISH GAS BUSINESS==========,555776660,2,334.96,ELECTRICITY,02/07/12,
139737,BRITISH GAS BUSINESS==========,555776660,3,493.31,ELECTRICITY,02/07/12,
139737,BRITISH GAS BUSINESS==========,555776660,4,580.96,ELECTRICITY,02/07/12,
139737,BRITISH GAS BUSINESS==========,555776660,5,396.71,ELECTRICITY,02/07/12,
139737,BRITISH GAS BUSINESS==========,555776660,6,483.83,ELECTRICITY,02/07/12,
139737,BRITISH GAS BUSINESS==========,555776660,7,327.89,ELECTRICITY,02/07/12,
139737,BRITISH GAS BUSINESS==========,555776660,8,595.22,ELECTRICITY,02/07/12,
139737,BRITISH GAS BUSINESS==========,555776660,9,334.15,ELECTRICITY,02/07/12,
139737,BRITISH GAS BUSINESS==========,555776660,10,426.83,ELECTRICITY,02/07/12,
139737,BRITISH GAS BUSINESS==========,555776660,11,424.08,ELECTRICITY,02/07/12,
139737,BRITISH GAS BUSINESS==========,555776660,12,611.84,ELECTRICITY,02/07/12,
139737,BRITISH GAS BUSINESS==========,555776660,13,552.40,ELECTRICITY,02/07/12,
139737,BRITISH GAS BUSINESS==========,555776660,14,294.29,ELECTRICITY,02/07/12,
139737,BRITISH GAS BUSINESS==========,555776660,15,199.44,ELECTRICITY,02/07/12,
139737,BRITISH GAS BUSINESS==========,555776660,16,219.35,ELECTRICITY,02/07/12,
139737,BRITISH GAS BUSINESS==========,555776660,17,596.09,ELECTRICITY,02/07/12,
139737,BRITISH GAS BUSINESS==========,555776660,18,63.27,ELECTRICITY,02/07/12,
139737,BRITISH GAS BUSINESS==========,555776660,19,36.79,ELECTRICITY,02/07/12,
139737,BRITISH GAS BUSINESS==========,555776660,20,515.56,ELECTRICITY,02/07/12,
139737,BRITISH GAS BUSINESS==========,555776660,21,48.37,ELECTRICITY,02/07/12,
139737,BRITISH GAS BUSINESS==========,555776660,22,21.46,ELECTRICITY,02/07/12,
139737,BRITISH GAS BUSINESS==========,555776660,23,16.93,ELECTRICITY,02/07/12,
139737,BRITISH GAS BUSINESS==========,555776660,24,"1,127.09",ELECTRICITY,02/07/12,
139737,BRITISH GAS BUSINESS==========,555776660,25,"1,330.92",ELECTRICITY,02/07/12,
139737,BRITISH GAS BUSINESS==========,555776660,26,883.61,ELECTRICITY,02/07/12,
139737,BRITISH GAS BUSINESS==========,555776660,27,389.53,ELECTRICITY,02/07/12,
139737,BRITISH GAS BUSINESS==========,555776660,28,273.24,ELECTRICITY,02/07/12,
139737,BRITISH GAS BUSINESS==========,555776660,29,195.77,ELECTRICITY,02/07/12,
139737,BRITISH GAS BUSINESS==========,555776660,30,356.73,ELECTRICITY,02/07/12,
139737,BRITISH GAS BUSINESS==========,555776660,31,414.21,ELECTRICITY,02/07/12,
139737,BRITISH GAS BUSINESS==========,555776660,32,756.87,ELECTRICITY,02/07/12,
139737,BRITISH GAS BUSINESS==========,555776660,33,32.44,ELECTRICITY,02/07/12,
139735,BRITISH GAS BUSINESS==========,555776661,1,691.33,ELECTRICITY,02/07/12,"14,534.96"
139735,BRITISH GAS BUSINESS==========,555776661,2,29.74,ELECTRICITY,02/07/12,
139735,BRITISH GAS BUSINESS==========,555776661,3,17.20,ELECTRICITY,02/07/12,
139735,BRITISH GAS BUSINESS==========,555776661,4,335.46,ELECTRICITY,02/07/12,
139735,BRITISH GAS BUSINESS==========,555776661,5,455.12,ELECTRICITY,02/07/12,
139735,BRITISH GAS BUSINESS==========,555776661,6,413.20,ELECTRICITY,02/07/12,
139735,BRITISH GAS BUSINESS==========,555776661,7,752.70,ELECTRICITY,02/07/12,
139735,BRITISH GAS BUSINESS==========,555776661,8,17.80,ELECTRICITY,02/07/12,
139735,BRITISH GAS BUSINESS==========,555776661,9,19.72,ELECTRICITY,02/07/12,
139735,BRITISH GAS BUSINESS==========,555776661,10,65.54,ELECTRICITY,02/07/12,
139735,BRITISH GAS BUSINESS==========,555776661,11,758.25,GAS,02/07/12,
139735,BRITISH GAS BUSINESS==========,555776661,12,17.67,ELECTRICITY,02/07/12,
139735,BRITISH GAS BUSINESS==========,555776661,13,363.26,ELECTRICITY,02/07/12,
139735,BRITISH GAS BUSINESS==========,555776661,14,536.27,ELECTRICITY,02/07/12,
139735,BRITISH GAS BUSINESS==========,555776661,15,491.95,ELECTRICITY,02/07/12,
139735,BRITISH GAS BUSINESS==========,555776661,16,"1,778.02",ELECTRICITY,02/07/12,
139735,BRITISH GAS BUSINESS==========,555776661,17,233.10,ELECTRICITY,02/07/12,
139735,BRITISH GAS BUSINESS==========,555776661,18,46.81,ELECTRICITY,02/07/12,
139735,BRITISH GAS BUSINESS==========,555776661,19,267.58,ELECTRICITY,02/07/12,
139735,BRITISH GAS BUSINESS==========,555776661,20,"2,590.49",ELECTRICITY,02/07/12,
139735,BRITISH GAS BUSINESS==========,555776661,21,22.61,ELECTRICITY,02/07/12,
139735,BRITISH GAS BUSINESS==========,555776661,22,713.37,ELECTRICITY,02/07/12,
139735,BRITISH GAS BUSINESS==========,555776661,23,69.92,ELECTRICITY,02/07/12,
139735,BRITISH GAS BUSINESS==========,555776661,24,329.97,ELECTRICITY,02/07/12,
139735,BRITISH GAS BUSINESS==========,555776661,25,240.84,ELECTRICITY,02/07/12,
139735,BRITISH GAS BUSINESS==========,555776661,26,404.79,ELECTRICITY,02/07/12,
139735,BRITISH GAS BUSINESS==========,555776661,27,274.27,ELECTRICITY,02/07/12,
139735,BRITISH GAS BUSINESS==========,555776661,28,534.28,ELECTRICITY,02/07/12,
139735,BRITISH GAS BUSINESS==========,555776661,29,299.97,ELECTRICITY,02/07/12,
139735,BRITISH GAS BUSINESS==========,555776661,30,149.45,ELECTRICITY,02/07/12,
139735,BRITISH GAS BUSINESS==========,555776661,31,424.92,ELECTRICITY,02/07/12,
139735,BRITISH GAS BUSINESS==========,555776661,32,326.01,ELECTRICITY,02/07/12,
139735,BRITISH GAS BUSINESS==========,555776661,33,500.17,ELECTRICITY,02/07/12,
139735,BRITISH GAS BUSINESS==========,555776661,34,363.18,ELECTRICITY,02/07/12,
139736,BRITISH GAS BUSINESS==========,555776662,1,523.60,ELECTRICITY,02/07/12,"15,339.29"
139736,BRITISH GAS BUSINESS==========,555776662,2,573.76,ELECTRICITY,02/07/12,
139736,BRITISH GAS BUSINESS==========,555776662,3,603.74,ELECTRICITY,02/07/12,
139736,BRITISH GAS BUSINESS==========,555776662,4,354.80,ELECTRICITY,02/07/12,
139736,BRITISH GAS BUSINESS==========,555776662,5,23.46,ELECTRICITY,02/07/12,
139736,BRITISH GAS BUSINESS==========,555776662,6,421.42,ELECTRICITY,02/07/12,
139736,BRITISH GAS BUSINESS==========,555776662,7,341.82,ELECTRICITY,02/07/12,
139736,BRITISH GAS BUSINESS==========,555776662,8,33.49,ELECTRICITY,02/07/12,
139736,BRITISH GAS BUSINESS==========,555776662,9,43.34,ELECTRICITY,02/07/12,
139736,BRITISH GAS BUSINESS==========,555776662,10,453.63,ELECTRICITY,02/07/12,
139736,BRITISH GAS BUSINESS==========,555776662,11,51.51,ELECTRICITY,02/07/12,
139736,BRITISH GAS BUSINESS==========,555776662,12,381.05,ELECTRICITY,02/07/12,
139736,BRITISH GAS BUSINESS==========,555776662,13,"1,117.43",ELECTRICITY,02/07/12,
139736,BRITISH GAS BUSINESS==========,555776662,14,645.68,ELECTRICITY,02/07/12,
139736,BRITISH GAS BUSINESS==========,555776662,15,500.87,ELECTRICITY,02/07/12,
139736,BRITISH GAS BUSINESS==========,555776662,16,291.47,ELECTRICITY,02/07/12,
139736,BRITISH GAS BUSINESS==========,555776662,17,"2,031.02",ELECTRICITY,02/07/12,
139736,BRITISH GAS BUSINESS==========,555776662,18,289.85,ELECTRICITY,02/07/12,
139736,BRITISH GAS BUSINESS==========,555776662,19,577.38,ELECTRICITY,02/07/12,
139736,BRITISH GAS BUSINESS==========,555776662,20,247.64,ELECTRICITY,02/07/12,
139736,BRITISH GAS BUSINESS==========,555776662,21,299.30,ELECTRICITY,02/07/12,
139736,BRITISH GAS BUSINESS==========,555776662,22,301.37,ELECTRICITY,02/07/12,
139736,BRITISH GAS BUSINESS==========,555776662,23,447.25,ELECTRICITY,02/07/12,
139736,BRITISH GAS BUSINESS==========,555776662,24,312.73,ELECTRICITY,02/07/12,
139736,BRITISH GAS BUSINESS==========,555776662,25,475.51,ELECTRICITY,02/07/12,
139736,BRITISH GAS BUSINESS==========,555776662,26,242.22,ELECTRICITY,02/07/12,
139736,BRITISH GAS BUSINESS==========,555776662,27,"1,004.30",ELECTRICITY,02/07/12,
139736,BRITISH GAS BUSINESS==========,555776662,28,411.54,ELECTRICITY,02/07/12,
139736,BRITISH GAS BUSINESS==========,555776662,29,533.43,ELECTRICITY,02/07/12,
139736,BRITISH GAS BUSINESS==========,555776662,30,517.82,ELECTRICITY,02/07/12,
139736,BRITISH GAS BUSINESS==========,555776662,31,329.25,ELECTRICITY,02/07/12,
139736,BRITISH GAS BUSINESS==========,555776662,32,630.88,ELECTRICITY,02/07/12,
139736,BRITISH GAS BUSINESS==========,555776662,33,326.73,ELECTRICITY,02/07/12,
139738,BRITISH GAS BUSINESS==========,555776663,1,336.97,ELECTRICITY,02/07/12,"15,447.89"
139738,BRITISH GAS BUSINESS==========,555776663,2,303.76,ELECTRICITY,02/07/12,
139738,BRITISH GAS BUSINESS==========,555776663,3,495.61,ELECTRICITY,02/07/12,
139738,BRITISH GAS BUSINESS==========,555776663,4,388.96,ELECTRICITY,02/07/12,
139738,BRITISH GAS BUSINESS==========,555776663,5,548.74,ELECTRICITY,02/07/12,
139738,BRITISH GAS BUSINESS==========,555776663,6,41.15,ELECTRICITY,02/07/12,
139738,BRITISH GAS BUSINESS==========,555776663,7,27.99,ELECTRICITY,02/07/12,
139738,BRITISH GAS BUSINESS==========,555776663,8,27.74,ELECTRICITY,02/07/12,
139738,BRITISH GAS BUSINESS==========,555776663,9,24.43,ELECTRICITY,02/07/12,
139738,BRITISH GAS BUSINESS==========,555776663,10,445.41,ELECTRICITY,02/07/12,
139738,BRITISH GAS BUSINESS==========,555776663,11,378.64,ELECTRICITY,02/07/12,
139738,BRITISH GAS BUSINESS==========,555776663,12,845.78,ELECTRICITY,02/07/12,
139738,BRITISH GAS BUSINESS==========,555776663,13,318.87,ELECTRICITY,02/07/12,
139738,BRITISH GAS BUSINESS==========,555776663,14,295.07,ELECTRICITY,02/07/12,
139738,BRITISH GAS BUSINESS==========,555776663,15,321.95,ELECTRICITY,02/07/12,
139738,BRITISH GAS BUSINESS==========,555776663,16,265.29,ELECTRICITY,02/07/12,
139738,BRITISH GAS BUSINESS==========,555776663,17,433.81,ELECTRICITY,02/07/12,
139738,BRITISH GAS BUSINESS==========,555776663,18,"2,789.37",ELECTRICITY,02/07/12,
139738,BRITISH GAS BUSINESS==========,555776663,19,661.69,ELECTRICITY,02/07/12,
139738,BRITISH GAS BUSINESS==========,555776663,20,315.16,ELECTRICITY,02/07/12,
139738,BRITISH GAS BUSINESS==========,555776663,21,25.50,ELECTRICITY,02/07/12,
139738,BRITISH GAS BUSINESS==========,555776663,22,340.53,ELECTRICITY,02/07/12,
139738,BRITISH GAS BUSINESS==========,555776663,23,495.24,ELECTRICITY,02/07/12,
139738,BRITISH GAS BUSINESS==========,555776663,24,409.69,ELECTRICITY,02/07/12,
139738,BRITISH GAS BUSINESS==========,555776663,25,637.57,ELECTRICITY,02/07/12,
139738,BRITISH GAS BUSINESS==========,555776663,26,448.49,ELECTRICITY,02/07/12,
139738,BRITISH GAS BUSINESS==========,555776663,27,782.95,ELECTRICITY,02/07/12,
139738,BRITISH GAS BUSINESS==========,555776663,28,439.87,ELECTRICITY,02/07/12,
139738,BRITISH GAS BUSINESS==========,555776663,29,"1,341.90",ELECTRICITY,02/07/12,
139738,BRITISH GAS BUSINESS==========,555776663,30,447.46,ELECTRICITY,02/07/12,
139738,BRITISH GAS BUSINESS==========,555776663,31,265.40,ELECTRICITY,02/07/12,
139738,BRITISH GAS BUSINESS==========,555776663,32,529.26,ELECTRICITY,02/07/12,
139738,BRITISH GAS BUSINESS==========,555776663,33,17.64,ELECTRICITY,02/07/12,
139739,BRITISH GAS BUSINESS==========,555776664,1,40.77,ELECTRICITY,02/07/12,"2,630.64"
139739,BRITISH GAS BUSINESS==========,555776664,2,35.40,ELECTRICITY,02/07/12,
139739,BRITISH GAS BUSINESS==========,555776664,3,421.13,ELECTRICITY,02/07/12,
139739,BRITISH GAS BUSINESS==========,555776664,4,437.43,ELECTRICITY,02/07/12,
139739,BRITISH GAS BUSINESS==========,555776664,5,259.93,ELECTRICITY,02/07/12,
139739,BRITISH GAS BUSINESS==========,555776664,6,439.73,ELECTRICITY,02/07/12,
139739,BRITISH GAS BUSINESS==========,555776664,7,365.43,ELECTRICITY,02/07/12,
139739,BRITISH GAS BUSINESS==========,555776664,8,362.42,ELECTRICITY,02/07/12,
139739,BRITISH GAS BUSINESS==========,555776664,9,252.50,ELECTRICITY,02/07/12,
139739,BRITISH GAS BUSINESS==========,555776664,10,15.90,ELECTRICITY,02/07/12,
270612E,EVENING STANDARD COMPANY LTD==,57425189,1,"1,188.00",ADVERTISING,02/07/12,"1,188.00"
280612G,AUDIT COMMISSION==============,6184248,1,"4,485.02",EXTERNAL AUDIT,02/07/12,"4,485.02"
270612C,TWO SERVICES LTD==============,64683,1,645.50,CATERING EQUIPMENT,02/07/12,"1,397.00"
270612C,TWO SERVICES LTD==============,64683,2,673.50,CATERING EQUIPMENT,02/07/12,
270612C,TWO SERVICES LTD==============,64683,3,78.00,CATERING EQUIPMENT,02/07/12,
260612C,TWO SERVICES LTD==============,65404,1,645.50,CATERING EQUIPMENT,02/07/12,645.50
260612C,TWO SERVICES LTD==============,65405,1,645.50,CATERING EQUIPMENT,02/07/12,645.50
139742,MS JENNIFER THELEN,68724,1,750.00,COUNSELS FEES,02/07/12,750.00
260612C,CANON (UK) LTD===============,770358033,1,"1,380.90",OFFICE EQUIPMENT,02/07/12,"1,380.90"
270612C,CANON (UK) LTD===============,770358043,1,"1,601.41",OFFICE EQUIPMENT,02/07/12,"2,806.90"
270612C,CANON (UK) LTD===============,770358043,2,"1,205.49",OFFICE EQUIPMENT,02/07/12,
701511,STONE ROWE BREWER=============,8127,1,550.00,DOCTORS/MEDICAL FEES,02/07/12,550.00
139740,THAMES WATER UTILITIES LTD====,8800781424F,1,"1,756.55",WATER & SEWERAGE RATES,02/07/12,"1,756.55"
210612C,ASTEC SURVEYS LIMITED=========,ASL512,1,735.00,DEVELOPMENT EXP - CONTRACTORS,02/07/12,735.00
270612E,THAMES WATER UTILITIES LTD====,CBA1207765,1,"1,015.00",CURRENT HYDRANT COSTS,02/07/12,"1,015.00"
210612C,VODAFONE LIMITED==============,EA39379,1,"1,643.00",CELLULAR TELEPHONES,02/07/12,"1,643.00"
280612G,BRISTOL UNIFORMS LTD==========,I092389,1,"3,879.80",OPERATIONAL EQUIP-PURCHASE,02/07/12,"3,879.80"
260612C,RADIOCOMS SYSTEMS LIMITED=====,OP/I007536,1,750.00,RADIO,02/07/12,"1,480.00"
260612C,RADIOCOMS SYSTEMS LIMITED=====,OP/I007536,2,720.00,RADIO,02/07/12,
260612C,RADIOCOMS SYSTEMS LIMITED=====,OP/I007536,3,10.00,RADIO,02/07/12,
270612E,RADIOCOMS SYSTEMS LIMITED=====,OP/I007651,1,"3,322.50",RADIO,02/07/12,"3,322.50"
139756,THOMPSON SOLICITORS===========,8586,1,"13,500.00",CLAIMANT COSTS AGREED,03/07/12,"13,500.00"
139756,THOMPSONS=====================,8660,1,600.00,CLAIMANT COSTS AGREED,03/07/12,600.00
280612C,TURNER & TOWNSEND PROJECT MNGT,000530748,1,"4,045.25",PROFESSIONAL FEES - MISC,05/07/12,"4,045.25"
270612C,GEORGE JONES & SON LTD========,035904,1,659.03,STRATEGIC (NON CYCLICAL),05/07/12,659.03
020712E,*PRINCIPAL CATERING CONSULTNTS,048023,1,"5,083.00",CATERING,05/07/12,"5,083.00"
139744,CORONA ENERGY RETAIL 4 LTD,072344441,1,"1,091.96",GAS,05/07/12,"22,670.14"
139744,CORONA ENERGY RETAIL 4 LTD,072344441,2,7.76,GAS,05/07/12,
139744,CORONA ENERGY RETAIL 4 LTD,072344441,3,289.15,GAS,05/07/12,
139744,CORONA ENERGY RETAIL 4 LTD,072344441,4,"1,040.61",GAS,05/07/12,
139744,CORONA ENERGY RETAIL 4 LTD,072344441,5,600.01,GAS,05/07/12,
139744,CORONA ENERGY RETAIL 4 LTD,072344441,6,505.30,GAS,05/07/12,
139744,CORONA ENERGY RETAIL 4 LTD,072344441,7,768.33,GAS,05/07/12,
139744,CORONA ENERGY RETAIL 4 LTD,072344441,8,288.05,GAS,05/07/12,
139744,CORONA ENERGY RETAIL 4 LTD,072344441,9,550.89,GAS,05/07/12,
139744,CORONA ENERGY RETAIL 4 LTD,072344441,10,"1,379.22",GAS,05/07/12,
139744,CORONA ENERGY RETAIL 4 LTD,072344441,11,712.65,GAS,05/07/12,
139744,CORONA ENERGY RETAIL 4 LTD,072344441,12,383.25,GAS,05/07/12,
139744,CORONA ENERGY RETAIL 4 LTD,072344441,13,706.96,GAS,05/07/12,
139744,CORONA ENERGY RETAIL 4 LTD,072344441,14,372.95,GAS,05/07/12,
139744,CORONA ENERGY RETAIL 4 LTD,072344441,15,"1,175.95",GAS,05/07/12,
139744,CORONA ENERGY RETAIL 4 LTD,072344441,16,394.96,GAS,05/07/12,
139744,CORONA ENERGY RETAIL 4 LTD,072344441,17,181.37,GAS,05/07/12,
139744,CORONA ENERGY RETAIL 4 LTD,072344441,18,200.16,GAS,05/07/12,
139744,CORONA ENERGY RETAIL 4 LTD,072344441,19,185.66,GAS,05/07/12,
139744,CORONA ENERGY RETAIL 4 LTD,072344441,20,"1,208.57",GAS,05/07/12,
139744,CORONA ENERGY RETAIL 4 LTD,072344441,21,716.26,GAS,05/07/12,
139744,CORONA ENERGY RETAIL 4 LTD,072344441,22,666.07,GAS,05/07/12,
139744,CORONA ENERGY RETAIL 4 LTD,072344441,23,572.79,GAS,05/07/12,
139744,CORONA ENERGY RETAIL 4 LTD,072344441,24,"1,195.20",GAS,05/07/12,
139744,CORONA ENERGY RETAIL 4 LTD,072344441,25,"1,982.55",GAS,05/07/12,
139744,CORONA ENERGY RETAIL 4 LTD,072344441,26,176.41,GAS,05/07/12,
139744,CORONA ENERGY RETAIL 4 LTD,072344441,27,979.03,GAS,05/07/12,
139744,CORONA ENERGY RETAIL 4 LTD,072344441,28,629.88,GAS,05/07/12,
139744,CORONA ENERGY RETAIL 4 LTD,072344441,29,456.02,GAS,05/07/12,
139744,CORONA ENERGY RETAIL 4 LTD,072344441,30,"1,230.70",GAS,05/07/12,
139744,CORONA ENERGY RETAIL 4 LTD,072344441,31,931.09,GAS,05/07/12,
139744,CORONA ENERGY RETAIL 4 LTD,072344441,32,"1,090.38",GAS,05/07/12,
139746,CORONA ENERGY RETAIL 4 LTD,072344442,1,64.47,GAS,05/07/12,"24,891.89"
139746,CORONA ENERGY RETAIL 4 LTD,072344442,2,361.44,GAS,05/07/12,
139746,CORONA ENERGY RETAIL 4 LTD,072344442,3,570.00,GAS,05/07/12,
139746,CORONA ENERGY RETAIL 4 LTD,072344442,4,600.65,GAS,05/07/12,
139746,CORONA ENERGY RETAIL 4 LTD,072344442,5,808.80,GAS,05/07/12,
139746,CORONA ENERGY RETAIL 4 LTD,072344442,6,711.27,GAS,05/07/12,
139746,CORONA ENERGY RETAIL 4 LTD,072344442,7,830.70,GAS,05/07/12,
139746,CORONA ENERGY RETAIL 4 LTD,072344442,8,676.33,GAS,05/07/12,
139746,CORONA ENERGY RETAIL 4 LTD,072344442,9,438.46,GAS,05/07/12,
139746,CORONA ENERGY RETAIL 4 LTD,072344442,10,578.85,GAS,05/07/12,
139746,CORONA ENERGY RETAIL 4 LTD,072344442,11,594.36,GAS,05/07/12,
139746,CORONA ENERGY RETAIL 4 LTD,072344442,12,765.67,GAS,05/07/12,
139746,CORONA ENERGY RETAIL 4 LTD,072344442,13,812.76,GAS,05/07/12,
139746,CORONA ENERGY RETAIL 4 LTD,072344442,14,441.30,GAS,05/07/12,
139746,CORONA ENERGY RETAIL 4 LTD,072344442,15,542.61,GAS,05/07/12,
139746,CORONA ENERGY RETAIL 4 LTD,072344442,16,"4,152.66",GAS,05/07/12,
139746,CORONA ENERGY RETAIL 4 LTD,072344442,17,471.20,GAS,05/07/12,
139746,CORONA ENERGY RETAIL 4 LTD,072344442,18,108.12,GAS,05/07/12,
139746,CORONA ENERGY RETAIL 4 LTD,072344442,19,468.76,GAS,05/07/12,
139746,CORONA ENERGY RETAIL 4 LTD,072344442,20,"1,263.86",GAS,05/07/12,
139746,CORONA ENERGY RETAIL 4 LTD,072344442,21,851.10,GAS,05/07/12,
139746,CORONA ENERGY RETAIL 4 LTD,072344442,22,684.67,GAS,05/07/12,
139746,CORONA ENERGY RETAIL 4 LTD,072344442,23,"2,068.71",GAS,05/07/12,
139746,CORONA ENERGY RETAIL 4 LTD,072344442,24,816.20,GAS,05/07/12,
139746,CORONA ENERGY RETAIL 4 LTD,072344442,25,458.61,GAS,05/07/12,
139746,CORONA ENERGY RETAIL 4 LTD,072344442,26,"1,288.06",GAS,05/07/12,
139746,CORONA ENERGY RETAIL 4 LTD,072344442,27,345.50,GAS,05/07/12,
139746,CORONA ENERGY RETAIL 4 LTD,072344442,28,142.93,GAS,05/07/12,
139746,CORONA ENERGY RETAIL 4 LTD,072344442,29,474.71,GAS,05/07/12,
139746,CORONA ENERGY RETAIL 4 LTD,072344442,30,"1,039.61",GAS,05/07/12,
139746,CORONA ENERGY RETAIL 4 LTD,072344442,31,538.38,GAS,05/07/12,
139746,CORONA ENERGY RETAIL 4 LTD,072344442,32,508.24,GAS,05/07/12,
139746,CORONA ENERGY RETAIL 4 LTD,072344442,33,412.90,GAS,05/07/12,
139748,CORONA ENERGY RETAIL 4 LTD,072344443,1,607.87,GAS,05/07/12,"29,927.90"
139748,CORONA ENERGY RETAIL 4 LTD,072344443,2,"1,906.46",GAS,05/07/12,
139748,CORONA ENERGY RETAIL 4 LTD,072344443,3,"3,056.86",GAS,05/07/12,
139748,CORONA ENERGY RETAIL 4 LTD,072344443,4,"2,748.53",GAS,05/07/12,
139748,CORONA ENERGY RETAIL 4 LTD,072344443,5,"2,229.39",GAS,05/07/12,
139748,CORONA ENERGY RETAIL 4 LTD,072344443,6,854.93,GAS,05/07/12,
139748,CORONA ENERGY RETAIL 4 LTD,072344443,7,"1,122.44",GAS,05/07/12,
139748,CORONA ENERGY RETAIL 4 LTD,072344443,8,446.70,GAS,05/07/12,
139748,CORONA ENERGY RETAIL 4 LTD,072344443,9,"1,000.22",GAS,05/07/12,
139748,CORONA ENERGY RETAIL 4 LTD,072344443,10,580.11,GAS,05/07/12,
139748,CORONA ENERGY RETAIL 4 LTD,072344443,11,596.25,GAS,05/07/12,
139748,CORONA ENERGY RETAIL 4 LTD,072344443,12,790.73,GAS,05/07/12,
139748,CORONA ENERGY RETAIL 4 LTD,072344443,13,"1,104.17",GAS,05/07/12,
139748,CORONA ENERGY RETAIL 4 LTD,072344443,14,695.85,GAS,05/07/12,
139748,CORONA ENERGY RETAIL 4 LTD,072344443,15,111.30,GAS,05/07/12,
139748,CORONA ENERGY RETAIL 4 LTD,072344443,16,713.64,GAS,05/07/12,
139748,CORONA ENERGY RETAIL 4 LTD,072344443,17,661.24,GAS,05/07/12,
139748,CORONA ENERGY RETAIL 4 LTD,072344443,18,"2,032.14",GAS,05/07/12,
139748,CORONA ENERGY RETAIL 4 LTD,072344443,19,397.54,GAS,05/07/12,
139748,CORONA ENERGY RETAIL 4 LTD,072344443,20,5.81,GAS,05/07/12,
139748,CORONA ENERGY RETAIL 4 LTD,072344443,21,562.83,GAS,05/07/12,
139748,CORONA ENERGY RETAIL 4 LTD,072344443,22,713.63,GAS,05/07/12,
139748,CORONA ENERGY RETAIL 4 LTD,072344443,23,432.92,GAS,05/07/12,
139748,CORONA ENERGY RETAIL 4 LTD,072344443,24,820.00,GAS,05/07/12,
139748,CORONA ENERGY RETAIL 4 LTD,072344443,25,660.07,GAS,05/07/12,
139748,CORONA ENERGY RETAIL 4 LTD,072344443,26,"1,405.90",GAS,05/07/12,
139748,CORONA ENERGY RETAIL 4 LTD,072344443,27,285.73,GAS,05/07/12,
139748,CORONA ENERGY RETAIL 4 LTD,072344443,28,494.20,GAS,05/07/12,
139748,CORONA ENERGY RETAIL 4 LTD,072344443,29,564.13,GAS,05/07/12,
139748,CORONA ENERGY RETAIL 4 LTD,072344443,30,722.44,GAS,05/07/12,
139748,CORONA ENERGY RETAIL 4 LTD,072344443,31,662.41,GAS,05/07/12,
139748,CORONA ENERGY RETAIL 4 LTD,072344443,32,941.46,GAS,05/07/12,
139747,CORONA ENERGY RETAIL 4 LTD,072344444,1,319.24,GAS,05/07/12,"5,807.85"
139747,CORONA ENERGY RETAIL 4 LTD,072344444,2,964.95,GAS,05/07/12,
139747,CORONA ENERGY RETAIL 4 LTD,072344444,3,615.28,GAS,05/07/12,
139747,CORONA ENERGY RETAIL 4 LTD,072344444,4,673.16,GAS,05/07/12,
139747,CORONA ENERGY RETAIL 4 LTD,072344444,5,809.88,GAS,05/07/12,
139747,CORONA ENERGY RETAIL 4 LTD,072344444,6,655.11,GAS,05/07/12,
139747,CORONA ENERGY RETAIL 4 LTD,072344444,7,900.86,GAS,05/07/12,
139747,CORONA ENERGY RETAIL 4 LTD,072344444,8,869.37,GAS,05/07/12,
139749,CORONA ENERGY RETAIL 4 LTD,072455551,1,686.68,GAS,05/07/12,"17,384.78"
139749,CORONA ENERGY RETAIL 4 LTD,072455551,2,7.22,GAS,05/07/12,
139749,CORONA ENERGY RETAIL 4 LTD,072455551,3,229.21,GAS,05/07/12,
139749,CORONA ENERGY RETAIL 4 LTD,072455551,4,827.24,GAS,05/07/12,
139749,CORONA ENERGY RETAIL 4 LTD,072455551,5,438.24,GAS,05/07/12,
139749,CORONA ENERGY RETAIL 4 LTD,072455551,6,305.77,GAS,05/07/12,
139749,CORONA ENERGY RETAIL 4 LTD,072455551,7,653.54,GAS,05/07/12,
139749,CORONA ENERGY RETAIL 4 LTD,072455551,8,118.08,GAS,05/07/12,
139749,CORONA ENERGY RETAIL 4 LTD,072455551,9,491.22,GAS,05/07/12,
139749,CORONA ENERGY RETAIL 4 LTD,072455551,10,961.50,GAS,05/07/12,
139749,CORONA ENERGY RETAIL 4 LTD,072455551,11,634.87,GAS,05/07/12,
139749,CORONA ENERGY RETAIL 4 LTD,072455551,12,336.09,GAS,05/07/12,
139749,CORONA ENERGY RETAIL 4 LTD,072455551,13,689.66,GAS,05/07/12,
139749,CORONA ENERGY RETAIL 4 LTD,072455551,14,276.71,GAS,05/07/12,
139749,CORONA ENERGY RETAIL 4 LTD,072455551,15,"1,681.25",GAS,05/07/12,
139749,CORONA ENERGY RETAIL 4 LTD,072455551,16,"1,249.20",GAS,05/07/12,
139749,CORONA ENERGY RETAIL 4 LTD,072455551,17,300.37,GAS,05/07/12,
139749,CORONA ENERGY RETAIL 4 LTD,072455551,18,612.17,GAS,05/07/12,
139749,CORONA ENERGY RETAIL 4 LTD,072455551,19,266.05,GAS,05/07/12,
139749,CORONA ENERGY RETAIL 4 LTD,072455551,20,128.57,GAS,05/07/12,
139749,CORONA ENERGY RETAIL 4 LTD,072455551,21,134.48,GAS,05/07/12,
139749,CORONA ENERGY RETAIL 4 LTD,072455551,22,621.38,GAS,05/07/12,
139749,CORONA ENERGY RETAIL 4 LTD,072455551,23,731.82,GAS,05/07/12,
139749,CORONA ENERGY RETAIL 4 LTD,072455551,24,524.51,GAS,05/07/12,
139749,CORONA ENERGY RETAIL 4 LTD,072455551,25,414.60,GAS,05/07/12,
139749,CORONA ENERGY RETAIL 4 LTD,072455551,26,436.02,GAS,05/07/12,
139749,CORONA ENERGY RETAIL 4 LTD,072455551,27,835.52,GAS,05/07/12,
139749,CORONA ENERGY RETAIL 4 LTD,072455551,28,352.80,GAS,05/07/12,
139749,CORONA ENERGY RETAIL 4 LTD,072455551,29,613.21,GAS,05/07/12,
139749,CORONA ENERGY RETAIL 4 LTD,072455551,30,456.93,GAS,05/07/12,
139749,CORONA ENERGY RETAIL 4 LTD,072455551,31,341.36,GAS,05/07/12,
139749,CORONA ENERGY RETAIL 4 LTD,072455551,32,"1,028.51",GAS,05/07/12,
139750,CORONA ENERGY RETAIL 4 LTD,072455552,1,46.78,GAS,05/07/12,"17,016.10"
139750,CORONA ENERGY RETAIL 4 LTD,072455552,2,238.97,GAS,05/07/12,
139750,CORONA ENERGY RETAIL 4 LTD,072455552,3,412.60,GAS,05/07/12,
139750,CORONA ENERGY RETAIL 4 LTD,072455552,4,274.58,GAS,05/07/12,
139750,CORONA ENERGY RETAIL 4 LTD,072455552,5,595.45,GAS,05/07/12,
139750,CORONA ENERGY RETAIL 4 LTD,072455552,6,416.27,GAS,05/07/12,
139750,CORONA ENERGY RETAIL 4 LTD,072455552,7,600.75,GAS,05/07/12,
139750,CORONA ENERGY RETAIL 4 LTD,072455552,8,215.80,GAS,05/07/12,
139750,CORONA ENERGY RETAIL 4 LTD,072455552,9,384.75,GAS,05/07/12,
139750,CORONA ENERGY RETAIL 4 LTD,072455552,10,369.10,GAS,05/07/12,
139750,CORONA ENERGY RETAIL 4 LTD,072455552,11,471.78,GAS,05/07/12,
139750,CORONA ENERGY RETAIL 4 LTD,072455552,12,620.35,GAS,05/07/12,
139750,CORONA ENERGY RETAIL 4 LTD,072455552,13,584.40,GAS,05/07/12,
139750,CORONA ENERGY RETAIL 4 LTD,072455552,14,380.37,GAS,05/07/12,
139750,CORONA ENERGY RETAIL 4 LTD,072455552,15,398.06,GAS,05/07/12,
139750,CORONA ENERGY RETAIL 4 LTD,072455552,16,"3,710.92",GAS,05/07/12,
139750,CORONA ENERGY RETAIL 4 LTD,072455552,17,369.73,GAS,05/07/12,
139750,CORONA ENERGY RETAIL 4 LTD,072455552,18,79.52,GAS,05/07/12,
139750,CORONA ENERGY RETAIL 4 LTD,072455552,19,321.43,GAS,05/07/12,
139750,CORONA ENERGY RETAIL 4 LTD,072455552,20,"1,092.13",GAS,05/07/12,
139750,CORONA ENERGY RETAIL 4 LTD,072455552,21,438.73,GAS,05/07/12,
139750,CORONA ENERGY RETAIL 4 LTD,072455552,22,520.26,GAS,05/07/12,
139750,CORONA ENERGY RETAIL 4 LTD,072455552,23,846.16,GAS,05/07/12,
139750,CORONA ENERGY RETAIL 4 LTD,072455552,24,339.57,GAS,05/07/12,
139750,CORONA ENERGY RETAIL 4 LTD,072455552,25,725.95,GAS,05/07/12,
139750,CORONA ENERGY RETAIL 4 LTD,072455552,26,277.42,GAS,05/07/12,
139750,CORONA ENERGY RETAIL 4 LTD,072455552,27,99.45,GAS,05/07/12,
139750,CORONA ENERGY RETAIL 4 LTD,072455552,28,330.41,GAS,05/07/12,
139750,CORONA ENERGY RETAIL 4 LTD,072455552,29,862.81,GAS,05/07/12,
139750,CORONA ENERGY RETAIL 4 LTD,072455552,30,348.56,GAS,05/07/12,
139750,CORONA ENERGY RETAIL 4 LTD,072455552,31,354.47,GAS,05/07/12,
139750,CORONA ENERGY RETAIL 4 LTD,072455552,32,288.57,GAS,05/07/12,
139751,CORONA ENERGY RETAIL 4 LTD,072455553,1,382.85,GAS,05/07/12,"16,933.04"
139751,CORONA ENERGY RETAIL 4 LTD,072455553,2,"1,474.98",GAS,05/07/12,
139751,CORONA ENERGY RETAIL 4 LTD,072455553,3,728.29,GAS,05/07/12,
139751,CORONA ENERGY RETAIL 4 LTD,072455553,4,853.49,GAS,05/07/12,
139751,CORONA ENERGY RETAIL 4 LTD,072455553,5,428.84,GAS,05/07/12,
139751,CORONA ENERGY RETAIL 4 LTD,072455553,6,456.51,GAS,05/07/12,
139751,CORONA ENERGY RETAIL 4 LTD,072455553,7,357.54,GAS,05/07/12,
139751,CORONA ENERGY RETAIL 4 LTD,072455553,8,975.38,GAS,05/07/12,
139751,CORONA ENERGY RETAIL 4 LTD,072455553,9,425.24,GAS,05/07/12,
139751,CORONA ENERGY RETAIL 4 LTD,072455553,10,115.01,GAS,05/07/12,
139751,CORONA ENERGY RETAIL 4 LTD,072455553,11,595.65,GAS,05/07/12,
139751,CORONA ENERGY RETAIL 4 LTD,072455553,12,466.52,GAS,05/07/12,
139751,CORONA ENERGY RETAIL 4 LTD,072455553,13,"1,837.09",GAS,05/07/12,
139751,CORONA ENERGY RETAIL 4 LTD,072455553,14,244.26,GAS,05/07/12,
139751,CORONA ENERGY RETAIL 4 LTD,072455553,15,5.27,GAS,05/07/12,
139751,CORONA ENERGY RETAIL 4 LTD,072455553,16,275.73,GAS,05/07/12,
139751,CORONA ENERGY RETAIL 4 LTD,072455553,17,348.19,GAS,05/07/12,
139751,CORONA ENERGY RETAIL 4 LTD,072455553,18,469.22,GAS,05/07/12,
139751,CORONA ENERGY RETAIL 4 LTD,072455553,19,507.15,GAS,05/07/12,
139751,CORONA ENERGY RETAIL 4 LTD,072455553,20,716.09,GAS,05/07/12,
139751,CORONA ENERGY RETAIL 4 LTD,072455553,21,244.20,GAS,05/07/12,
139751,CORONA ENERGY RETAIL 4 LTD,072455553,22,348.87,GAS,05/07/12,
139751,CORONA ENERGY RETAIL 4 LTD,072455553,23,667.43,GAS,05/07/12,
139751,CORONA ENERGY RETAIL 4 LTD,072455553,24,65.69,GAS,05/07/12,
139751,CORONA ENERGY RETAIL 4 LTD,072455553,25,758.40,GAS,05/07/12,
139751,CORONA ENERGY RETAIL 4 LTD,072455553,26,447.44,GAS,05/07/12,
139751,CORONA ENERGY RETAIL 4 LTD,072455553,27,518.82,GAS,05/07/12,
139751,CORONA ENERGY RETAIL 4 LTD,072455553,28,436.58,GAS,05/07/12,
139751,CORONA ENERGY RETAIL 4 LTD,072455553,29,462.83,GAS,05/07/12,
139751,CORONA ENERGY RETAIL 4 LTD,072455553,30,656.06,GAS,05/07/12,
139751,CORONA ENERGY RETAIL 4 LTD,072455553,31,663.42,GAS,05/07/12,
280612E,*SPRUE SAFETY PRODUCTS LTD====,1033960,1,"1,769.60",FIRE DETECTORS,05/07/12,"1,769.60"
030712E,RUTH LEE LTD==================,10346,1,237.00,OPERATIONAL EQUIP-PURCHASE,05/07/12,525.00
030712E,RUTH LEE LTD==================,10346,2,288.00,OPERATIONAL EQUIP-PURCHASE,05/07/12,
800011281,*NPS (SHOES) LTD,10396,1,30.05,CLOTHING,05/07/12,"2,517.45"
800011281,*NPS (SHOES) LTD,10396,2,30.05,CLOTHING,05/07/12,
800011281,*NPS (SHOES) LTD,10396,3,30.05,CLOTHING,05/07/12,
800011281,*NPS (SHOES) LTD,10396,4,30.05,CLOTHING,05/07/12,
800011281,*NPS (SHOES) LTD,10396,5,30.05,CLOTHING,05/07/12,
800011281,*NPS (SHOES) LTD,10396,6,30.05,CLOTHING,05/07/12,
800011281,*NPS (SHOES) LTD,10396,7,30.05,CLOTHING,05/07/12,
800011281,*NPS (SHOES) LTD,10396,8,30.05,CLOTHING,05/07/12,
800011281,*NPS (SHOES) LTD,10396,9,30.05,CLOTHING,05/07/12,
800011281,*NPS (SHOES) LTD,10396,10,30.05,CLOTHING,05/07/12,
800011281,*NPS (SHOES) LTD,10396,11,41.10,CLOTHING,05/07/12,
800011281,*NPS (SHOES) LTD,10396,12,41.10,CLOTHING,05/07/12,
800011281,*NPS (SHOES) LTD,10396,13,41.10,CLOTHING,05/07/12,
800011281,*NPS (SHOES) LTD,10396,14,41.10,CLOTHING,05/07/12,
800011281,*NPS (SHOES) LTD,10396,15,41.10,CLOTHING,05/07/12,
800011281,*NPS (SHOES) LTD,10396,16,41.10,CLOTHING,05/07/12,
800011281,*NPS (SHOES) LTD,10396,17,41.10,CLOTHING,05/07/12,
800011281,*NPS (SHOES) LTD,10396,18,30.05,CLOTHING,05/07/12,
800011281,*NPS (SHOES) LTD,10396,19,30.05,CLOTHING,05/07/12,
800011281,*NPS (SHOES) LTD,10396,20,30.05,CLOTHING,05/07/12,
800011281,*NPS (SHOES) LTD,10396,21,30.05,CLOTHING,05/07/12,
800011281,*NPS (SHOES) LTD,10396,22,30.05,CLOTHING,05/07/12,
800011281,*NPS (SHOES) LTD,10396,23,30.05,CLOTHING,05/07/12,
800011281,*NPS (SHOES) LTD,10396,24,30.05,CLOTHING,05/07/12,
800011281,*NPS (SHOES) LTD,10396,25,30.05,CLOTHING,05/07/12,
800011281,*NPS (SHOES) LTD,10396,26,30.05,CLOTHING,05/07/12,
800011281,*NPS (SHOES) LTD,10396,27,30.05,CLOTHING,05/07/12,
800011281,*NPS (SHOES) LTD,10396,28,30.05,CLOTHING,05/07/12,
800011281,*NPS (SHOES) LTD,10396,29,41.10,CLOTHING,05/07/12,
800011281,*NPS (SHOES) LTD,10396,30,41.10,CLOTHING,05/07/12,
800011281,*NPS (SHOES) LTD,10396,31,41.10,CLOTHING,05/07/12,
800011281,*NPS (SHOES) LTD,10396,32,41.10,CLOTHING,05/07/12,
800011281,*NPS (SHOES) LTD,10396,33,41.10,CLOTHING,05/07/12,
800011281,*NPS (SHOES) LTD,10396,34,41.10,CLOTHING,05/07/12,
800011281,*NPS (SHOES) LTD,10396,35,41.10,CLOTHING,05/07/12,
800011281,*NPS (SHOES) LTD,10396,36,41.10,CLOTHING,05/07/12,
800011281,*NPS (SHOES) LTD,10396,37,41.10,CLOTHING,05/07/12,
800011281,*NPS (SHOES) LTD,10396,38,41.10,CLOTHING,05/07/12,
800011281,*NPS (SHOES) LTD,10396,39,41.10,CLOTHING,05/07/12,
800011281,*NPS (SHOES) LTD,10396,40,41.10,CLOTHING,05/07/12,
800011281,*NPS (SHOES) LTD,10396,41,41.10,CLOTHING,05/07/12,
800011281,*NPS (SHOES) LTD,10396,42,41.10,CLOTHING,05/07/12,
800011281,*NPS (SHOES) LTD,10396,43,41.10,CLOTHING,05/07/12,
800011281,*NPS (SHOES) LTD,10396,44,41.10,CLOTHING,05/07/12,
800011281,*NPS (SHOES) LTD,10396,45,41.10,CLOTHING,05/07/12,
800011281,*NPS (SHOES) LTD,10396,46,41.10,CLOTHING,05/07/12,
800011281,*NPS (SHOES) LTD,10396,47,41.10,CLOTHING,05/07/12,
800011281,*NPS (SHOES) LTD,10396,48,41.10,CLOTHING,05/07/12,
800011281,*NPS (SHOES) LTD,10396,49,41.10,CLOTHING,05/07/12,
800011281,*NPS (SHOES) LTD,10396,50,41.10,CLOTHING,05/07/12,
800011281,*NPS (SHOES) LTD,10396,51,41.10,CLOTHING,05/07/12,
800011281,*NPS (SHOES) LTD,10396,52,41.10,CLOTHING,05/07/12,
800011281,*NPS (SHOES) LTD,10396,53,41.10,CLOTHING,05/07/12,
800011281,*NPS (SHOES) LTD,10396,54,29.45,CLOTHING,05/07/12,
800011281,*NPS (SHOES) LTD,10396,55,29.45,CLOTHING,05/07/12,
800011281,*NPS (SHOES) LTD,10396,56,29.45,CLOTHING,05/07/12,
800011281,*NPS (SHOES) LTD,10396,57,29.45,CLOTHING,05/07/12,
800011281,*NPS (SHOES) LTD,10396,58,29.45,CLOTHING,05/07/12,
800011281,*NPS (SHOES) LTD,10396,59,29.45,CLOTHING,05/07/12,
800011281,*NPS (SHOES) LTD,10396,60,29.45,CLOTHING,05/07/12,
800011281,*NPS (SHOES) LTD,10396,61,29.45,CLOTHING,05/07/12,
800011281,*NPS (SHOES) LTD,10396,62,29.45,CLOTHING,05/07/12,
800011281,*NPS (SHOES) LTD,10396,63,29.45,CLOTHING,05/07/12,
800011281,*NPS (SHOES) LTD,10396,64,29.45,CLOTHING,05/07/12,
800011281,*NPS (SHOES) LTD,10396,65,29.45,CLOTHING,05/07/12,
800011281,*NPS (SHOES) LTD,10396,66,29.45,CLOTHING,05/07/12,
800011281,*NPS (SHOES) LTD,10396,67,29.45,CLOTHING,05/07/12,
800011281,*NPS (SHOES) LTD,10396,68,29.45,CLOTHING,05/07/12,
800011281,*NPS (SHOES) LTD,10396,69,29.45,CLOTHING,05/07/12,
800011281,*NPS (SHOES) LTD,10396,70,29.45,CLOTHING,05/07/12,
800011281,*NPS (SHOES) LTD,10396,71,29.45,CLOTHING,05/07/12,
800011281,*NPS (SHOES) LTD,10396,72,41.10,CLOTHING,05/07/12,
020712G,SQUARE PEG MEDIA LIMITED======,10426,1,990.00,ADVERTISING,05/07/12,990.00
800011280,*NPS (SHOES) LTD,10456,1,30.05,CLOTHING,05/07/12,"1,412.35"
800011280,*NPS (SHOES) LTD,10456,2,30.05,CLOTHING,05/07/12,
800011280,*NPS (SHOES) LTD,10456,3,30.05,CLOTHING,05/07/12,
800011280,*NPS (SHOES) LTD,10456,4,30.05,CLOTHING,05/07/12,
800011280,*NPS (SHOES) LTD,10456,5,30.05,CLOTHING,05/07/12,
800011280,*NPS (SHOES) LTD,10456,6,30.05,CLOTHING,05/07/12,
800011280,*NPS (SHOES) LTD,10456,7,30.05,CLOTHING,05/07/12,
800011280,*NPS (SHOES) LTD,10456,8,30.05,CLOTHING,05/07/12,
800011280,*NPS (SHOES) LTD,10456,9,30.05,CLOTHING,05/07/12,
800011280,*NPS (SHOES) LTD,10456,10,30.05,CLOTHING,05/07/12,
800011280,*NPS (SHOES) LTD,10456,11,30.05,CLOTHING,05/07/12,
800011280,*NPS (SHOES) LTD,10456,12,30.05,CLOTHING,05/07/12,
800011280,*NPS (SHOES) LTD,10456,13,30.05,CLOTHING,05/07/12,
800011280,*NPS (SHOES) LTD,10456,14,30.05,CLOTHING,05/07/12,
800011280,*NPS (SHOES) LTD,10456,15,30.05,CLOTHING,05/07/12,
800011280,*NPS (SHOES) LTD,10456,16,30.05,CLOTHING,05/07/12,
800011280,*NPS (SHOES) LTD,10456,17,30.05,CLOTHING,05/07/12,
800011280,*NPS (SHOES) LTD,10456,18,30.05,CLOTHING,05/07/12,
800011280,*NPS (SHOES) LTD,10456,19,30.05,CLOTHING,05/07/12,
800011280,*NPS (SHOES) LTD,10456,20,30.05,CLOTHING,05/07/12,
800011280,*NPS (SHOES) LTD,10456,21,30.05,CLOTHING,05/07/12,
800011280,*NPS (SHOES) LTD,10456,22,30.05,CLOTHING,05/07/12,
800011280,*NPS (SHOES) LTD,10456,23,30.05,CLOTHING,05/07/12,
800011280,*NPS (SHOES) LTD,10456,24,30.05,CLOTHING,05/07/12,
800011280,*NPS (SHOES) LTD,10456,25,30.05,CLOTHING,05/07/12,
800011280,*NPS (SHOES) LTD,10456,26,30.05,CLOTHING,05/07/12,
800011280,*NPS (SHOES) LTD,10456,27,30.05,CLOTHING,05/07/12,
800011280,*NPS (SHOES) LTD,10456,28,30.05,CLOTHING,05/07/12,
800011280,*NPS (SHOES) LTD,10456,29,30.05,CLOTHING,05/07/12,
800011280,*NPS (SHOES) LTD,10456,30,30.05,CLOTHING,05/07/12,
800011280,*NPS (SHOES) LTD,10456,31,30.05,CLOTHING,05/07/12,
800011280,*NPS (SHOES) LTD,10456,32,30.05,CLOTHING,05/07/12,
800011280,*NPS (SHOES) LTD,10456,33,30.05,CLOTHING,05/07/12,
800011280,*NPS (SHOES) LTD,10456,34,30.05,CLOTHING,05/07/12,
800011280,*NPS (SHOES) LTD,10456,35,30.05,CLOTHING,05/07/12,
800011280,*NPS (SHOES) LTD,10456,36,30.05,CLOTHING,05/07/12,
800011280,*NPS (SHOES) LTD,10456,37,30.05,CLOTHING,05/07/12,
800011280,*NPS (SHOES) LTD,10456,38,30.05,CLOTHING,05/07/12,
800011280,*NPS (SHOES) LTD,10456,39,30.05,CLOTHING,05/07/12,
800011280,*NPS (SHOES) LTD,10456,40,30.05,CLOTHING,05/07/12,
800011280,*NPS (SHOES) LTD,10456,41,30.05,CLOTHING,05/07/12,
800011280,*NPS (SHOES) LTD,10456,42,30.05,CLOTHING,05/07/12,
800011280,*NPS (SHOES) LTD,10456,43,30.05,CLOTHING,05/07/12,
800011280,*NPS (SHOES) LTD,10456,44,30.05,CLOTHING,05/07/12,
800011280,*NPS (SHOES) LTD,10456,45,30.05,CLOTHING,05/07/12,
800011280,*NPS (SHOES) LTD,10456,46,30.05,CLOTHING,05/07/12,
800011280,*NPS (SHOES) LTD,10456,47,30.05,CLOTHING,05/07/12,
800011279,*NPS (SHOES) LTD,10492,1,30.05,CLOTHING,05/07/12,"3,657.20"
800011279,*NPS (SHOES) LTD,10492,2,30.05,CLOTHING,05/07/12,
800011279,*NPS (SHOES) LTD,10492,3,30.05,CLOTHING,05/07/12,
800011279,*NPS (SHOES) LTD,10492,4,30.05,CLOTHING,05/07/12,
800011279,*NPS (SHOES) LTD,10492,5,30.05,CLOTHING,05/07/12,
800011279,*NPS (SHOES) LTD,10492,6,30.05,CLOTHING,05/07/12,
800011279,*NPS (SHOES) LTD,10492,7,30.05,CLOTHING,05/07/12,
800011279,*NPS (SHOES) LTD,10492,8,30.05,CLOTHING,05/07/12,
800011279,*NPS (SHOES) LTD,10492,9,30.05,CLOTHING,05/07/12,
800011279,*NPS (SHOES) LTD,10492,10,29.45,CLOTHING,05/07/12,
800011279,*NPS (SHOES) LTD,10492,11,29.45,CLOTHING,05/07/12,
800011279,*NPS (SHOES) LTD,10492,12,29.45,CLOTHING,05/07/12,
800011279,*NPS (SHOES) LTD,10492,13,29.45,CLOTHING,05/07/12,
800011279,*NPS (SHOES) LTD,10492,14,29.45,CLOTHING,05/07/12,
800011279,*NPS (SHOES) LTD,10492,15,29.45,CLOTHING,05/07/12,
800011279,*NPS (SHOES) LTD,10492,16,29.45,CLOTHING,05/07/12,
800011279,*NPS (SHOES) LTD,10492,17,29.45,CLOTHING,05/07/12,
800011279,*NPS (SHOES) LTD,10492,18,29.45,CLOTHING,05/07/12,
800011279,*NPS (SHOES) LTD,10492,19,29.45,CLOTHING,05/07/12,
800011279,*NPS (SHOES) LTD,10492,20,29.45,CLOTHING,05/07/12,
800011279,*NPS (SHOES) LTD,10492,21,29.45,CLOTHING,05/07/12,
800011279,*NPS (SHOES) LTD,10492,22,29.45,CLOTHING,05/07/12,
800011279,*NPS (SHOES) LTD,10492,23,29.45,CLOTHING,05/07/12,
800011279,*NPS (SHOES) LTD,10492,24,29.45,CLOTHING,05/07/12,
800011279,*NPS (SHOES) LTD,10492,25,29.45,CLOTHING,05/07/12,
800011279,*NPS (SHOES) LTD,10492,26,29.45,CLOTHING,05/07/12,
800011279,*NPS (SHOES) LTD,10492,27,29.45,CLOTHING,05/07/12,
800011279,*NPS (SHOES) LTD,10492,28,29.45,CLOTHING,05/07/12,
800011279,*NPS (SHOES) LTD,10492,29,29.45,CLOTHING,05/07/12,
800011279,*NPS (SHOES) LTD,10492,30,29.45,CLOTHING,05/07/12,
800011279,*NPS (SHOES) LTD,10492,31,29.45,CLOTHING,05/07/12,
800011279,*NPS (SHOES) LTD,10492,32,29.45,CLOTHING,05/07/12,
800011279,*NPS (SHOES) LTD,10492,33,29.45,CLOTHING,05/07/12,
800011279,*NPS (SHOES) LTD,10492,34,29.45,CLOTHING,05/07/12,
800011279,*NPS (SHOES) LTD,10492,35,29.45,CLOTHING,05/07/12,
800011279,*NPS (SHOES) LTD,10492,36,29.45,CLOTHING,05/07/12,
800011279,*NPS (SHOES) LTD,10492,37,29.45,CLOTHING,05/07/12,
800011279,*NPS (SHOES) LTD,10492,38,29.45,CLOTHING,05/07/12,
800011279,*NPS (SHOES) LTD,10492,39,29.45,CLOTHING,05/07/12,
800011279,*NPS (SHOES) LTD,10492,40,29.45,CLOTHING,05/07/12,
800011279,*NPS (SHOES) LTD,10492,41,29.45,CLOTHING,05/07/12,
800011279,*NPS (SHOES) LTD,10492,42,29.45,CLOTHING,05/07/12,
800011279,*NPS (SHOES) LTD,10492,43,29.45,CLOTHING,05/07/12,
800011279,*NPS (SHOES) LTD,10492,44,29.45,CLOTHING,05/07/12,
800011279,*NPS (SHOES) LTD,10492,45,29.45,CLOTHING,05/07/12,
800011279,*NPS (SHOES) LTD,10492,46,29.45,CLOTHING,05/07/12,
800011279,*NPS (SHOES) LTD,10492,47,29.45,CLOTHING,05/07/12,
800011279,*NPS (SHOES) LTD,10492,48,29.45,CLOTHING,05/07/12,
800011279,*NPS (SHOES) LTD,10492,49,29.45,CLOTHING,05/07/12,
800011279,*NPS (SHOES) LTD,10492,50,29.45,CLOTHING,05/07/12,
800011279,*NPS (SHOES) LTD,10492,51,29.45,CLOTHING,05/07/12,
800011279,*NPS (SHOES) LTD,10492,52,29.45,CLOTHING,05/07/12,
800011279,*NPS (SHOES) LTD,10492,53,29.45,CLOTHING,05/07/12,
800011279,*NPS (SHOES) LTD,10492,54,29.45,CLOTHING,05/07/12,
800011279,*NPS (SHOES) LTD,10492,55,29.45,CLOTHING,05/07/12,
800011279,*NPS (SHOES) LTD,10492,56,29.45,CLOTHING,05/07/12,
800011279,*NPS (SHOES) LTD,10492,57,29.45,CLOTHING,05/07/12,
800011279,*NPS (SHOES) LTD,10492,58,29.45,CLOTHING,05/07/12,
800011279,*NPS (SHOES) LTD,10492,59,29.45,CLOTHING,05/07/12,
800011279,*NPS (SHOES) LTD,10492,60,29.45,CLOTHING,05/07/12,
800011279,*NPS (SHOES) LTD,10492,61,29.45,CLOTHING,05/07/12,
800011279,*NPS (SHOES) LTD,10492,62,29.45,CLOTHING,05/07/12,
800011279,*NPS (SHOES) LTD,10492,63,29.45,CLOTHING,05/07/12,
800011279,*NPS (SHOES) LTD,10492,64,29.45,CLOTHING,05/07/12,
800011279,*NPS (SHOES) LTD,10492,65,29.45,CLOTHING,05/07/12,
800011279,*NPS (SHOES) LTD,10492,66,29.45,CLOTHING,05/07/12,
800011279,*NPS (SHOES) LTD,10492,67,29.45,CLOTHING,05/07/12,
800011279,*NPS (SHOES) LTD,10492,68,29.45,CLOTHING,05/07/12,
800011279,*NPS (SHOES) LTD,10492,69,29.45,CLOTHING,05/07/12,
800011279,*NPS (SHOES) LTD,10492,70,29.45,CLOTHING,05/07/12,
800011279,*NPS (SHOES) LTD,10492,71,29.45,CLOTHING,05/07/12,
800011279,*NPS (SHOES) LTD,10492,72,29.45,CLOTHING,05/07/12,
800011279,*NPS (SHOES) LTD,10492,73,29.45,CLOTHING,05/07/12,
800011279,*NPS (SHOES) LTD,10492,74,29.45,CLOTHING,05/07/12,
800011279,*NPS (SHOES) LTD,10492,75,29.45,CLOTHING,05/07/12,
800011279,*NPS (SHOES) LTD,10492,76,29.45,CLOTHING,05/07/12,
800011279,*NPS (SHOES) LTD,10492,77,29.45,CLOTHING,05/07/12,
800011279,*NPS (SHOES) LTD,10492,78,29.45,CLOTHING,05/07/12,
800011279,*NPS (SHOES) LTD,10492,79,29.45,CLOTHING,05/07/12,
800011279,*NPS (SHOES) LTD,10492,80,29.45,CLOTHING,05/07/12,
800011279,*NPS (SHOES) LTD,10492,81,29.45,CLOTHING,05/07/12,
800011279,*NPS (SHOES) LTD,10492,82,29.45,CLOTHING,05/07/12,
800011279,*NPS (SHOES) LTD,10492,83,29.45,CLOTHING,05/07/12,
800011279,*NPS (SHOES) LTD,10492,84,29.45,CLOTHING,05/07/12,
800011279,*NPS (SHOES) LTD,10492,85,29.45,CLOTHING,05/07/12,
800011279,*NPS (SHOES) LTD,10492,86,29.45,CLOTHING,05/07/12,
800011279,*NPS (SHOES) LTD,10492,87,29.45,CLOTHING,05/07/12,
800011279,*NPS (SHOES) LTD,10492,88,29.45,CLOTHING,05/07/12,
800011279,*NPS (SHOES) LTD,10492,89,29.45,CLOTHING,05/07/12,
800011279,*NPS (SHOES) LTD,10492,90,29.45,CLOTHING,05/07/12,
800011279,*NPS (SHOES) LTD,10492,91,29.45,CLOTHING,05/07/12,
800011279,*NPS (SHOES) LTD,10492,92,29.45,CLOTHING,05/07/12,
800011279,*NPS (SHOES) LTD,10492,93,29.45,CLOTHING,05/07/12,
800011279,*NPS (SHOES) LTD,10492,94,29.45,CLOTHING,05/07/12,
800011279,*NPS (SHOES) LTD,10492,95,29.45,CLOTHING,05/07/12,
800011279,*NPS (SHOES) LTD,10492,96,29.45,CLOTHING,05/07/12,
800011279,*NPS (SHOES) LTD,10492,97,29.45,CLOTHING,05/07/12,
800011279,*NPS (SHOES) LTD,10492,98,29.45,CLOTHING,05/07/12,
800011279,*NPS (SHOES) LTD,10492,99,29.45,CLOTHING,05/07/12,
800011279,*NPS (SHOES) LTD,10492,100,29.45,CLOTHING,05/07/12,
800011279,*NPS (SHOES) LTD,10492,101,29.45,CLOTHING,05/07/12,
800011279,*NPS (SHOES) LTD,10492,102,29.45,CLOTHING,05/07/12,
800011279,*NPS (SHOES) LTD,10492,103,29.45,CLOTHING,05/07/12,
800011279,*NPS (SHOES) LTD,10492,104,29.45,CLOTHING,05/07/12,
800011279,*NPS (SHOES) LTD,10492,105,29.45,CLOTHING,05/07/12,
800011279,*NPS (SHOES) LTD,10492,106,29.45,CLOTHING,05/07/12,
800011279,*NPS (SHOES) LTD,10492,107,29.45,CLOTHING,05/07/12,
800011279,*NPS (SHOES) LTD,10492,108,29.45,CLOTHING,05/07/12,
800011279,*NPS (SHOES) LTD,10492,109,29.45,CLOTHING,05/07/12,
800011279,*NPS (SHOES) LTD,10492,110,29.45,CLOTHING,05/07/12,
800011279,*NPS (SHOES) LTD,10492,111,29.45,CLOTHING,05/07/12,
800011279,*NPS (SHOES) LTD,10492,112,29.45,CLOTHING,05/07/12,
800011279,*NPS (SHOES) LTD,10492,113,29.45,CLOTHING,05/07/12,
800011279,*NPS (SHOES) LTD,10492,114,29.45,CLOTHING,05/07/12,
800011279,*NPS (SHOES) LTD,10492,115,29.45,CLOTHING,05/07/12,
800011279,*NPS (SHOES) LTD,10492,116,29.45,CLOTHING,05/07/12,
800011279,*NPS (SHOES) LTD,10492,117,29.45,CLOTHING,05/07/12,
800011279,*NPS (SHOES) LTD,10492,118,29.45,CLOTHING,05/07/12,
800011279,*NPS (SHOES) LTD,10492,119,29.45,CLOTHING,05/07/12,
800011279,*NPS (SHOES) LTD,10492,120,29.45,CLOTHING,05/07/12,
800011279,*NPS (SHOES) LTD,10492,121,29.45,CLOTHING,05/07/12,
800011279,*NPS (SHOES) LTD,10492,122,29.45,CLOTHING,05/07/12,
800011279,*NPS (SHOES) LTD,10492,123,29.45,CLOTHING,05/07/12,
800011279,*NPS (SHOES) LTD,10492,124,29.45,CLOTHING,05/07/12,
030712E,SILVERTHORN ASSOCIATES,12-010,1,750.00,TRAINING & CONFERENCES,05/07/12,"1,500.00"
030712E,SILVERTHORN ASSOCIATES,12-010,2,750.00,TRAINING & CONFERENCES,05/07/12,
139754,BOURNE CONSTRUCTION COMPANY,12/375,1,"1,250.00",STRATEGIC (NON CYCLICAL),05/07/12,"4,230.00"
139754,BOURNE CONSTRUCTION COMPANY,12/375,2,"2,980.00",STRATEGIC (NON CYCLICAL),05/07/12,
139754,BOURNE CONSTRUCTION COMPANY,12/376,1,900.00,STRATEGIC (NON CYCLICAL),05/07/12,"2,390.00"
139754,BOURNE CONSTRUCTION COMPANY,12/376,2,"1,490.00",STRATEGIC (NON CYCLICAL),05/07/12,
270612C,BUREAU VERITAS HS&E LTD=======,12010907,1,"91,578.94",SCIENTIFIC SERVICES,05/07/12,"91,578.94"
210612G,AEGIS ENGINEERING LTD,15562,1,"4,437.09",OPERATIONAL EQUIP-PURCHASE,05/07/12,"5,395.59"
210612G,AEGIS ENGINEERING LTD,15562,2,868.50,OPERATIONAL EQUIP-PURCHASE,05/07/12,
210612G,AEGIS ENGINEERING LTD,15562,3,90.00,OPERATIONAL EQUIP-PURCHASE,05/07/12,
250612E,STORM TECHNOLOGIES============,186510,1,61.84,ACQUISITIONS,05/07/12,"1,261.84"
250612E,STORM TECHNOLOGIES============,186510,2,"1,200.00",ACQUISITIONS,05/07/12,
250612E,STORM TECHNOLOGIES============,186542,1,"2,370.03",ACQUISITIONS,05/07/12,"2,370.03"
250612E,STORM TECHNOLOGIES============,186729,1,"8,573.44",ACQUISITIONS,05/07/12,"8,573.44"
280612C,AUTOGLASS LIMITED=============,19275238,1,"1,000.78",WINDSCREEN & TYRE CHARGES,05/07/12,"1,000.78"
230612C,SAFEGUARD PEST CON. & ENV.LTD,208153,1,180.00,PEST CONTROL,05/07/12,507.00
230612C,SAFEGUARD PEST CON. & ENV.LTD,208153,2,327.00,PEST CONTROL,05/07/12,
290612C,DRAIN CONTROL=================,21582,1,900.00,STRATEGIC (CYCLICAL),05/07/12,900.00
139756,MISS BO-EUN JUNG==============,227831,1,"1,120.00",PROFESSIONAL FEES ENFORCEMENT,05/07/12,"1,120.00"
139756,MISS BO-EUN JUNG==============,229302,1,"1,120.00",PROFESSIONAL FEES ENFORCEMENT,05/07/12,"1,120.00"
139756,MISS BO-EUN JUNG==============,229385,1,980.00,PROFESSIONAL FEES ENFORCEMENT,05/07/12,980.00
800011302,ADECCO UK LIMITED=============,26037952,1,776.30,FRS STAFF AGENCY,05/07/12,776.30
800011305,ADECCO UK LIMITED=============,26037955,1,758.45,FRS STAFF AGENCY,05/07/12,758.45
800011306,ADECCO UK LIMITED=============,26037956,1,576.60,FRS STAFF AGENCY,05/07/12,576.60
800011307,ADECCO UK LIMITED=============,26037957,1,546.70,FRS STAFF AGENCY,05/07/12,546.70
800011308,ADECCO UK LIMITED=============,26037958,1,579.60,FRS STAFF AGENCY,05/07/12,579.60
800011309,ADECCO UK LIMITED=============,26037959,1,"1,018.00",FRS STAFF AGENCY,05/07/12,"1,018.00"
800011310,ADECCO UK LIMITED=============,26037960,1,538.20,FRS STAFF AGENCY,05/07/12,538.20
800011313,ADECCO UK LIMITED=============,26037963,1,698.95,FRS STAFF AGENCY,05/07/12,698.95
800011315,ADECCO UK LIMITED=============,26037965,1,579.60,FRS STAFF AGENCY,05/07/12,579.60
800011316,ADECCO UK LIMITED=============,26037966,1,579.60,FRS STAFF AGENCY,05/07/12,579.60
800011317,ADECCO UK LIMITED=============,26037967,1,501.90,FRS STAFF AGENCY,05/07/12,501.90
800011318,ADECCO UK LIMITED=============,26037968,1,579.60,FRS STAFF AGENCY,05/07/12,579.60
800011320,ADECCO UK LIMITED=============,26037970,1,521.64,FRS STAFF AGENCY,05/07/12,521.64
800011321,ADECCO UK LIMITED=============,26037971,1,"1,426.25",FRS STAFF AGENCY,05/07/12,"1,426.25"
800011322,ADECCO UK LIMITED=============,26037972,1,501.90,FRS STAFF AGENCY,05/07/12,501.90
800011323,ADECCO UK LIMITED=============,26037973,1,579.25,FRS STAFF AGENCY,05/07/12,579.25
800011325,ADECCO UK LIMITED=============,26037975,1,501.90,FRS STAFF AGENCY,05/07/12,501.90
800011327,ADECCO UK LIMITED=============,26037977,1,776.30,FRS STAFF AGENCY,05/07/12,776.30
800011331,ADECCO UK LIMITED=============,26037981,1,501.90,FRS STAFF AGENCY,05/07/12,501.90
800011332,ADECCO UK LIMITED=============,26037982,1,693.70,FRS STAFF AGENCY,05/07/12,693.70
800011335,ADECCO UK LIMITED=============,26037986,1,693.70,FRS STAFF AGENCY,05/07/12,693.70
800011336,ADECCO UK LIMITED=============,26042481,1,"1,291.43",FRS STAFF AGENCY,05/07/12,"1,291.43"
800011337,ADECCO UK LIMITED=============,26042482,1,"1,320.34",FRS STAFF AGENCY,05/07/12,"1,320.34"
800011338,ADECCO UK LIMITED=============,26042483,1,"1,233.60",FRS STAFF AGENCY,05/07/12,"1,233.60"
800011339,ADECCO UK LIMITED=============,26042484,1,"1,744.39",FRS STAFF AGENCY,05/07/12,"1,744.39"
800011340,ADECCO UK LIMITED=============,26042485,1,896.51,FRS STAFF AGENCY,05/07/12,896.51
800011341,ADECCO UK LIMITED=============,26042486,1,896.51,FRS STAFF AGENCY,05/07/12,896.51
800011342,ADECCO UK LIMITED=============,26042487,1,"1,114.35",FRS STAFF AGENCY,05/07/12,"1,114.35"
800011343,ADECCO UK LIMITED=============,26042488,1,"1,098.65",FRS STAFF AGENCY,05/07/12,"1,098.65"
800011344,ADECCO UK LIMITED=============,26042489,1,650.72,FRS STAFF AGENCY,05/07/12,650.72
800011345,ADECCO UK LIMITED=============,26042490,1,650.72,FRS STAFF AGENCY,05/07/12,650.72
800011346,ADECCO UK LIMITED=============,26042491,1,650.72,FRS STAFF AGENCY,05/07/12,650.72
800011348,ADECCO UK LIMITED=============,26042493,1,590.45,FRS STAFF AGENCY,05/07/12,590.45
800011350,ADECCO UK LIMITED=============,26042495,1,"1,034.70",FRS STAFF AGENCY,05/07/12,"1,034.70"
800011351,ADECCO UK LIMITED=============,26042496,1,"1,241.64",FRS STAFF AGENCY,05/07/12,"1,241.64"
800011352,ADECCO UK LIMITED=============,26042497,1,"1,240.00",FRS STAFF AGENCY,05/07/12,"1,240.00"
800011353,ADECCO UK LIMITED=============,26042498,1,"1,550.00",FRS STAFF AGENCY,05/07/12,"1,550.00"
800011354,ADECCO UK LIMITED=============,26042499,1,"1,550.00",FRS STAFF AGENCY,05/07/12,"1,550.00"
800011355,ADECCO UK LIMITED=============,26042500,1,926.50,FRS STAFF AGENCY,05/07/12,926.50
800011356,ADECCO UK LIMITED=============,26042501,1,"1,037.68",FRS STAFF AGENCY,05/07/12,"1,037.68"
800011357,ADECCO UK LIMITED=============,26042502,1,"1,037.68",FRS STAFF AGENCY,05/07/12,"1,037.68"
800011358,ADECCO UK LIMITED=============,26042503,1,"1,037.68",FRS STAFF AGENCY,05/07/12,"1,037.68"
290612C,KNIGHTON CLEANING SERVICES LTD,29417,1,"1,257.60",HYGIENE,05/07/12,"1,257.60"
290612C,KNIGHTON CLEANING SERVICES LTD,29576,1,"1,199.75",HYGIENE,05/07/12,"1,199.75"
139757,MUSCO LIGHTING EUROPE LTD=====,3391,1,"3,853.33",GENERAL,05/07/12,"3,853.33"
210612C,360 SYSTEMS LIMITED===========,3601929,1,"5,100.00",PROFESSIONAL SERVICES,05/07/12,"5,100.00"
139756,MR DAVID MYHILL===============,400647*,1,"1,850.00",COUNSELS FEES,05/07/12,"1,850.00"
280612C,W & E DERRICK BLDG. CONT.=====,4010,1,"6,975.00",DEVELOPMENT EXP - CONTRACTORS,05/07/12,"7,860.00"
280612C,W & E DERRICK BLDG. CONT.=====,4010,2,885.00,DEVELOPMENT EXP - CONTRACTORS,05/07/12,
020712G,*BURLINGTON UNIFORMS LTD,409223,1,403.20,CLOTHING,05/07/12,"1,702.40"
020712G,*BURLINGTON UNIFORMS LTD,409223,2,492.80,CLOTHING,05/07/12,
020712G,*BURLINGTON UNIFORMS LTD,409223,3,380.80,CLOTHING,05/07/12,
020712G,*BURLINGTON UNIFORMS LTD,409223,4,268.80,CLOTHING,05/07/12,
020712G,*BURLINGTON UNIFORMS LTD,409223,5,112.00,CLOTHING,05/07/12,
020712G,*BURLINGTON UNIFORMS LTD,409223,6,44.80,CLOTHING,05/07/12,
020712G,*BURLINGTON UNIFORMS LTD,409426,1,32.64,CLOTHING,05/07/12,664.32
020712G,*BURLINGTON UNIFORMS LTD,409426,2,32.64,CLOTHING,05/07/12,
020712G,*BURLINGTON UNIFORMS LTD,409426,3,97.92,CLOTHING,05/07/12,
020712G,*BURLINGTON UNIFORMS LTD,409426,4,97.92,CLOTHING,05/07/12,
020712G,*BURLINGTON UNIFORMS LTD,409426,5,67.20,CLOTHING,05/07/12,
020712G,*BURLINGTON UNIFORMS LTD,409426,6,100.80,CLOTHING,05/07/12,
020712G,*BURLINGTON UNIFORMS LTD,409426,7,67.20,CLOTHING,05/07/12,
020712G,*BURLINGTON UNIFORMS LTD,409426,8,67.20,CLOTHING,05/07/12,
020712G,*BURLINGTON UNIFORMS LTD,409426,9,100.80,CLOTHING,05/07/12,
020712E,OPERATIONAL RESEARCH IN HEALTH,42W/LFBD1/2,1,"3,120.00",PROFESSIONAL SERVICES,05/07/12,"3,120.00"
290612C,SPORTSAFE UK LTD==============,434528,1,103.88,GYM EQUIPMENT,05/07/12,539.58
290612C,SPORTSAFE UK LTD==============,434528,2,73.94,GYM EQUIPMENT,05/07/12,
290612C,SPORTSAFE UK LTD==============,434528,3,207.76,GYM EQUIPMENT,05/07/12,
290612C,SPORTSAFE UK LTD==============,434528,4,102.56,GYM EQUIPMENT,05/07/12,
290612C,SPORTSAFE UK LTD==============,434528,5,51.44,GYM EQUIPMENT,05/07/12,
290612C,SPORTSAFE UK LTD==============,434529,1,73.94,GYM EQUIPMENT,05/07/12,748.24
290612C,SPORTSAFE UK LTD==============,434529,2,263.94,GYM EQUIPMENT,05/07/12,
290612C,SPORTSAFE UK LTD==============,434529,3,5.36,GYM EQUIPMENT,05/07/12,
290612C,SPORTSAFE UK LTD==============,434529,4,92.00,GYM EQUIPMENT,05/07/12,
290612C,SPORTSAFE UK LTD==============,434529,5,69.00,GYM EQUIPMENT,05/07/12,
290612C,SPORTSAFE UK LTD==============,434529,6,147.00,GYM EQUIPMENT,05/07/12,
290612C,SPORTSAFE UK LTD==============,434529,7,97.00,GYM EQUIPMENT,05/07/12,
290612C,SPORTSAFE UK LTD==============,434530,1,207.76,GYM EQUIPMENT,05/07/12,569.70
290612C,SPORTSAFE UK LTD==============,434530,2,73.94,GYM EQUIPMENT,05/07/12,
290612C,SPORTSAFE UK LTD==============,434530,3,184.00,GYM EQUIPMENT,05/07/12,
290612C,SPORTSAFE UK LTD==============,434530,4,49.00,GYM EQUIPMENT,05/07/12,
290612C,SPORTSAFE UK LTD==============,434530,5,55.00,GYM EQUIPMENT,05/07/12,
290612C,SPORTSAFE UK LTD==============,434546,1,103.88,GYM EQUIPMENT,05/07/12,856.32
290612C,SPORTSAFE UK LTD==============,434546,2,102.56,GYM EQUIPMENT,05/07/12,
290612C,SPORTSAFE UK LTD==============,434546,3,69.00,GYM EQUIPMENT,05/07/12,
290612C,SPORTSAFE UK LTD==============,434546,4,294.00,GYM EQUIPMENT,05/07/12,
290612C,SPORTSAFE UK LTD==============,434546,5,184.00,GYM EQUIPMENT,05/07/12,
290612C,SPORTSAFE UK LTD==============,434546,6,102.88,GYM EQUIPMENT,05/07/12,
290612C,SPORTSAFE UK LTD==============,434679,1,207.76,GYM EQUIPMENT,05/07/12,724.58
290612C,SPORTSAFE UK LTD==============,434679,2,103.88,GYM EQUIPMENT,05/07/12,
290612C,SPORTSAFE UK LTD==============,434679,3,73.94,GYM EQUIPMENT,05/07/12,
290612C,SPORTSAFE UK LTD==============,434679,4,155.00,GYM EQUIPMENT,05/07/12,
290612C,SPORTSAFE UK LTD==============,434679,5,184.00,GYM EQUIPMENT,05/07/12,
020712E,MITIE SECURITY (LONDON) LTD===,44/475197,1,542.88,PREMISES SECURITY,05/07/12,542.88
020712E,MITIE SECURITY (LONDON) LTD===,44/475332,1,"16,829.28",PREMISES SECURITY,05/07/12,"16,829.28"
020712E,MITIE SECURITY (LONDON) LTD===,44/475345,1,"8,377.44",PREMISES SECURITY,05/07/12,"8,377.44"
290612C,R J HOLLAND LTD===============,4528,1,796.00,DAY TO DAY MINOR IMPS,05/07/12,796.00
020712E,R J HOLLAND LTD===============,4529,1,"1,795.00",STRATEGIC (NON CYCLICAL),05/07/12,"1,795.00"
020712E,R J HOLLAND LTD===============,4530,1,595.00,STRATEGIC (NON CYCLICAL),05/07/12,595.00
020712E,R J HOLLAND LTD===============,4531,1,"1,275.00",STRATEGIC (NON CYCLICAL),05/07/12,"1,275.00"
290612C,FAHEY BUILDERS LTD============,5124,1,"2,275.00",STRATEGIC (NON CYCLICAL),05/07/12,"2,275.00"
290612C,FAHEY BUILDERS LTD============,5125,1,775.00,STRATEGIC (NON CYCLICAL),05/07/12,775.00
290612C,URS SCOTT WILSON LIMITED,5151160,1,"6,072.00",PROFESSIONAL FEES - MISC,05/07/12,"8,777.04"
290612C,URS SCOTT WILSON LIMITED,5151160,2,"2,705.04",PROFESSIONAL FEES - MISC,05/07/12,
280612C,URS SCOTT WILSON LIMITED,5152722,1,"6,421.45",PROFESSIONAL FEES - MISC,05/07/12,"6,421.45"
260612C,SIEMENS ENTERPRISE COMM LTD===,549G6000831725,1,"2,250.00",ACQUISITIONS,05/07/12,"2,250.00"
139752,THAMES WATER UTILITIES LTD====,55520-98535 A,1,622.92,WATER & SEWERAGE RATES,05/07/12,622.92
020712E,GAS & AIR SERVICES (UK)=======,5825,1,"1,089.70",REPAIR & MAINTENANCE,05/07/12,"2,658.20"
020712E,GAS & AIR SERVICES (UK)=======,5825,2,"1,543.50",REPAIR & MAINTENANCE,05/07/12,
020712E,GAS & AIR SERVICES (UK)=======,5825,3,25.00,REPAIR & MAINTENANCE,05/07/12,
020712E,GAS & AIR SERVICES (UK)=======,5828,1,"1,208.33",REPAIR & MAINTENANCE,05/07/12,"1,208.33"
260612C,SIEMENS ENTERPRISE COMM LTD===,6000831730,1,"100,000.00",MAINTENANCE & SUPPORT,05/07/12,"100,000.00"
139752,THAMES WATER UTILITIES LTD====,65149-96346 A,1,810.19,WATER & SEWERAGE RATES,05/07/12,810.19
020712G,TWO SERVICES LTD==============,65399,1,645.50,CATERING EQUIPMENT,05/07/12,645.50
280612C,SWEETT  UK LTD,7013761,1,856.21,STRATEGIC (NON CYCLICAL),05/07/12,856.21
280612E,SHARPE PRITCHARD==============,74308,1,"5,512.00",PROFESSIONAL SERVICES,05/07/12,"5,512.00"
220612E,NISBETS=======================,7526689,1,529.99,CATERING EQUIPMENT,05/07/12,529.99
020712E,AON HEWITT LIMITED,769049,1,"10,550.00",PROFESSIONAL SERVICES,05/07/12,"10,550.00"
290612C,CANON (UK) LTD===============,770349523,1,42.48,OFFICE EQUIPMENT,05/07/12,"2,066.28"
290612C,CANON (UK) LTD===============,770349523,2,142.91,OFFICE EQUIPMENT,05/07/12,
290612C,CANON (UK) LTD===============,770349523,3,142.91,OFFICE EQUIPMENT,05/07/12,
290612C,CANON (UK) LTD===============,770349523,4,142.91,OFFICE EQUIPMENT,05/07/12,
290612C,CANON (UK) LTD===============,770349523,5,142.91,OFFICE EQUIPMENT,05/07/12,
290612C,CANON (UK) LTD===============,770349523,6,183.16,OFFICE EQUIPMENT,05/07/12,
290612C,CANON (UK) LTD===============,770349523,7,183.16,OFFICE EQUIPMENT,05/07/12,
290612C,CANON (UK) LTD===============,770349523,8,271.46,OFFICE EQUIPMENT,05/07/12,
290612C,CANON (UK) LTD===============,770349523,9,271.46,OFFICE EQUIPMENT,05/07/12,
290612C,CANON (UK) LTD===============,770349523,10,271.46,OFFICE EQUIPMENT,05/07/12,
290612C,CANON (UK) LTD===============,770349523,11,271.46,OFFICE EQUIPMENT,05/07/12,
290612C,CANON (UK) LTD===============,770356191,1,"3,154.62",OFFICE EQUIPMENT,05/07/12,"3,154.62"
139759,THOMPSON SOLICITORS===========,8362,2,600.00,CLAIMANT COSTS AGREED,05/07/12,600.00
020712E,DRAEGER SAFETY UK LIMITED=====,90378406,1,150.00,PROTECTIVE EQUIPT - PARTS,05/07/12,"1,026.00"
020712E,DRAEGER SAFETY UK LIMITED=====,90378406,2,876.00,PROTECTIVE EQUIPT - PARTS,05/07/12,
020712E,DRAEGER SAFETY UK LIMITED=====,90378536,1,517.60,PROTECTIVE EQUIPT - PARTS,05/07/12,517.60
020712E,DRAEGER SAFETY UK LIMITED=====,90379315,1,"2,137.20",PROTECTIVE EQUIPT - PARTS,05/07/12,"2,137.20"
020712E,THERMO ELECTRON RMP===========,9110183133,1,840.00,PROTECTIVE EQUIPT - PARTS,05/07/12,866.00
020712E,THERMO ELECTRON RMP===========,9110183133,2,26.00,REPAIR & MAINTENANCE,05/07/12,
280612C,THAMES WATER UTILITIES LTD====,CBA1207561,1,"1,082.00",HYDRANTS,05/07/12,"1,082.00"
280612C,THAMES WATER UTILITIES LTD====,CBA1207562,1,"1,082.00",CURRENT HYDRANT COSTS,05/07/12,"1,082.00"
280612C,THAMES WATER UTILITIES LTD====,CBA1207564,1,"1,082.00",CURRENT HYDRANT COSTS,05/07/12,"1,082.00"
280612C,THAMES WATER UTILITIES LTD====,CBA1207565,1,"1,082.00",CURRENT HYDRANT COSTS,05/07/12,"1,082.00"
290612C,THAMES WATER UTILITIES LTD====,CBA1207880,1,511.50,HYDRANTS,05/07/12,511.50
280612C,THAMES WATER UTILITIES LTD====,CBA15207563,1,"1,082.00",HYDRANTS,05/07/12,"1,082.00"
280612C,BRISTOL UNIFORMS LTD==========,I092390,1,"1,225.20",OPERATIONAL EQUIP-PURCHASE,05/07/12,"1,225.20"
280612C,BRISTOL UNIFORMS LTD==========,I092391,1,"3,471.40",OPERATIONAL EQUIP-PURCHASE,05/07/12,"3,471.40"
280612C,BRISTOL UNIFORMS LTD==========,I092392,1,"2,858.80",OPERATIONAL EQUIP-PURCHASE,05/07/12,"2,858.80"
280612C,BRISTOL UNIFORMS LTD==========,I092393,1,"1,671.42",OPERATIONAL EQUIP-PURCHASE,05/07/12,"1,671.42"
280612C,BRISTOL UNIFORMS LTD==========,I092394,1,"5,292.83",OPERATIONAL EQUIP-PURCHASE,05/07/12,"5,292.83"
280612C,BRISTOL UNIFORMS LTD==========,I092395,1,"5,014.26",OPERATIONAL EQUIP-PURCHASE,05/07/12,"5,014.26"
280612C,BRISTOL UNIFORMS LTD==========,I092396,1,"3,621.41",OPERATIONAL EQUIP-PURCHASE,05/07/12,"3,621.41"
290612C,BRISTOL UNIFORMS LTD==========,I187926,1,"188,664.98",CLOTHING,05/07/12,"188,664.98"
020712G,INNOVISE======================,IS35263,1,513.00,STATIONERY CONSUMABLES,05/07/12,513.00
280612C,JACKSON LIFT GROUP============,JS287028M,1,16.67,STRATEGIC (CYCLICAL),05/07/12,"3,108.45"
280612C,JACKSON LIFT GROUP============,JS287028M,2,104.17,STRATEGIC (CYCLICAL),05/07/12,
280612C,JACKSON LIFT GROUP============,JS287028M,3,41.67,STRATEGIC (CYCLICAL),05/07/12,
280612C,JACKSON LIFT GROUP============,JS287028M,4,41.67,STRATEGIC (CYCLICAL),05/07/12,
280612C,JACKSON LIFT GROUP============,JS287028M,5,41.67,STRATEGIC (CYCLICAL),05/07/12,
280612C,JACKSON LIFT GROUP============,JS287028M,6,104.17,STRATEGIC (CYCLICAL),05/07/12,
280612C,JACKSON LIFT GROUP============,JS287028M,7,104.17,STRATEGIC (CYCLICAL),05/07/12,
280612C,JACKSON LIFT GROUP============,JS287028M,8,104.17,STRATEGIC (CYCLICAL),05/07/12,
280612C,JACKSON LIFT GROUP============,JS287028M,9,104.17,STRATEGIC (CYCLICAL),05/07/12,
280612C,JACKSON LIFT GROUP============,JS287028M,10,104.17,STRATEGIC (CYCLICAL),05/07/12,
280612C,JACKSON LIFT GROUP============,JS287028M,11,104.17,STRATEGIC (CYCLICAL),05/07/12,
280612C,JACKSON LIFT GROUP============,JS287028M,12,104.17,STRATEGIC (CYCLICAL),05/07/12,
280612C,JACKSON LIFT GROUP============,JS287028M,13,104.17,STRATEGIC (CYCLICAL),05/07/12,
280612C,JACKSON LIFT GROUP============,JS287028M,14,104.17,STRATEGIC (CYCLICAL),05/07/12,
280612C,JACKSON LIFT GROUP============,JS287028M,15,104.17,STRATEGIC (CYCLICAL),05/07/12,
280612C,JACKSON LIFT GROUP============,JS287028M,16,47.92,STRATEGIC (CYCLICAL),05/07/12,
280612C,JACKSON LIFT GROUP============,JS287028M,17,47.92,STRATEGIC (CYCLICAL),05/07/12,
280612C,JACKSON LIFT GROUP============,JS287028M,18,116.67,STRATEGIC (CYCLICAL),05/07/12,
280612C,JACKSON LIFT GROUP============,JS287028M,19,116.67,STRATEGIC (CYCLICAL),05/07/12,
280612C,JACKSON LIFT GROUP============,JS287028M,20,116.67,STRATEGIC (CYCLICAL),05/07/12,
280612C,JACKSON LIFT GROUP============,JS287028M,21,116.67,STRATEGIC (CYCLICAL),05/07/12,
280612C,JACKSON LIFT GROUP============,JS287028M,22,116.67,STRATEGIC (CYCLICAL),05/07/12,
280612C,JACKSON LIFT GROUP============,JS287028M,23,116.67,STRATEGIC (CYCLICAL),05/07/12,
280612C,JACKSON LIFT GROUP============,JS287028M,24,47.92,STRATEGIC (CYCLICAL),05/07/12,
280612C,JACKSON LIFT GROUP============,JS287028M,25,104.17,STRATEGIC (CYCLICAL),05/07/12,
280612C,JACKSON LIFT GROUP============,JS287028M,26,47.92,STRATEGIC (CYCLICAL),05/07/12,
280612C,JACKSON LIFT GROUP============,JS287028M,27,104.17,STRATEGIC (CYCLICAL),05/07/12,
280612C,JACKSON LIFT GROUP============,JS287028M,28,47.92,STRATEGIC (CYCLICAL),05/07/12,
280612C,JACKSON LIFT GROUP============,JS287028M,29,104.17,STRATEGIC (CYCLICAL),05/07/12,
280612C,JACKSON LIFT GROUP============,JS287028M,30,104.17,STRATEGIC (CYCLICAL),05/07/12,
280612C,JACKSON LIFT GROUP============,JS287028M,31,104.17,STRATEGIC (CYCLICAL),05/07/12,
280612C,JACKSON LIFT GROUP============,JS287028M,32,104.17,STRATEGIC (CYCLICAL),05/07/12,
280612C,JACKSON LIFT GROUP============,JS287028M,33,47.92,STRATEGIC (CYCLICAL),05/07/12,
280612C,JACKSON LIFT GROUP============,JS287028M,34,104.17,STRATEGIC (CYCLICAL),05/07/12,
280612C,JACKSON LIFT GROUP============,JS287028M,35,104.17,STRATEGIC (CYCLICAL),05/07/12,
280612C,VODAFONE LIMITED==============,M211845,1,"2,310.00",CELLULAR TELEPHONES,05/07/12,"2,310.00"
280612C,PHOENIX SOFTWARE LTD==========,OP/I670609/OP/I670604,1,"387,356.33",ACQUISITIONS,05/07/12,"387,356.33"
020712G,ETC VENUES LTD================,PH-49077/PH-49771,1,510.00,TRAINING & CONFERENCES,05/07/12,595.00
020712G,ETC VENUES LTD================,PH-49077/PH-49771,2,85.00,TRAINING & CONFERENCES,05/07/12,
280612C,SUTTON & EAST SURREY WATER PLC,SI026460,1,985.00,CURRENT HYDRANT COSTS,05/07/12,985.00
280612C,SUTTON & EAST SURREY WATER PLC,SI026461,1,985.00,CURRENT HYDRANT COSTS,05/07/12,985.00
280612C,SUTTON & EAST SURREY WATER PLC,SI026462,1,985.00,CURRENT HYDRANT COSTS,05/07/12,985.00
280612C,SUTTON & EAST SURREY WATER PLC,SI026466,1,985.00,CURRENT HYDRANT COSTS,05/07/12,985.00
230612C,THE WOW FACTOR LTD============,TWFL/23/LFB,1,660.00,TRAINING & CONFERENCES,05/07/12,660.00
040712E,WOLF SAFETY LAMP CO LTD=======,0000016170,1,"5,040.00",GENERAL CONSUMABLES,09/07/12,"5,040.00"
050712F,DRON & WRIGHT=================,015813,1,735.00,PROFESSIONAL SERVICES,09/07/12,735.00
050712F,DRON & WRIGHT=================,015814,1,"2,950.00",PROFESSIONAL SERVICES,09/07/12,"2,950.00"
139758,THAMES WATER UTILITIES LTD====,0372482310G,1,"1,101.49",WATER & SEWERAGE RATES,09/07/12,"1,101.49"
139758,THAMES WATER UTILITIES LTD====,0770723316Z,1,603.07,WATER & SEWERAGE RATES,09/07/12,603.07
040712E,ESRI (UK) LIMITED=============,083060,1,"3,285.00",PROFESSIONAL SERVICES,09/07/12,"3,922.29"
040712E,ESRI (UK) LIMITED=============,083060,2,637.29,PROFESSIONAL SERVICES,09/07/12,
050712E,ALLSTAR BUSINESS SOLUTIONS LTD,1018705604,1,171.11,FUEL,09/07/12,"21,229.95"
050712E,ALLSTAR BUSINESS SOLUTIONS LTD,1018705604,2,120.78,FUEL,09/07/12,
050712E,ALLSTAR BUSINESS SOLUTIONS LTD,1018705604,3,114.65,FUEL,09/07/12,
050712E,ALLSTAR BUSINESS SOLUTIONS LTD,1018705604,4,184.49,FUEL,09/07/12,
050712E,ALLSTAR BUSINESS SOLUTIONS LTD,1018705604,5,276.99,FUEL,09/07/12,
050712E,ALLSTAR BUSINESS SOLUTIONS LTD,1018705604,6,109.12,FUEL,09/07/12,
050712E,ALLSTAR BUSINESS SOLUTIONS LTD,1018705604,7,99.18,FUEL,09/07/12,
050712E,ALLSTAR BUSINESS SOLUTIONS LTD,1018705604,8,242.23,FUEL,09/07/12,
050712E,ALLSTAR BUSINESS SOLUTIONS LTD,1018705604,9,86.89,FUEL,09/07/12,
050712E,ALLSTAR BUSINESS SOLUTIONS LTD,1018705604,10,279.57,FUEL,09/07/12,
050712E,ALLSTAR BUSINESS SOLUTIONS LTD,1018705604,11,227.52,FUEL,09/07/12,
050712E,ALLSTAR BUSINESS SOLUTIONS LTD,1018705604,12,363.83,FUEL,09/07/12,
050712E,ALLSTAR BUSINESS SOLUTIONS LTD,1018705604,13,201.49,FUEL,09/07/12,
050712E,ALLSTAR BUSINESS SOLUTIONS LTD,1018705604,14,297.79,FUEL,09/07/12,
050712E,ALLSTAR BUSINESS SOLUTIONS LTD,1018705604,15,136.92,FUEL,09/07/12,
050712E,ALLSTAR BUSINESS SOLUTIONS LTD,1018705604,16,451.62,FUEL,09/07/12,
050712E,ALLSTAR BUSINESS SOLUTIONS LTD,1018705604,17,286.84,FUEL,09/07/12,
050712E,ALLSTAR BUSINESS SOLUTIONS LTD,1018705604,18,101.65,FUEL,09/07/12,
050712E,ALLSTAR BUSINESS SOLUTIONS LTD,1018705604,19,111.78,FUEL,09/07/12,
050712E,ALLSTAR BUSINESS SOLUTIONS LTD,1018705604,20,134.69,FUEL,09/07/12,
050712E,ALLSTAR BUSINESS SOLUTIONS LTD,1018705604,21,164.95,FUEL,09/07/12,
050712E,ALLSTAR BUSINESS SOLUTIONS LTD,1018705604,22,179.87,FUEL,09/07/12,
050712E,ALLSTAR BUSINESS SOLUTIONS LTD,1018705604,23,210.72,FUEL,09/07/12,
050712E,ALLSTAR BUSINESS SOLUTIONS LTD,1018705604,24,229.58,FUEL,09/07/12,
050712E,ALLSTAR BUSINESS SOLUTIONS LTD,1018705604,25,226.54,FUEL,09/07/12,
050712E,ALLSTAR BUSINESS SOLUTIONS LTD,1018705604,26,263.42,FUEL,09/07/12,
050712E,ALLSTAR BUSINESS SOLUTIONS LTD,1018705604,27,278.96,FUEL,09/07/12,
050712E,ALLSTAR BUSINESS SOLUTIONS LTD,1018705604,28,251.66,FUEL,09/07/12,
050712E,ALLSTAR BUSINESS SOLUTIONS LTD,1018705604,29,209.46,FUEL,09/07/12,
050712E,ALLSTAR BUSINESS SOLUTIONS LTD,1018705604,30,227.92,FUEL,09/07/12,
050712E,ALLSTAR BUSINESS SOLUTIONS LTD,1018705604,31,414.21,FUEL,09/07/12,
050712E,ALLSTAR BUSINESS SOLUTIONS LTD,1018705604,32,508.97,FUEL,09/07/12,
050712E,ALLSTAR BUSINESS SOLUTIONS LTD,1018705604,33,369.88,FUEL,09/07/12,
050712E,ALLSTAR BUSINESS SOLUTIONS LTD,1018705604,34,334.69,FUEL,09/07/12,
050712E,ALLSTAR BUSINESS SOLUTIONS LTD,1018705604,35,529.80,FUEL,09/07/12,
050712E,ALLSTAR BUSINESS SOLUTIONS LTD,1018705604,36,151.81,FUEL,09/07/12,
050712E,ALLSTAR BUSINESS SOLUTIONS LTD,1018705604,37,297.21,FUEL,09/07/12,
050712E,ALLSTAR BUSINESS SOLUTIONS LTD,1018705604,38,77.14,FUEL,09/07/12,
050712E,ALLSTAR BUSINESS SOLUTIONS LTD,1018705604,39,144.08,FUEL,09/07/12,
050712E,ALLSTAR BUSINESS SOLUTIONS LTD,1018705604,40,561.08,FUEL,09/07/12,
050712E,ALLSTAR BUSINESS SOLUTIONS LTD,1018705604,41,199.50,FUEL,09/07/12,
050712E,ALLSTAR BUSINESS SOLUTIONS LTD,1018705604,42,171.12,FUEL,09/07/12,
050712E,ALLSTAR BUSINESS SOLUTIONS LTD,1018705604,43,282.71,FUEL,09/07/12,
050712E,ALLSTAR BUSINESS SOLUTIONS LTD,1018705604,44,224.94,FUEL,09/07/12,
050712E,ALLSTAR BUSINESS SOLUTIONS LTD,1018705604,45,84.20,FUEL,09/07/12,
050712E,ALLSTAR BUSINESS SOLUTIONS LTD,1018705604,46,182.13,FUEL,09/07/12,
050712E,ALLSTAR BUSINESS SOLUTIONS LTD,1018705604,47,288.46,FUEL,09/07/12,
050712E,ALLSTAR BUSINESS SOLUTIONS LTD,1018705604,48,209.26,FUEL,09/07/12,
050712E,ALLSTAR BUSINESS SOLUTIONS LTD,1018705604,49,149.17,FUEL,09/07/12,
050712E,ALLSTAR BUSINESS SOLUTIONS LTD,1018705604,50,230.17,FUEL,09/07/12,
050712E,ALLSTAR BUSINESS SOLUTIONS LTD,1018705604,51,66.04,FUEL,09/07/12,
050712E,ALLSTAR BUSINESS SOLUTIONS LTD,1018705604,52,157.74,FUEL,09/07/12,
050712E,ALLSTAR BUSINESS SOLUTIONS LTD,1018705604,53,662.79,FUEL,09/07/12,
050712E,ALLSTAR BUSINESS SOLUTIONS LTD,1018705604,54,292.31,FUEL,09/07/12,
050712E,ALLSTAR BUSINESS SOLUTIONS LTD,1018705604,55,229.90,FUEL,09/07/12,
050712E,ALLSTAR BUSINESS SOLUTIONS LTD,1018705604,56,210.63,FUEL,09/07/12,
050712E,ALLSTAR BUSINESS SOLUTIONS LTD,1018705604,57,328.29,FUEL,09/07/12,
050712E,ALLSTAR BUSINESS SOLUTIONS LTD,1018705604,58,594.57,FUEL,09/07/12,
050712E,ALLSTAR BUSINESS SOLUTIONS LTD,1018705604,59,130.42,FUEL,09/07/12,
050712E,ALLSTAR BUSINESS SOLUTIONS LTD,1018705604,60,274.85,FUEL,09/07/12,
050712E,ALLSTAR BUSINESS SOLUTIONS LTD,1018705604,61,176.55,FUEL,09/07/12,
050712E,ALLSTAR BUSINESS SOLUTIONS LTD,1018705604,62,140.25,FUEL,09/07/12,
050712E,ALLSTAR BUSINESS SOLUTIONS LTD,1018705604,63,269.74,FUEL,09/07/12,
050712E,ALLSTAR BUSINESS SOLUTIONS LTD,1018705604,64,182.72,FUEL,09/07/12,
050712E,ALLSTAR BUSINESS SOLUTIONS LTD,1018705604,65,121.49,FUEL,09/07/12,
050712E,ALLSTAR BUSINESS SOLUTIONS LTD,1018705604,66,93.40,FUEL,09/07/12,
050712E,ALLSTAR BUSINESS SOLUTIONS LTD,1018705604,67,89.17,FUEL,09/07/12,
050712E,ALLSTAR BUSINESS SOLUTIONS LTD,1018705604,68,135.02,FUEL,09/07/12,
050712E,ALLSTAR BUSINESS SOLUTIONS LTD,1018705604,69,126.55,FUEL,09/07/12,
050712E,ALLSTAR BUSINESS SOLUTIONS LTD,1018705604,70,152.50,FUEL,09/07/12,
050712E,ALLSTAR BUSINESS SOLUTIONS LTD,1018705604,71,238.37,FUEL,09/07/12,
050712E,ALLSTAR BUSINESS SOLUTIONS LTD,1018705604,72,782.44,FUEL,09/07/12,
050712E,ALLSTAR BUSINESS SOLUTIONS LTD,1018705604,73,59.46,FUEL,09/07/12,
050712E,ALLSTAR BUSINESS SOLUTIONS LTD,1018705604,74,105.81,FUEL,09/07/12,
050712E,ALLSTAR BUSINESS SOLUTIONS LTD,1018705604,75,139.75,FUEL,09/07/12,
050712E,ALLSTAR BUSINESS SOLUTIONS LTD,1018705604,76,66.78,FUEL,09/07/12,
050712E,ALLSTAR BUSINESS SOLUTIONS LTD,1018705604,77,70.83,FUEL,09/07/12,
050712E,ALLSTAR BUSINESS SOLUTIONS LTD,1018705604,78,225.24,FUEL,09/07/12,
050712E,ALLSTAR BUSINESS SOLUTIONS LTD,1018705604,79,156.74,FUEL,09/07/12,
050712E,ALLSTAR BUSINESS SOLUTIONS LTD,1018705604,80,247.49,FUEL,09/07/12,
050712E,ALLSTAR BUSINESS SOLUTIONS LTD,1018705604,81,127.22,FUEL,09/07/12,
050712E,ALLSTAR BUSINESS SOLUTIONS LTD,1018705604,82,244.34,FUEL,09/07/12,
050712E,ALLSTAR BUSINESS SOLUTIONS LTD,1018705604,83,164.36,FUEL,09/07/12,
050712E,ALLSTAR BUSINESS SOLUTIONS LTD,1018705604,84,212.33,FUEL,09/07/12,
050712E,ALLSTAR BUSINESS SOLUTIONS LTD,1018705604,85,27.36,FUEL,09/07/12,
050712E,ALLSTAR BUSINESS SOLUTIONS LTD,1018705604,86,83.82,FUEL,09/07/12,
050712E,ALLSTAR BUSINESS SOLUTIONS LTD,1018705604,87,167.25,FUEL,09/07/12,
050712E,ALLSTAR BUSINESS SOLUTIONS LTD,1018705604,88,97.30,FUEL,09/07/12,
050712E,ALLSTAR BUSINESS SOLUTIONS LTD,1018705604,89,90.80,FUEL,09/07/12,
050712E,ALLSTAR BUSINESS SOLUTIONS LTD,1018705604,90,35.83,FUEL,09/07/12,
050712E,ALLSTAR BUSINESS SOLUTIONS LTD,1018705604,91,32.84,FUEL,09/07/12,
050712E,ALLSTAR BUSINESS SOLUTIONS LTD,1018705604,92,33.33,FUEL,09/07/12,
050712E,ALLSTAR BUSINESS SOLUTIONS LTD,1018705604,93,53.86,FUEL,09/07/12,
050712E,ALLSTAR BUSINESS SOLUTIONS LTD,1018705604,94,194.18,FUEL,09/07/12,
050712E,ALLSTAR BUSINESS SOLUTIONS LTD,1018705604,95,109.78,FUEL,09/07/12,
050712E,ALLSTAR BUSINESS SOLUTIONS LTD,1018705604,96,30.51,FUEL,09/07/12,
050712E,ALLSTAR BUSINESS SOLUTIONS LTD,1018705604,97,63.67,FUEL,09/07/12,
050712E,ALLSTAR BUSINESS SOLUTIONS LTD,1018705604,98,164.25,FUEL,09/07/12,
050712E,ALLSTAR BUSINESS SOLUTIONS LTD,1018705604,99,79.27,FUEL,09/07/12,
050712E,ALLSTAR BUSINESS SOLUTIONS LTD,1018705604,100,48.15,FUEL,09/07/12,
050712E,ALLSTAR BUSINESS SOLUTIONS LTD,1018705604,101,75.50,FUEL,09/07/12,
050712E,ALLSTAR BUSINESS SOLUTIONS LTD,1018705604,102,33.35,FUEL,09/07/12,
050712E,ALLSTAR BUSINESS SOLUTIONS LTD,1018705604,103,66.66,FUEL,09/07/12,
050712E,ALLSTAR BUSINESS SOLUTIONS LTD,1018705604,104,41.67,FUEL,09/07/12,
050712E,ALLSTAR BUSINESS SOLUTIONS LTD,1018705604,105,109.34,FUEL,09/07/12,
050712E,ALLSTAR BUSINESS SOLUTIONS LTD,1018705604,106,48.54,FUEL,09/07/12,
050712E,ALLSTAR BUSINESS SOLUTIONS LTD,1018705604,107,41.92,FUEL,09/07/12,
050712E,ALLSTAR BUSINESS SOLUTIONS LTD,1018705604,108,85.15,FUEL,09/07/12,
050712E,ALLSTAR BUSINESS SOLUTIONS LTD,1018705604,109,118.59,FUEL,09/07/12,
050712E,ALLSTAR BUSINESS SOLUTIONS LTD,1018705604,110,35.00,FUEL,09/07/12,
050712E,ALLSTAR BUSINESS SOLUTIONS LTD,1018705604,111,333.19,FUEL,09/07/12,
040712G,*SPRUE SAFETY PRODUCTS LTD====,1033954,1,"1,769.60",FIRE DETECTORS,09/07/12,"1,769.60"
260612E,*SPRUE SAFETY PRODUCTS LTD====,1034195,1,"1,516.80",FIRE DETECTORS,09/07/12,"1,516.80"
040712G,*SPRUE SAFETY PRODUCTS LTD====,1034196,1,"1,516.80",FIRE DETECTORS,09/07/12,"1,516.80"
260612E,*SPRUE SAFETY PRODUCTS LTD====,1034197,1,758.40,FIRE DETECTORS,09/07/12,758.40
040712G,*SPRUE SAFETY PRODUCTS LTD====,1034198,1,505.60,FIRE DETECTORS,09/07/12,505.60
260612C,*SPRUE SAFETY PRODUCTS LTD====,1034209,1,758.40,FIRE DETECTORS,09/07/12,758.40
260612C,*SPRUE SAFETY PRODUCTS LTD====,1034210,1,"1,516.80",FIRE DETECTORS,09/07/12,"1,516.80"
260612C,*SPRUE SAFETY PRODUCTS LTD====,1034211,1,758.40,FIRE DETECTORS,09/07/12,758.40
260612C,*SPRUE SAFETY PRODUCTS LTD====,1034212,1,758.40,FIRE DETECTORS,09/07/12,758.40
260612C,*SPRUE SAFETY PRODUCTS LTD====,1034213,1,"1,516.80",FIRE DETECTORS,09/07/12,"1,516.80"
260612C,*SPRUE SAFETY PRODUCTS LTD====,1034216,1,"1,896.00",FIRE DETECTORS,09/07/12,"1,896.00"
260612C,*SPRUE SAFETY PRODUCTS LTD====,1034217,1,758.40,FIRE DETECTORS,09/07/12,758.40
260612C,*SPRUE SAFETY PRODUCTS LTD====,1034218,1,"1,516.80",FIRE DETECTORS,09/07/12,"1,516.80"
260612C,*SPRUE SAFETY PRODUCTS LTD====,1034221,1,758.40,FIRE DETECTORS,09/07/12,758.40
260612C,*SPRUE SAFETY PRODUCTS LTD====,1034223,1,"1,516.80",FIRE DETECTORS,09/07/12,"1,516.80"
260612C,*SPRUE SAFETY PRODUCTS LTD====,1034225,1,"2,275.20",FIRE DETECTORS,09/07/12,"2,275.20"
260612C,*SPRUE SAFETY PRODUCTS LTD====,1034226,1,"2,275.20",FIRE DETECTORS,09/07/12,"2,275.20"
260612C,*SPRUE SAFETY PRODUCTS LTD====,1034227,1,"2,275.20",FIRE DETECTORS,09/07/12,"2,275.20"
260612C,*SPRUE SAFETY PRODUCTS LTD====,1034228,1,"1,137.60",FIRE DETECTORS,09/07/12,"1,137.60"
800011553,PRIMEPEACE LTD================,120601,1,"9,845.00",MAINTENANCE & SUPPORT,09/07/12,"15,215.00"
800011553,PRIMEPEACE LTD================,120601,2,"1,118.75",MAINTENANCE & SUPPORT,09/07/12,
800011553,PRIMEPEACE LTD================,120601,3,"1,700.50",MAINTENANCE & SUPPORT,09/07/12,
800011553,PRIMEPEACE LTD================,120601,4,"1,566.25",MAINTENANCE & SUPPORT,09/07/12,
800011553,PRIMEPEACE LTD================,120601,5,984.50,MAINTENANCE & SUPPORT,09/07/12,
050712E,DIAMOND BUILD PLC=============,12784,1,"16,479.14",DEVELOPMENT EXP - CONTRACTORS,09/07/12,"16,479.14"
020712E,AIRSERVICES(UK)===============,15578,1,793.00,REPAIR & MAINTENANCE,09/07/12,810.20
020712E,AIRSERVICES(UK)===============,15578,2,5.20,REPAIR & MAINTENANCE,09/07/12,
020712E,AIRSERVICES(UK)===============,15578,3,3.00,REPAIR & MAINTENANCE,09/07/12,
020712E,AIRSERVICES(UK)===============,15578,4,9.00,REPAIR & MAINTENANCE,09/07/12,
050712E,GRADIENT CONSULTANTS LLP======,1702,1,348.02,PROFESSIONAL FEES - MISC,09/07/12,"9,143.71"
050712E,GRADIENT CONSULTANTS LLP======,1702,2,242.57,PROFESSIONAL FEES - MISC,09/07/12,
050712E,GRADIENT CONSULTANTS LLP======,1702,3,197.75,PROFESSIONAL FEES - MISC,09/07/12,
050712E,GRADIENT CONSULTANTS LLP======,1702,4,57.75,DEVELOPMENT EXP - CONTRACTORS,09/07/12,
050712E,GRADIENT CONSULTANTS LLP======,1702,5,71.18,DEVELOPMENT EXP - CONTRACTORS,09/07/12,
050712E,GRADIENT CONSULTANTS LLP======,1702,6,348.02,PROFESSIONAL FEES - MISC,09/07/12,
050712E,GRADIENT CONSULTANTS LLP======,1702,7,533.90,PROFESSIONAL FEES - MISC,09/07/12,
050712E,GRADIENT CONSULTANTS LLP======,1702,8,290.02,DEVELOPMENT EXP - CONTRACTORS,09/07/12,
050712E,GRADIENT CONSULTANTS LLP======,1702,9,242.57,PROFESSIONAL FEES - MISC,09/07/12,
050712E,GRADIENT CONSULTANTS LLP======,1702,10,70.00,DEVELOPMENT EXP - CONTRACTORS,09/07/12,
050712E,GRADIENT CONSULTANTS LLP======,1702,11,71.18,DEVELOPMENT EXP - CONTRACTORS,09/07/12,
050712E,GRADIENT CONSULTANTS LLP======,1702,12,215.53,PROFESSIONAL FEES - MISC,09/07/12,
050712E,GRADIENT CONSULTANTS LLP======,1702,13,242.57,PROFESSIONAL FEES - MISC,09/07/12,
050712E,GRADIENT CONSULTANTS LLP======,1702,14,52.74,PROFESSIONAL FEES - MISC,09/07/12,
050712E,GRADIENT CONSULTANTS LLP======,1702,15,481.18,PROFESSIONAL FEES - MISC,09/07/12,
050712E,GRADIENT CONSULTANTS LLP======,1702,16,295.30,PROFESSIONAL FEES - MISC,09/07/12,
050712E,GRADIENT CONSULTANTS LLP======,1702,17,295.30,DEVELOPMENT EXP - CONTRACTORS,09/07/12,
050712E,GRADIENT CONSULTANTS LLP======,1702,18,590.59,DEVELOPMENT EXP - CONTRACTORS,09/07/12,
050712E,GRADIENT CONSULTANTS LLP======,1702,19,52.09,PROFESSIONAL FEES - MISC,09/07/12,
050712E,GRADIENT CONSULTANTS LLP======,1702,20,70.00,PROFESSIONAL FEES - MISC,09/07/12,
050712E,GRADIENT CONSULTANTS LLP======,1702,21,"1,175.92",PROFESSIONAL FEES - MISC,09/07/12,
050712E,GRADIENT CONSULTANTS LLP======,1702,22,114.70,DEVELOPMENT EXP - CONTRACTORS,09/07/12,
050712E,GRADIENT CONSULTANTS LLP======,1702,23,552.37,PROFESSIONAL FEES - MISC,09/07/12,
050712E,GRADIENT CONSULTANTS LLP======,1702,24,295.30,DEVELOPMENT EXP - CONTRACTORS,09/07/12,
050712E,GRADIENT CONSULTANTS LLP======,1702,25,242.57,DEVELOPMENT EXP - CONTRACTORS,09/07/12,
050712E,GRADIENT CONSULTANTS LLP======,1702,26,71.18,DEVELOPMENT EXP - CONTRACTORS,09/07/12,
050712E,GRADIENT CONSULTANTS LLP======,1702,27,52.09,DEVELOPMENT EXP - CONTRACTORS,09/07/12,
050712E,GRADIENT CONSULTANTS LLP======,1702,28,52.09,DEVELOPMENT EXP - CONTRACTORS,09/07/12,
050712E,GRADIENT CONSULTANTS LLP======,1702,29,348.02,DEVELOPMENT EXP - CONTRACTORS,09/07/12,
050712E,GRADIENT CONSULTANTS LLP======,1702,30,348.02,DEVELOPMENT EXP - CONTRACTORS,09/07/12,
050712E,GRADIENT CONSULTANTS LLP======,1702,31,"1,123.19",PROFESSIONAL FEES - MISC,09/07/12,
040712E,COMMUNITIES & LOCAL GOVERNMENT,1800017334,1,"7,735.00",MAINTENANCE & SUPPORT,09/07/12,"105,066.20"
040712E,COMMUNITIES & LOCAL GOVERNMENT,1800017334,2,"97,331.20",MAINTENANCE & SUPPORT,09/07/12,
050712E,TRADE WINDS===================,20025,1,"5,744.19",PRINTING,09/07/12,"5,744.19"
050712F,ALPHA PLUS SECURITY LIMITED==,24885,1,"16,800.00",PREMISES SECURITY,09/07/12,"16,800.00"
139758,THAMES WATER UTILITIES LTD====,2574700531V,1,945.39,WATER & SEWERAGE RATES,09/07/12,945.39
800011349,ADECCO UK LIMITED=============,26042494,1,590.45,FRS STAFF AGENCY,09/07/12,590.45
800011512,ADECCO UK LIMITED=============,26046014,1,621.04,FRS STAFF AGENCY,09/07/12,621.04
800011513,ADECCO UK LIMITED=============,26046015,1,549.15,FRS STAFF AGENCY,09/07/12,549.15
800011515,ADECCO UK LIMITED=============,26046017,1,774.70,FRS STAFF AGENCY,09/07/12,774.70
800011516,ADECCO UK LIMITED=============,26046018,1,576.60,FRS STAFF AGENCY,09/07/12,576.60
800011517,ADECCO UK LIMITED=============,26046019,1,546.70,FRS STAFF AGENCY,09/07/12,546.70
800011518,ADECCO UK LIMITED=============,26046020,1,563.04,FRS STAFF AGENCY,09/07/12,563.04
800011519,ADECCO UK LIMITED=============,26046021,1,"1,221.60",FRS STAFF AGENCY,09/07/12,"1,221.60"
800011520,ADECCO UK LIMITED=============,26046022,1,579.60,FRS STAFF AGENCY,09/07/12,579.60
800011521,ADECCO UK LIMITED=============,26046023,1,621.04,FRS STAFF AGENCY,09/07/12,621.04
800011522,ADECCO UK LIMITED=============,26046024,1,559.16,FRS STAFF AGENCY,09/07/12,559.16
800011524,ADECCO UK LIMITED=============,26046026,1,579.60,FRS STAFF AGENCY,09/07/12,579.60
800011525,ADECCO UK LIMITED=============,26046027,1,579.60,FRS STAFF AGENCY,09/07/12,579.60
800011526,ADECCO UK LIMITED=============,26046028,1,579.60,FRS STAFF AGENCY,09/07/12,579.60
800011527,ADECCO UK LIMITED=============,26046029,1,501.90,FRS STAFF AGENCY,09/07/12,501.90
800011528,ADECCO UK LIMITED=============,26046030,1,501.90,FRS STAFF AGENCY,09/07/12,501.90
800011529,ADECCO UK LIMITED=============,26046031,1,579.60,FRS STAFF AGENCY,09/07/12,579.60
800011532,ADECCO UK LIMITED=============,26046034,1,"1,426.25",FRS STAFF AGENCY,09/07/12,"1,426.25"
800011534,ADECCO UK LIMITED=============,26046036,1,579.25,FRS STAFF AGENCY,09/07/12,579.25
800011535,ADECCO UK LIMITED=============,26046037,1,581.35,FRS STAFF AGENCY,09/07/12,581.35
800011536,ADECCO UK LIMITED=============,26046038,1,501.90,FRS STAFF AGENCY,09/07/12,501.90
800011537,ADECCO UK LIMITED=============,26046039,1,502.98,FRS STAFF AGENCY,09/07/12,502.98
800011538,ADECCO UK LIMITED=============,26046040,1,501.90,FRS STAFF AGENCY,09/07/12,501.90
800011539,ADECCO UK LIMITED=============,26046041,1,693.70,FRS STAFF AGENCY,09/07/12,693.70
800011540,ADECCO UK LIMITED=============,26046042,1,501.90,FRS STAFF AGENCY,09/07/12,501.90
800011541,ADECCO UK LIMITED=============,26046043,1,549.15,FRS STAFF AGENCY,09/07/12,549.15
800011543,ADECCO UK LIMITED=============,26046045,1,693.70,FRS STAFF AGENCY,09/07/12,693.70
800011545,ADECCO UK LIMITED=============,26046049,1,956.12,FRS STAFF AGENCY,09/07/12,956.12
800011547,ADECCO UK LIMITED=============,26051638,1,"1,060.13",FRS STAFF AGENCY,09/07/12,"1,060.13"
800011548,ADECCO UK LIMITED=============,26051639,1,896.51,FRS STAFF AGENCY,09/07/12,896.51
800011549,ADECCO UK LIMITED=============,26051640,1,"1,098.65",FRS STAFF AGENCY,09/07/12,"1,098.65"
800011550,ADECCO UK LIMITED=============,26051641,1,974.34,FRS STAFF AGENCY,09/07/12,974.34
040712E,MACE LIMITED,26915/0512514,1,"4,200.00",PROFESSIONAL FEES - MISC,09/07/12,"4,200.00"
050712E,KNIGHTON CLEANING SERVICES LTD,30071,1,"1,008.18",GENERAL CLEANS,09/07/12,"87,939.20"
050712E,KNIGHTON CLEANING SERVICES LTD,30071,2,"1,003.02",GENERAL CLEANS,09/07/12,
050712E,KNIGHTON CLEANING SERVICES LTD,30071,3,"1,795.71",GENERAL CLEANS,09/07/12,
050712E,KNIGHTON CLEANING SERVICES LTD,30071,4,"1,501.02",GENERAL CLEANS,09/07/12,
050712E,KNIGHTON CLEANING SERVICES LTD,30071,5,680.82,GENERAL CLEANS,09/07/12,
050712E,KNIGHTON CLEANING SERVICES LTD,30071,6,"1,460.92",GENERAL CLEANS,09/07/12,
050712E,KNIGHTON CLEANING SERVICES LTD,30071,7,"2,251.45",GENERAL CLEANS,09/07/12,
050712E,KNIGHTON CLEANING SERVICES LTD,30071,8,"2,348.88",GENERAL CLEANS,09/07/12,
050712E,KNIGHTON CLEANING SERVICES LTD,30071,9,"4,274.20",GENERAL CLEANS,09/07/12,
050712E,KNIGHTON CLEANING SERVICES LTD,30071,10,"1,035.83",GENERAL CLEANS,09/07/12,
050712E,KNIGHTON CLEANING SERVICES LTD,30071,11,819.13,GENERAL CLEANS,09/07/12,
050712E,KNIGHTON CLEANING SERVICES LTD,30071,12,"1,227.83",GENERAL CLEANS,09/07/12,
050712E,KNIGHTON CLEANING SERVICES LTD,30071,13,"1,367.85",GENERAL CLEANS,09/07/12,
050712E,KNIGHTON CLEANING SERVICES LTD,30071,14,"1,041.50",GENERAL CLEANS,09/07/12,
050712E,KNIGHTON CLEANING SERVICES LTD,30071,15,"1,080.27",GENERAL CLEANS,09/07/12,
050712E,KNIGHTON CLEANING SERVICES LTD,30071,16,"1,028.13",GENERAL CLEANS,09/07/12,
050712E,KNIGHTON CLEANING SERVICES LTD,30071,17,"1,653.11",GENERAL CLEANS,09/07/12,
050712E,KNIGHTON CLEANING SERVICES LTD,30071,18,"1,096.91",GENERAL CLEANS,09/07/12,
050712E,KNIGHTON CLEANING SERVICES LTD,30071,19,492.52,GENERAL CLEANS,09/07/12,
050712E,KNIGHTON CLEANING SERVICES LTD,30071,20,"17,411.84",GENERAL CLEANS,09/07/12,
050712E,KNIGHTON CLEANING SERVICES LTD,30071,21,"1,126.86",GENERAL CLEANS,09/07/12,
050712E,KNIGHTON CLEANING SERVICES LTD,30071,22,464.71,GENERAL CLEANS,09/07/12,
050712E,KNIGHTON CLEANING SERVICES LTD,30071,23,"1,693.34",GENERAL CLEANS,09/07/12,
050712E,KNIGHTON CLEANING SERVICES LTD,30071,24,"3,552.65",GENERAL CLEANS,09/07/12,
050712E,KNIGHTON CLEANING SERVICES LTD,30071,25,574.20,GENERAL CLEANS,09/07/12,
050712E,KNIGHTON CLEANING SERVICES LTD,30071,26,"1,781.77",GENERAL CLEANS,09/07/12,
050712E,KNIGHTON CLEANING SERVICES LTD,30071,27,840.63,GENERAL CLEANS,09/07/12,
050712E,KNIGHTON CLEANING SERVICES LTD,30071,28,"1,296.42",GENERAL CLEANS,09/07/12,
050712E,KNIGHTON CLEANING SERVICES LTD,30071,29,"1,319.66",GENERAL CLEANS,09/07/12,
050712E,KNIGHTON CLEANING SERVICES LTD,30071,30,756.40,GENERAL CLEANS,09/07/12,
050712E,KNIGHTON CLEANING SERVICES LTD,30071,31,"2,211.74",GENERAL CLEANS,09/07/12,
050712E,KNIGHTON CLEANING SERVICES LTD,30071,32,"1,291.01",GENERAL CLEANS,09/07/12,
050712E,KNIGHTON CLEANING SERVICES LTD,30071,33,"1,020.62",GENERAL CLEANS,09/07/12,
050712E,KNIGHTON CLEANING SERVICES LTD,30071,34,"1,137.23",GENERAL CLEANS,09/07/12,
050712E,KNIGHTON CLEANING SERVICES LTD,30071,35,"1,221.95",GENERAL CLEANS,09/07/12,
050712E,KNIGHTON CLEANING SERVICES LTD,30071,36,"9,014.11",GENERAL CLEANS,09/07/12,
050712E,KNIGHTON CLEANING SERVICES LTD,30071,37,846.80,GENERAL CLEANS,09/07/12,
050712E,KNIGHTON CLEANING SERVICES LTD,30071,38,"1,143.88",GENERAL CLEANS,09/07/12,
050712E,KNIGHTON CLEANING SERVICES LTD,30071,39,"2,218.85",GENERAL CLEANS,09/07/12,
050712E,KNIGHTON CLEANING SERVICES LTD,30071,40,"1,151.25",GENERAL CLEANS,09/07/12,
050712E,KNIGHTON CLEANING SERVICES LTD,30071,41,"1,033.74",GENERAL CLEANS,09/07/12,
050712E,KNIGHTON CLEANING SERVICES LTD,30071,42,"2,251.96",GENERAL CLEANS,09/07/12,
050712E,KNIGHTON CLEANING SERVICES LTD,30071,43,"1,270.15",GENERAL CLEANS,09/07/12,
050712E,KNIGHTON CLEANING SERVICES LTD,30071,44,"1,385.37",GENERAL CLEANS,09/07/12,
050712E,KNIGHTON CLEANING SERVICES LTD,30071,45,"1,254.82",GENERAL CLEANS,09/07/12,
050712E,KNIGHTON CLEANING SERVICES LTD,30071,46,"1,042.33",GENERAL CLEANS,09/07/12,
050712E,KNIGHTON CLEANING SERVICES LTD,30071,47,457.63,GENERAL CLEANS,09/07/12,
050712E,KNIGHTON CLEANING SERVICES LTD,30073,1,"2,121.10",GENERAL CLEANS,09/07/12,"109,766.32"
050712E,KNIGHTON CLEANING SERVICES LTD,30073,2,"3,444.41",GENERAL CLEANS,09/07/12,
050712E,KNIGHTON CLEANING SERVICES LTD,30073,3,"2,094.86",GENERAL CLEANS,09/07/12,
050712E,KNIGHTON CLEANING SERVICES LTD,30073,4,"1,121.89",GENERAL CLEANS,09/07/12,
050712E,KNIGHTON CLEANING SERVICES LTD,30073,5,"1,078.14",GENERAL CLEANS,09/07/12,
050712E,KNIGHTON CLEANING SERVICES LTD,30073,6,"1,329.47",GENERAL CLEANS,09/07/12,
050712E,KNIGHTON CLEANING SERVICES LTD,30073,7,"2,154.99",GENERAL CLEANS,09/07/12,
050712E,KNIGHTON CLEANING SERVICES LTD,30073,8,"1,473.49",GENERAL CLEANS,09/07/12,
050712E,KNIGHTON CLEANING SERVICES LTD,30073,9,930.45,GENERAL CLEANS,09/07/12,
050712E,KNIGHTON CLEANING SERVICES LTD,30073,10,"1,133.64",GENERAL CLEANS,09/07/12,
050712E,KNIGHTON CLEANING SERVICES LTD,30073,11,"2,334.10",GENERAL CLEANS,09/07/12,
050712E,KNIGHTON CLEANING SERVICES LTD,30073,12,"1,141.46",GENERAL CLEANS,09/07/12,
050712E,KNIGHTON CLEANING SERVICES LTD,30073,13,"1,056.51",GENERAL CLEANS,09/07/12,
050712E,KNIGHTON CLEANING SERVICES LTD,30073,14,"1,095.27",GENERAL CLEANS,09/07/12,
050712E,KNIGHTON CLEANING SERVICES LTD,30073,15,"2,108.48",GENERAL CLEANS,09/07/12,
050712E,KNIGHTON CLEANING SERVICES LTD,30073,16,"2,505.93",GENERAL CLEANS,09/07/12,
050712E,KNIGHTON CLEANING SERVICES LTD,30073,17,"1,058.07",GENERAL CLEANS,09/07/12,
050712E,KNIGHTON CLEANING SERVICES LTD,30073,18,"2,569.81",GENERAL CLEANS,09/07/12,
050712E,KNIGHTON CLEANING SERVICES LTD,30073,19,"1,213.14",GENERAL CLEANS,09/07/12,
050712E,KNIGHTON CLEANING SERVICES LTD,30073,20,"1,957.64",GENERAL CLEANS,09/07/12,
050712E,KNIGHTON CLEANING SERVICES LTD,30073,21,"2,144.78",GENERAL CLEANS,09/07/12,
050712E,KNIGHTON CLEANING SERVICES LTD,30073,22,"1,120.43",GENERAL CLEANS,09/07/12,
050712E,KNIGHTON CLEANING SERVICES LTD,30073,23,"2,517.54",GENERAL CLEANS,09/07/12,
050712E,KNIGHTON CLEANING SERVICES LTD,30073,24,"1,931.63",GENERAL CLEANS,09/07/12,
050712E,KNIGHTON CLEANING SERVICES LTD,30073,25,"1,026.29",GENERAL CLEANS,09/07/12,
050712E,KNIGHTON CLEANING SERVICES LTD,30073,26,"1,321.68",GENERAL CLEANS,09/07/12,
050712E,KNIGHTON CLEANING SERVICES LTD,30073,27,"1,198.03",GENERAL CLEANS,09/07/12,
050712E,KNIGHTON CLEANING SERVICES LTD,30073,28,"1,715.25",GENERAL CLEANS,09/07/12,
050712E,KNIGHTON CLEANING SERVICES LTD,30073,29,"1,568.38",GENERAL CLEANS,09/07/12,
050712E,KNIGHTON CLEANING SERVICES LTD,30073,30,"1,081.46",GENERAL CLEANS,09/07/12,
050712E,KNIGHTON CLEANING SERVICES LTD,30073,31,"1,046.28",GENERAL CLEANS,09/07/12,
050712E,KNIGHTON CLEANING SERVICES LTD,30073,32,"1,472.19",GENERAL CLEANS,09/07/12,
050712E,KNIGHTON CLEANING SERVICES LTD,30073,33,"1,071.23",GENERAL CLEANS,09/07/12,
050712E,KNIGHTON CLEANING SERVICES LTD,30073,34,"1,877.51",GENERAL CLEANS,09/07/12,
050712E,KNIGHTON CLEANING SERVICES LTD,30073,35,"1,609.22",GENERAL CLEANS,09/07/12,
050712E,KNIGHTON CLEANING SERVICES LTD,30073,36,"2,121.20",GENERAL CLEANS,09/07/12,
050712E,KNIGHTON CLEANING SERVICES LTD,30073,37,828.50,GENERAL CLEANS,09/07/12,
050712E,KNIGHTON CLEANING SERVICES LTD,30073,38,"1,112.35",GENERAL CLEANS,09/07/12,
050712E,KNIGHTON CLEANING SERVICES LTD,30073,39,"1,117.34",GENERAL CLEANS,09/07/12,
050712E,KNIGHTON CLEANING SERVICES LTD,30073,40,"1,536.25",GENERAL CLEANS,09/07/12,
050712E,KNIGHTON CLEANING SERVICES LTD,30073,41,"1,039.88",GENERAL CLEANS,09/07/12,
050712E,KNIGHTON CLEANING SERVICES LTD,30073,42,843.06,GENERAL CLEANS,09/07/12,
050712E,KNIGHTON CLEANING SERVICES LTD,30073,43,"2,246.00",GENERAL CLEANS,09/07/12,
050712E,KNIGHTON CLEANING SERVICES LTD,30073,44,"1,664.63",GENERAL CLEANS,09/07/12,
050712E,KNIGHTON CLEANING SERVICES LTD,30073,45,"1,029.14",GENERAL CLEANS,09/07/12,
050712E,KNIGHTON CLEANING SERVICES LTD,30073,46,"3,787.29",GENERAL CLEANS,09/07/12,
050712E,KNIGHTON CLEANING SERVICES LTD,30073,47,"1,292.26",GENERAL CLEANS,09/07/12,
050712E,KNIGHTON CLEANING SERVICES LTD,30073,48,"1,669.91",GENERAL CLEANS,09/07/12,
050712E,KNIGHTON CLEANING SERVICES LTD,30073,49,"1,388.44",GENERAL CLEANS,09/07/12,
050712E,KNIGHTON CLEANING SERVICES LTD,30073,50,"1,080.32",GENERAL CLEANS,09/07/12,
050712E,KNIGHTON CLEANING SERVICES LTD,30073,51,216.77,GENERAL CLEANS,09/07/12,
050712E,KNIGHTON CLEANING SERVICES LTD,30073,52,"1,018.83",GENERAL CLEANS,09/07/12,
050712E,KNIGHTON CLEANING SERVICES LTD,30073,53,"1,184.90",GENERAL CLEANS,09/07/12,
050712E,KNIGHTON CLEANING SERVICES LTD,30073,54,"2,504.56",GENERAL CLEANS,09/07/12,
050712E,KNIGHTON CLEANING SERVICES LTD,30073,55,"1,034.52",GENERAL CLEANS,09/07/12,
050712E,KNIGHTON CLEANING SERVICES LTD,30073,56,"2,241.56",GENERAL CLEANS,09/07/12,
050712E,KNIGHTON CLEANING SERVICES LTD,30073,57,767.94,GENERAL CLEANS,09/07/12,
050712E,KNIGHTON CLEANING SERVICES LTD,30073,58,952.99,GENERAL CLEANS,09/07/12,
050712E,KNIGHTON CLEANING SERVICES LTD,30073,59,"1,073.14",GENERAL CLEANS,09/07/12,
050712E,KNIGHTON CLEANING SERVICES LTD,30073,60,822.84,GENERAL CLEANS,09/07/12,
050712E,KNIGHTON CLEANING SERVICES LTD,30073,61,"2,497.85",GENERAL CLEANS,09/07/12,
050712E,KNIGHTON CLEANING SERVICES LTD,30073,62,"1,333.57",GENERAL CLEANS,09/07/12,
050712E,KNIGHTON CLEANING SERVICES LTD,30073,63,"1,560.99",GENERAL CLEANS,09/07/12,
050712E,KNIGHTON CLEANING SERVICES LTD,30073,64,"2,977.00",GENERAL CLEANS,09/07/12,
050712E,KNIGHTON CLEANING SERVICES LTD,30073,65,"1,058.83",GENERAL CLEANS,09/07/12,
050712E,KNIGHTON CLEANING SERVICES LTD,30073,66,869.53,GENERAL CLEANS,09/07/12,
050712E,KNIGHTON CLEANING SERVICES LTD,30073,67,"2,835.28",GENERAL CLEANS,09/07/12,
050712E,KNIGHTON CLEANING SERVICES LTD,30073,68,"1,401.00",GENERAL CLEANS,09/07/12,
050712E,KNIGHTON CLEANING SERVICES LTD,30073,69,"1,042.10",GENERAL CLEANS,09/07/12,
050712E,KNIGHTON CLEANING SERVICES LTD,30073,70,"1,304.20",GENERAL CLEANS,09/07/12,
050712E,KNIGHTON CLEANING SERVICES LTD,30073,71,142.05,GENERAL CLEANS,09/07/12,
050712E,KNIGHTON CLEANING SERVICES LTD,30073,72,"1,544.55",GENERAL CLEANS,09/07/12,
050712E,COMPUTACENTRE================,3700720711,1,"1,250.74",MAINTENANCE & SUPPORT,09/07/12,"1,250.74"
050712F,MITIE SECURITY (LONDON) LTD===,44/ 475305,1,"7,763.58",PREMISES SECURITY,09/07/12,"8,647.68"
050712F,MITIE SECURITY (LONDON) LTD===,44/ 475305,2,884.10,PREMISES SECURITY,09/07/12,
270612E,*SUPPLIES TEAM================,5088626,1,167.40,STATIONERY CONSUMABLES,09/07/12,502.20
270612E,*SUPPLIES TEAM================,5088626,2,167.40,STATIONERY CONSUMABLES,09/07/12,
270612E,*SUPPLIES TEAM================,5088626,3,167.40,STATIONERY CONSUMABLES,09/07/12,
050712E,URS SCOTT WILSON LIMITED,5156525,1,"10,024.00",PROFESSIONAL FEES - MISC,09/07/12,"10,024.00"
040712E,K&K INDUSTRIAL SERVICES LTD.,55293,1,750.00,DEVELOPMENT EXP - CONTRACTORS,09/07/12,750.00
250612E,LINDFIELD ELECTRICAL SERVICES=,6182,1,"41,439.07",DEVELOPMENT EXP - CONTRACTORS,09/07/12,"41,439.07"
230612C,VODAFONE LIMITED==============,63432969,1,"1,249.64",CELLULAR TELEPHONES,09/07/12,"1,249.64"
040712G,TWO SERVICES LTD==============,65248,1,673.50,CATERING EQUIPMENT,09/07/12,"1,319.00"
040712G,TWO SERVICES LTD==============,65248,2,645.50,CATERING EQUIPMENT,09/07/12,
139758,THAMES WATER UTILITIES LTD====,6848423312E,1,767.58,WATER & SEWERAGE RATES,09/07/12,767.58
040712G,DRAEGER SAFETY UK LIMITED=====,90379432,1,554.00,PROTECTIVE EQUIPT - PARTS,09/07/12,554.00
050712E,DRAEGER SAFETY UK LIMITED=====,90379914,1,891.10,PROTECTIVE EQUIPT - PARTS,09/07/12,891.10
050712E,DRAEGER SAFETY UK LIMITED=====,90379931,1,692.50,PROTECTIVE EQUIPT - PARTS,09/07/12,692.50
050712E,DRAEGER SAFETY UK LIMITED=====,90380180,1,736.00,GENERAL CONSUMABLES,09/07/12,736.00
050712E,THERMO ELECTRON RMP===========,9110183467,1,"4,140.00",REPAIR & MAINTENANCE,09/07/12,"4,140.00"
050712E,CARPETS & FLOOR COVERS DIRECT=,979,1,"1,860.20",FIXTURES & FITTINGS,09/07/12,"1,860.20"
050712E,CARPETS & FLOOR COVERS DIRECT=,980,1,"4,953.33",FIXTURES & FITTINGS,09/07/12,"4,953.33"
040712E,THAMES WATER UTILITIES LTD====,CBA1208008,1,"1,082.00",CURRENT HYDRANT COSTS,09/07/12,"1,082.00"
040712E,THAMES WATER UTILITIES LTD====,CBA1208010,1,"1,082.00",HYDRANTS,09/07/12,"1,082.00"
040712E,THAMES WATER UTILITIES LTD====,CBA1208012,1,"1,082.00",HYDRANTS,09/07/12,"1,082.00"
040712E,THAMES WATER UTILITIES LTD====,CBA1208013,1,"1,015.00",HYDRANTS,09/07/12,"1,015.00"
040712E,THAMES WATER UTILITIES LTD====,CBA1208014,1,"1,082.00",HYDRANTS,09/07/12,"1,082.00"
040712E,THAMES WATER UTILITIES LTD====,CBA1208016,1,"1,082.00",HYDRANTS,09/07/12,"1,082.00"
040712E,THAMES WATER UTILITIES LTD====,CBA1208017,1,"1,082.00",CURRENT HYDRANT COSTS,09/07/12,"1,082.00"
040712E,THAMES WATER UTILITIES LTD====,CBA1208019,1,"1,082.00",CURRENT HYDRANT COSTS,09/07/12,"1,082.00"
040712E,THAMES WATER UTILITIES LTD====,CBA1208020,1,"1,082.00",CURRENT HYDRANT COSTS,09/07/12,"1,082.00"
040712E,THAMES WATER UTILITIES LTD====,CBA1208021,1,"1,082.00",CURRENT HYDRANT COSTS,09/07/12,"1,082.00"
040712E,THAMES WATER UTILITIES LTD====,CBA1208023,1,"1,082.00",CURRENT HYDRANT COSTS,09/07/12,"1,082.00"
040712E,THAMES WATER UTILITIES LTD====,CBA1208039,1,"1,800.00",CURRENT HYDRANT COSTS,09/07/12,"1,800.00"
040712E,THAMES WATER UTILITIES LTD====,CBA1208041,1,"1,082.00",CURRENT HYDRANT COSTS,09/07/12,"1,082.00"
040712E,THAMES WATER UTILITIES LTD====,CBA1208047,1,"1,082.00",CURRENT HYDRANT COSTS,09/07/12,"1,082.00"
040712E,THAMES WATER UTILITIES LTD====,CBA1208048,1,"1,082.00",CURRENT HYDRANT COSTS,09/07/12,"1,082.00"
040712E,THAMES WATER UTILITIES LTD====,CBA1208053,1,"1,082.00",CURRENT HYDRANT COSTS,09/07/12,"1,082.00"
040712E,THAMES WATER UTILITIES LTD====,CBA1208054,1,"1,082.00",CURRENT HYDRANT COSTS,09/07/12,"1,082.00"
040712E,THAMES WATER UTILITIES LTD====,CBA1208090,1,"1,082.00",CURRENT HYDRANT COSTS,09/07/12,"1,082.00"
040712E,THAMES WATER UTILITIES LTD====,CBA1208091,1,"1,082.00",CURRENT HYDRANT COSTS,09/07/12,"1,082.00"
040712E,THAMES WATER UTILITIES LTD====,CBA1208092,1,"1,082.00",CURRENT HYDRANT COSTS,09/07/12,"1,082.00"
040712E,THAMES WATER UTILITIES LTD====,CBA1208093,1,"1,082.00",CURRENT HYDRANT COSTS,09/07/12,"1,082.00"
040712E,THAMES WATER UTILITIES LTD====,CBA1208094,1,"1,082.00",CURRENT HYDRANT COSTS,09/07/12,"1,082.00"
040712E,THAMES WATER UTILITIES LTD====,CBA1208095,1,"1,082.00",CURRENT HYDRANT COSTS,09/07/12,"1,082.00"
040712E,THAMES WATER UTILITIES LTD====,CBA1208096,1,"1,082.00",CURRENT HYDRANT COSTS,09/07/12,"1,082.00"
040712E,THAMES WATER UTILITIES LTD====,CBA1208107,1,"1,082.00",CURRENT HYDRANT COSTS,09/07/12,"1,082.00"
040712E,THAMES WATER UTILITIES LTD====,CBA1208109,1,"1,082.00",CURRENT HYDRANT COSTS,09/07/12,"1,082.00"
040712G,T W KEMPTON-CORPORATE CLOTHING,INV75623,1,273.00,UNIFORMS - POMS,09/07/12,"2,019.50"
040712G,T W KEMPTON-CORPORATE CLOTHING,INV75623,2,427.50,UNIFORMS - POMS,09/07/12,
040712G,T W KEMPTON-CORPORATE CLOTHING,INV75623,3,119.50,UNIFORMS - POMS,09/07/12,
040712G,T W KEMPTON-CORPORATE CLOTHING,INV75623,4,239.00,UNIFORMS - POMS,09/07/12,
040712G,T W KEMPTON-CORPORATE CLOTHING,INV75623,5,358.50,UNIFORMS - POMS,09/07/12,
040712G,T W KEMPTON-CORPORATE CLOTHING,INV75623,6,297.00,UNIFORMS - POMS,09/07/12,
040712G,T W KEMPTON-CORPORATE CLOTHING,INV75623,7,305.00,UNIFORMS - POMS,09/07/12,
260612C,SKYGUARD LTD,SI01117621,1,"1,085.00",GENERAL,09/07/12,"1,085.00"
050712E,T BROWN GROUP LTD,SI10000233,1,"8,739.00",STRATEGIC (NON CYCLICAL),09/07/12,"8,739.00"
050712E,LONDON PENSIONS FUND AUTHORITY,VAB134,1,"65,925.79",PENSION SERVICES,09/07/12,"65,925.79"
060712E,JEWERS SPECIALIST DOORS=======,0000003595,1,950.00,STRATEGIC (NON CYCLICAL),12/07/12,950.00
060712E,JEWERS SPECIALIST DOORS=======,0000008594,1,950.00,STRATEGIC (NON CYCLICAL),12/07/12,950.00
139763,ROYAL GARDEN HOTEL(JERSEY) LTD,00004,1,"1,500.00",RENTS,12/07/12,"1,500.00"
139762,OGILVIE FLEET LTD=============,00198050,1,"3,034.60",LEASE CAR CHARGES,12/07/12,"4,211.52"
139762,OGILVIE FLEET LTD=============,00198050,2,"1,176.92",P/PAYMTS-CAR LEASG-RENTAL,12/07/12,
139762,OGILVIE FLEET LTD=============,00198050,3,-356.20,VAT CAR LEASING,12/07/12,
139762,OGILVIE FLEET LTD=============,00198050,4,356.20,LEASE CAR CHARGES,12/07/12,
260612E,*SPRUE SAFETY PRODUCTS LTD====,1034302,1,758.40,FIRE DETECTORS,12/07/12,758.40
260612E,*SPRUE SAFETY PRODUCTS LTD====,1034303,1,"1,137.60",FIRE DETECTORS,12/07/12,"1,137.60"
260612E,*SPRUE SAFETY PRODUCTS LTD====,1034305,1,"2,275.20",FIRE DETECTORS,12/07/12,"2,275.20"
100712F,*SPRUE SAFETY PRODUCTS LTD====,1034306,1,"2,275.20",FIRE DETECTORS,12/07/12,"2,275.20"
040712G,*SPRUE SAFETY PRODUCTS LTD====,1034307,1,"2,275.20",FIRE DETECTORS,12/07/12,"2,275.20"
040712G,*SPRUE SAFETY PRODUCTS LTD====,1034308,1,"1,137.60",FIRE DETECTORS,12/07/12,"1,137.60"
260612E,*SPRUE SAFETY PRODUCTS LTD====,1034309,1,"2,275.20",FIRE DETECTORS,12/07/12,"2,275.20"
040712G,*SPRUE SAFETY PRODUCTS LTD====,1034310,1,"1,137.60",FIRE DETECTORS,12/07/12,"1,137.60"
040712G,*SPRUE SAFETY PRODUCTS LTD====,1034311,1,"2,275.20",FIRE DETECTORS,12/07/12,"2,275.20"
260612E,*SPRUE SAFETY PRODUCTS LTD====,1034312,1,"2,275.20",FIRE DETECTORS,12/07/12,"2,275.20"
040712G,*SPRUE SAFETY PRODUCTS LTD====,1034313,1,"1,137.60",FIRE DETECTORS,12/07/12,"1,137.60"
040712G,*SPRUE SAFETY PRODUCTS LTD====,1034317,1,"2,275.20",FIRE DETECTORS,12/07/12,"2,275.20"
260612E,*SPRUE SAFETY PRODUCTS LTD====,1034318,1,"1,137.60",FIRE DETECTORS,12/07/12,"1,137.60"
040712G,*SPRUE SAFETY PRODUCTS LTD====,1034319,1,"1,137.60",FIRE DETECTORS,12/07/12,"1,137.60"
040712G,*SPRUE SAFETY PRODUCTS LTD====,1034320,1,"2,275.20",FIRE DETECTORS,12/07/12,"2,275.20"
100712F,*SPRUE SAFETY PRODUCTS LTD====,1034321,1,"2,275.20",FIRE DETECTORS,12/07/12,"2,275.20"
260612E,*SPRUE SAFETY PRODUCTS LTD====,1034322,1,"1,137.60",FIRE DETECTORS,12/07/12,"1,137.60"
260612E,*SPRUE SAFETY PRODUCTS LTD====,1034323,1,"2,275.20",FIRE DETECTORS,12/07/12,"2,275.20"
260612E,*SPRUE SAFETY PRODUCTS LTD====,1034324,1,"1,137.60",FIRE DETECTORS,12/07/12,"1,137.60"
040712G,*SPRUE SAFETY PRODUCTS LTD====,1034325,1,"1,137.60",FIRE DETECTORS,12/07/12,"1,137.60"
260612E,*SPRUE SAFETY PRODUCTS LTD====,1034326,1,"1,137.60",FIRE DETECTORS,12/07/12,"1,137.60"
800011282,*NPS (SHOES) LTD,10522,1,30.05,CLOTHING,12/07/12,"1,913.25"
800011282,*NPS (SHOES) LTD,10522,2,30.05,CLOTHING,12/07/12,
800011282,*NPS (SHOES) LTD,10522,3,30.05,CLOTHING,12/07/12,
800011282,*NPS (SHOES) LTD,10522,4,30.05,CLOTHING,12/07/12,
800011282,*NPS (SHOES) LTD,10522,5,30.05,CLOTHING,12/07/12,
800011282,*NPS (SHOES) LTD,10522,6,28.45,CLOTHING,12/07/12,
800011282,*NPS (SHOES) LTD,10522,7,28.45,CLOTHING,12/07/12,
800011282,*NPS (SHOES) LTD,10522,8,29.45,CLOTHING,12/07/12,
800011282,*NPS (SHOES) LTD,10522,9,29.45,CLOTHING,12/07/12,
800011282,*NPS (SHOES) LTD,10522,10,29.45,CLOTHING,12/07/12,
800011282,*NPS (SHOES) LTD,10522,11,29.45,CLOTHING,12/07/12,
800011282,*NPS (SHOES) LTD,10522,12,29.45,CLOTHING,12/07/12,
800011282,*NPS (SHOES) LTD,10522,13,29.45,CLOTHING,12/07/12,
800011282,*NPS (SHOES) LTD,10522,14,29.45,CLOTHING,12/07/12,
800011282,*NPS (SHOES) LTD,10522,15,29.45,CLOTHING,12/07/12,
800011282,*NPS (SHOES) LTD,10522,16,29.45,CLOTHING,12/07/12,
800011282,*NPS (SHOES) LTD,10522,17,29.45,CLOTHING,12/07/12,
800011282,*NPS (SHOES) LTD,10522,18,29.45,CLOTHING,12/07/12,
800011282,*NPS (SHOES) LTD,10522,19,29.45,CLOTHING,12/07/12,
800011282,*NPS (SHOES) LTD,10522,20,29.45,CLOTHING,12/07/12,
800011282,*NPS (SHOES) LTD,10522,21,29.45,CLOTHING,12/07/12,
800011282,*NPS (SHOES) LTD,10522,22,29.45,CLOTHING,12/07/12,
800011282,*NPS (SHOES) LTD,10522,23,29.45,CLOTHING,12/07/12,
800011282,*NPS (SHOES) LTD,10522,24,29.45,CLOTHING,12/07/12,
800011282,*NPS (SHOES) LTD,10522,25,28.45,CLOTHING,12/07/12,
800011282,*NPS (SHOES) LTD,10522,26,28.45,CLOTHING,12/07/12,
800011282,*NPS (SHOES) LTD,10522,27,29.45,CLOTHING,12/07/12,
800011282,*NPS (SHOES) LTD,10522,28,29.45,CLOTHING,12/07/12,
800011282,*NPS (SHOES) LTD,10522,29,29.45,CLOTHING,12/07/12,
800011282,*NPS (SHOES) LTD,10522,30,29.45,CLOTHING,12/07/12,
800011282,*NPS (SHOES) LTD,10522,31,29.45,CLOTHING,12/07/12,
800011282,*NPS (SHOES) LTD,10522,32,29.45,CLOTHING,12/07/12,
800011282,*NPS (SHOES) LTD,10522,33,29.45,CLOTHING,12/07/12,
800011282,*NPS (SHOES) LTD,10522,34,29.45,CLOTHING,12/07/12,
800011282,*NPS (SHOES) LTD,10522,35,29.45,CLOTHING,12/07/12,
800011282,*NPS (SHOES) LTD,10522,36,29.45,CLOTHING,12/07/12,
800011282,*NPS (SHOES) LTD,10522,37,29.45,CLOTHING,12/07/12,
800011282,*NPS (SHOES) LTD,10522,38,29.45,CLOTHING,12/07/12,
800011282,*NPS (SHOES) LTD,10522,39,29.45,CLOTHING,12/07/12,
800011282,*NPS (SHOES) LTD,10522,40,29.45,CLOTHING,12/07/12,
800011282,*NPS (SHOES) LTD,10522,41,29.45,CLOTHING,12/07/12,
800011282,*NPS (SHOES) LTD,10522,42,29.45,CLOTHING,12/07/12,
800011282,*NPS (SHOES) LTD,10522,43,29.45,CLOTHING,12/07/12,
800011282,*NPS (SHOES) LTD,10522,44,29.45,CLOTHING,12/07/12,
800011282,*NPS (SHOES) LTD,10522,45,29.45,CLOTHING,12/07/12,
800011282,*NPS (SHOES) LTD,10522,46,29.45,CLOTHING,12/07/12,
800011282,*NPS (SHOES) LTD,10522,47,29.45,CLOTHING,12/07/12,
800011282,*NPS (SHOES) LTD,10522,48,29.45,CLOTHING,12/07/12,
800011282,*NPS (SHOES) LTD,10522,49,29.45,CLOTHING,12/07/12,
800011282,*NPS (SHOES) LTD,10522,50,29.45,CLOTHING,12/07/12,
800011282,*NPS (SHOES) LTD,10522,51,29.45,CLOTHING,12/07/12,
800011282,*NPS (SHOES) LTD,10522,52,29.45,CLOTHING,12/07/12,
800011282,*NPS (SHOES) LTD,10522,53,29.45,CLOTHING,12/07/12,
800011282,*NPS (SHOES) LTD,10522,54,29.45,CLOTHING,12/07/12,
800011282,*NPS (SHOES) LTD,10522,55,29.45,CLOTHING,12/07/12,
800011282,*NPS (SHOES) LTD,10522,56,29.45,CLOTHING,12/07/12,
800011282,*NPS (SHOES) LTD,10522,57,29.45,CLOTHING,12/07/12,
800011282,*NPS (SHOES) LTD,10522,58,29.45,CLOTHING,12/07/12,
800011282,*NPS (SHOES) LTD,10522,59,29.45,CLOTHING,12/07/12,
800011282,*NPS (SHOES) LTD,10522,60,29.45,CLOTHING,12/07/12,
800011282,*NPS (SHOES) LTD,10522,61,29.45,CLOTHING,12/07/12,
800011282,*NPS (SHOES) LTD,10522,62,29.45,CLOTHING,12/07/12,
800011282,*NPS (SHOES) LTD,10522,63,29.45,CLOTHING,12/07/12,
800011282,*NPS (SHOES) LTD,10522,64,29.45,CLOTHING,12/07/12,
800011282,*NPS (SHOES) LTD,10522,65,29.45,CLOTHING,12/07/12,
060712E,A M SLASKI====================,1064,1,"1,947.00",PROFESSIONAL SERVICES,12/07/12,"1,947.00"
060712E,A M SLASKI====================,1065,1,"2,767.00",PROFESSIONAL SERVICES,12/07/12,"2,767.00"
100712F,KIER BUILDING SERV ENGINEERS==,11120657,1,"35,160.64",TACTICAL DAY TO DAY,12/07/12,"72,655.30"
100712F,KIER BUILDING SERV ENGINEERS==,11120657,2,519.71,TACTICAL DAY TO DAY,12/07/12,
100712F,KIER BUILDING SERV ENGINEERS==,11120657,3,"1,733.59",TACTICAL DAY TO DAY,12/07/12,
100712F,KIER BUILDING SERV ENGINEERS==,11120657,4,"1,869.76",TACTICAL DAY TO DAY,12/07/12,
100712F,KIER BUILDING SERV ENGINEERS==,11120657,5,"24,932.82",STRATEGIC (CYCLICAL),12/07/12,
100712F,KIER BUILDING SERV ENGINEERS==,11120657,6,844.26,STRATEGIC (CYCLICAL),12/07/12,
100712F,KIER BUILDING SERV ENGINEERS==,11120657,7,"1,554.90",STRATEGIC (CYCLICAL),12/07/12,
100712F,KIER BUILDING SERV ENGINEERS==,11120657,8,"6,039.62",STRATEGIC (CYCLICAL),12/07/12,
139763,HYMANS ROBERTSON==============,1193303,1,"5,900.00",PENSION SERVICES,12/07/12,"5,900.00"
260612C,HOTSEAT=======================,1287,1,"1,525.00",TRAINING & CONFERENCES,12/07/12,"1,525.00"
060712E,RESPIREX======================,138872,1,142.98,REPAIR & MAINTENANCE,12/07/12,693.63
060712E,RESPIREX======================,138872,2,133.98,REPAIR & MAINTENANCE,12/07/12,
060712E,RESPIREX======================,138872,3,45.67,REPAIR & MAINTENANCE,12/07/12,
060712E,RESPIREX======================,138872,4,133.98,REPAIR & MAINTENANCE,12/07/12,
060712E,RESPIREX======================,138872,5,237.02,REPAIR & MAINTENANCE,12/07/12,
060712E,RESPIREX======================,138881,1,"1,000.00",PROTECTIVE EQUIPMENT,12/07/12,"1,000.00"
139762,EDF ENERGY===================,1785676822,1,"1,114.25",ELECTRICITY,12/07/12,"1,114.25"
139762,EDF ENERGY===================,1785907921,1,"3,590.73",ELECTRICITY,12/07/12,"3,590.73"
139762,EDF ENERGY===================,1786209522,1,"8,477.08",ELECTRICITY,12/07/12,"8,477.08"
139762,EDF ENERGY===================,1786484422,1,354.81,ELECTRICITY,12/07/12,"3,548.06"
139762,EDF ENERGY===================,1786484422,2,"3,193.25",ELECTRICITY,12/07/12,
139762,EDF ENERGY===================,1793376219,1,"8,493.36",ELECTRICITY,12/07/12,"8,493.36"
139762,EDF ENERGY===================,1813823612,1,"15,125.97",ELECTRICITY,12/07/12,"15,125.97"
050712E,STORM TECHNOLOGIES============,187347,1,930.00,ACQUISITIONS,12/07/12,930.00
139761,THAMES WATER UTILITIES LTD====,1896601041H,1,932.38,WATER & SEWERAGE RATES,12/07/12,932.38
139763,LFB WELFARE FUND==============,2012/2013,1,"4,453.50",DONATIONS,12/07/12,"4,453.50"
260612C,ENERGY AUDITING AGENCY LTD====,20128083,1,550.00,PROFESSIONAL SERVICES,12/07/12,550.00
090712E,ASH CARPET CENTRE=============,2016,1,"1,320.00",GENERAL CONSUMABLES,12/07/12,"1,320.00"
090712G,FALDER MATTHEWS T/A FM PRINT==,20537-1,1,"3,600.00",PRINTING,12/07/12,"3,600.00"
100712F,DRAIN CONTROL=================,21724,1,900.00,STRATEGIC (CYCLICAL),12/07/12,900.00
100712F,DRAIN CONTROL=================,21725,1,900.00,STRATEGIC (CYCLICAL),12/07/12,900.00
060712E,ARKAS LIMITED=================,22331,1,"2,252.00",STRATEGIC (NON CYCLICAL),12/07/12,"2,252.00"
060712E,ARKAS LIMITED=================,22359,1,114.00,STRATEGIC (CYCLICAL),12/07/12,"4,391.35"
060712E,ARKAS LIMITED=================,22359,2,237.51,STRATEGIC (CYCLICAL),12/07/12,
060712E,ARKAS LIMITED=================,22359,3,199.50,STRATEGIC (CYCLICAL),12/07/12,
060712E,ARKAS LIMITED=================,22359,4,843.00,STRATEGIC (CYCLICAL),12/07/12,
060712E,ARKAS LIMITED=================,22359,5,101.80,STRATEGIC (CYCLICAL),12/07/12,
060712E,ARKAS LIMITED=================,22359,6,85.00,STRATEGIC (CYCLICAL),12/07/12,
060712E,ARKAS LIMITED=================,22359,7,93.84,STRATEGIC (CYCLICAL),12/07/12,
060712E,ARKAS LIMITED=================,22359,8,236.59,STRATEGIC (CYCLICAL),12/07/12,
060712E,ARKAS LIMITED=================,22359,9,177.52,STRATEGIC (CYCLICAL),12/07/12,
060712E,ARKAS LIMITED=================,22359,10,207.90,STRATEGIC (CYCLICAL),12/07/12,
060712E,ARKAS LIMITED=================,22359,11,294.00,STRATEGIC (CYCLICAL),12/07/12,
060712E,ARKAS LIMITED=================,22359,12,85.00,STRATEGIC (CYCLICAL),12/07/12,
060712E,ARKAS LIMITED=================,22359,13,872.23,STRATEGIC (CYCLICAL),12/07/12,
060712E,ARKAS LIMITED=================,22359,14,131.54,STRATEGIC (CYCLICAL),12/07/12,
060712E,ARKAS LIMITED=================,22359,15,71.25,STRATEGIC (CYCLICAL),12/07/12,
060712E,ARKAS LIMITED=================,22359,16,152.00,STRATEGIC (CYCLICAL),12/07/12,
060712E,ARKAS LIMITED=================,22359,17,85.50,STRATEGIC (CYCLICAL),12/07/12,
060712E,ARKAS LIMITED=================,22359,18,314.28,STRATEGIC (CYCLICAL),12/07/12,
060712E,ARKAS LIMITED=================,22359,19,88.89,STRATEGIC (CYCLICAL),12/07/12,
060712E,ARKAS LIMITED=================,22360,1,223.24,STRATEGIC (CYCLICAL),12/07/12,"3,577.35"
060712E,ARKAS LIMITED=================,22360,2,153.61,STRATEGIC (CYCLICAL),12/07/12,
060712E,ARKAS LIMITED=================,22360,3,185.00,STRATEGIC (CYCLICAL),12/07/12,
060712E,ARKAS LIMITED=================,22360,4,99.75,STRATEGIC (CYCLICAL),12/07/12,
060712E,ARKAS LIMITED=================,22360,5,299.25,STRATEGIC (CYCLICAL),12/07/12,
060712E,ARKAS LIMITED=================,22360,6,211.00,STRATEGIC (CYCLICAL),12/07/12,
060712E,ARKAS LIMITED=================,22360,7,789.00,STRATEGIC (CYCLICAL),12/07/12,
060712E,ARKAS LIMITED=================,22360,8,114.00,STRATEGIC (CYCLICAL),12/07/12,
060712E,ARKAS LIMITED=================,22360,9,85.50,STRATEGIC (CYCLICAL),12/07/12,
060712E,ARKAS LIMITED=================,22360,10,185.25,STRATEGIC (CYCLICAL),12/07/12,
060712E,ARKAS LIMITED=================,22360,11,234.96,STRATEGIC (CYCLICAL),12/07/12,
060712E,ARKAS LIMITED=================,22360,12,194.28,STRATEGIC (CYCLICAL),12/07/12,
060712E,ARKAS LIMITED=================,22360,13,266.73,STRATEGIC (CYCLICAL),12/07/12,
060712E,ARKAS LIMITED=================,22360,14,114.00,STRATEGIC (CYCLICAL),12/07/12,
060712E,ARKAS LIMITED=================,22360,15,174.73,STRATEGIC (CYCLICAL),12/07/12,
060712E,ARKAS LIMITED=================,22360,16,57.00,STRATEGIC (CYCLICAL),12/07/12,
060712E,ARKAS LIMITED=================,22360,17,190.05,STRATEGIC (CYCLICAL),12/07/12,
060712E,ARKAS LIMITED=================,22361,1,537.00,STRATEGIC (CYCLICAL),12/07/12,"1,054.70"
060712E,ARKAS LIMITED=================,22361,2,432.20,STRATEGIC (CYCLICAL),12/07/12,
060712E,ARKAS LIMITED=================,22361,3,85.50,STRATEGIC (CYCLICAL),12/07/12,
060712E,ARKAS LIMITED=================,22362,1,290.71,STRATEGIC (CYCLICAL),12/07/12,"3,230.64"
060712E,ARKAS LIMITED=================,22362,2,57.00,STRATEGIC (CYCLICAL),12/07/12,
060712E,ARKAS LIMITED=================,22362,3,107.76,STRATEGIC (CYCLICAL),12/07/12,
060712E,ARKAS LIMITED=================,22362,4,207.84,STRATEGIC (CYCLICAL),12/07/12,
060712E,ARKAS LIMITED=================,22362,5,187.30,STRATEGIC (CYCLICAL),12/07/12,
060712E,ARKAS LIMITED=================,22362,6,211.14,STRATEGIC (CYCLICAL),12/07/12,
060712E,ARKAS LIMITED=================,22362,7,221.10,STRATEGIC (CYCLICAL),12/07/12,
060712E,ARKAS LIMITED=================,22362,8,647.65,STRATEGIC (CYCLICAL),12/07/12,
060712E,ARKAS LIMITED=================,22362,9,128.12,STRATEGIC (CYCLICAL),12/07/12,
060712E,ARKAS LIMITED=================,22362,10,71.25,STRATEGIC (CYCLICAL),12/07/12,
060712E,ARKAS LIMITED=================,22362,11,71.25,STRATEGIC (CYCLICAL),12/07/12,
060712E,ARKAS LIMITED=================,22362,12,117.25,STRATEGIC (CYCLICAL),12/07/12,
060712E,ARKAS LIMITED=================,22362,13,912.27,STRATEGIC (CYCLICAL),12/07/12,
090712E,ARKAS LIMITED=================,22367,1,190.00,STRATEGIC (CYCLICAL),12/07/12,"1,384.69"
090712E,ARKAS LIMITED=================,22367,2,340.43,STRATEGIC (CYCLICAL),12/07/12,
090712E,ARKAS LIMITED=================,22367,3,275.50,STRATEGIC (CYCLICAL),12/07/12,
090712E,ARKAS LIMITED=================,22367,4,578.76,STRATEGIC (CYCLICAL),12/07/12,
090712E,ARKAS LIMITED=================,22368,1,161.50,STRATEGIC (CYCLICAL),12/07/12,"1,173.25"
090712E,ARKAS LIMITED=================,22368,2,190.00,STRATEGIC (CYCLICAL),12/07/12,
090712E,ARKAS LIMITED=================,22368,3,517.75,STRATEGIC (CYCLICAL),12/07/12,
090712E,ARKAS LIMITED=================,22368,4,304.00,STRATEGIC (CYCLICAL),12/07/12,
090712E,ARKAS LIMITED=================,22369,1,363.11,STRATEGIC (CYCLICAL),12/07/12,"1,657.74"
090712E,ARKAS LIMITED=================,22369,2,304.00,STRATEGIC (CYCLICAL),12/07/12,
090712E,ARKAS LIMITED=================,22369,3,161.50,STRATEGIC (CYCLICAL),12/07/12,
090712E,ARKAS LIMITED=================,22369,4,829.13,STRATEGIC (CYCLICAL),12/07/12,
090712E,ARKAS LIMITED=================,22370,1,218.50,STRATEGIC (CYCLICAL),12/07/12,"1,146.02"
090712E,ARKAS LIMITED=================,22370,2,339.45,STRATEGIC (CYCLICAL),12/07/12,
090712E,ARKAS LIMITED=================,22370,3,398.07,STRATEGIC (CYCLICAL),12/07/12,
090712E,ARKAS LIMITED=================,22370,4,190.00,STRATEGIC (CYCLICAL),12/07/12,
090712E,ARKAS LIMITED=================,22371,1,175.75,STRATEGIC (CYCLICAL),12/07/12,"1,533.87"
090712E,ARKAS LIMITED=================,22371,2,978.12,STRATEGIC (CYCLICAL),12/07/12,
090712E,ARKAS LIMITED=================,22371,3,190.00,STRATEGIC (CYCLICAL),12/07/12,
090712E,ARKAS LIMITED=================,22371,4,190.00,STRATEGIC (CYCLICAL),12/07/12,
090712E,ARKAS LIMITED=================,22372,1,275.50,STRATEGIC (CYCLICAL),12/07/12,"1,019.38"
090712E,ARKAS LIMITED=================,22372,2,192.88,STRATEGIC (CYCLICAL),12/07/12,
090712E,ARKAS LIMITED=================,22372,3,389.50,STRATEGIC (CYCLICAL),12/07/12,
090712E,ARKAS LIMITED=================,22372,4,161.50,STRATEGIC (CYCLICAL),12/07/12,
090712E,ARKAS LIMITED=================,22373,1,398.73,TACTICAL DAY TO DAY,12/07/12,"1,262.22"
090712E,ARKAS LIMITED=================,22373,2,161.50,STRATEGIC (CYCLICAL),12/07/12,
090712E,ARKAS LIMITED=================,22373,3,304.00,STRATEGIC (CYCLICAL),12/07/12,
090712E,ARKAS LIMITED=================,22373,4,397.99,STRATEGIC (CYCLICAL),12/07/12,
090712E,ARKAS LIMITED=================,22374,1,204.25,STRATEGIC (CYCLICAL),12/07/12,849.74
090712E,ARKAS LIMITED=================,22374,2,218.50,STRATEGIC (CYCLICAL),12/07/12,
090712E,ARKAS LIMITED=================,22374,3,222.74,STRATEGIC (CYCLICAL),12/07/12,
090712E,ARKAS LIMITED=================,22374,4,204.25,STRATEGIC (CYCLICAL),12/07/12,
090712E,ARKAS LIMITED=================,22375,1,175.75,STRATEGIC (CYCLICAL),12/07/12,760.00
090712E,ARKAS LIMITED=================,22375,2,161.50,STRATEGIC (CYCLICAL),12/07/12,
090712E,ARKAS LIMITED=================,22375,3,204.25,STRATEGIC (CYCLICAL),12/07/12,
090712E,ARKAS LIMITED=================,22375,4,218.50,STRATEGIC (CYCLICAL),12/07/12,
090712E,ARKAS LIMITED=================,22376,1,190.00,STRATEGIC (CYCLICAL),12/07/12,"1,077.06"
090712E,ARKAS LIMITED=================,22376,2,234.53,STRATEGIC (CYCLICAL),12/07/12,
090712E,ARKAS LIMITED=================,22376,3,462.53,STRATEGIC (CYCLICAL),12/07/12,
090712E,ARKAS LIMITED=================,22376,4,190.00,STRATEGIC (CYCLICAL),12/07/12,
090712E,ARKAS LIMITED=================,22377,1,225.41,STRATEGIC (CYCLICAL),12/07/12,"1,441.43"
090712E,ARKAS LIMITED=================,22377,2,161.50,STRATEGIC (CYCLICAL),12/07/12,
090712E,ARKAS LIMITED=================,22377,3,304.62,STRATEGIC (CYCLICAL),12/07/12,
090712E,ARKAS LIMITED=================,22377,4,749.90,TACTICAL DAY TO DAY,12/07/12,
090712E,ARKAS LIMITED=================,22378,1,261.25,STRATEGIC (CYCLICAL),12/07/12,"1,261.32"
090712E,ARKAS LIMITED=================,22378,2,434.82,STRATEGIC (CYCLICAL),12/07/12,
090712E,ARKAS LIMITED=================,22378,3,318.25,STRATEGIC (CYCLICAL),12/07/12,
090712E,ARKAS LIMITED=================,22378,4,247.00,STRATEGIC (CYCLICAL),12/07/12,
090712E,ARKAS LIMITED=================,22379,1,318.25,STRATEGIC (CYCLICAL),12/07/12,"2,068.01"
090712E,ARKAS LIMITED=================,22379,2,844.88,STRATEGIC (CYCLICAL),12/07/12,
090712E,ARKAS LIMITED=================,22379,3,429.88,STRATEGIC (CYCLICAL),12/07/12,
090712E,ARKAS LIMITED=================,22379,4,475.00,STRATEGIC (CYCLICAL),12/07/12,
060712E,ARKAS LIMITED=================,22423,1,"2,708.00",STRATEGIC (NON CYCLICAL),12/07/12,"2,708.00"
060712E,ARKAS LIMITED=================,22440,1,931.00,TACTICAL DAY TO DAY,12/07/12,"1,113.00"
060712E,ARKAS LIMITED=================,22440,2,182.00,TACTICAL DAY TO DAY,12/07/12,
060712E,ARKAS LIMITED=================,22441,1,"1,862.00",STRATEGIC (CYCLICAL),12/07/12,"1,862.00"
060712E,ARKAS LIMITED=================,22460,1,"15,178.67",STRATEGIC (CYCLICAL),12/07/12,"15,178.67"
060712E,KNIGHTON CLEANING SERVICES LTD,24868,1,"1,267.31",HYGIENE,12/07/12,"1,267.31"
260612C,COMPUTACENTRE================,3700728830,1,542.82,MAINTENANCE & SUPPORT,12/07/12,542.82
050712E,COMPUTACENTRE================,3700729229,1,570.00,ACQUISITIONS,12/07/12,570.00
060712E,SMART WATERCOOLERS LTD========,44185,1,861.04,CATERING FIXTURES,12/07/12,"2,931.20"
060712E,SMART WATERCOOLERS LTD========,44185,2,879.36,CATERING FIXTURES,12/07/12,
060712E,SMART WATERCOOLERS LTD========,44185,3,"1,007.60",CATERING FIXTURES,12/07/12,
060712E,SMART WATERCOOLERS LTD========,44185,4,18.32,CATERING EQUIPMENT,12/07/12,
060712E,SMART WATERCOOLERS LTD========,44185,5,36.64,CATERING EQUIPMENT,12/07/12,
060712E,SMART WATERCOOLERS LTD========,44185,6,18.32,CATERING EQUIPMENT,12/07/12,
060712E,SMART WATERCOOLERS LTD========,44185,7,18.32,OFFICE EQUIPMENT,12/07/12,
060712E,SMART WATERCOOLERS LTD========,44185,8,18.32,STATIONERY CONSUMABLES,12/07/12,
060712E,SMART WATERCOOLERS LTD========,44185,9,18.32,REFRESHMENTS,12/07/12,
060712E,SMART WATERCOOLERS LTD========,44185,10,18.32,CATERING EQUIPMENT,12/07/12,
060712E,SMART WATERCOOLERS LTD========,44185,11,18.32,CATERING EQUIPMENT,12/07/12,
060712E,SMART WATERCOOLERS LTD========,44185,12,18.32,RADIO,12/07/12,
090712G,OPERATIONAL RESEARCH IN HEALTH,45W/LFBA/22,1,"13,141.67",PROFESSIONAL SERVICES,12/07/12,"13,141.67"
090712E,DISCLOSURE SCOTLAND===========,471268,1,650.00,CRB CHECKS,12/07/12,650.00
100712F,GRANT THORNTON UK,6656816,1,"20,615.93",PROFESSIONAL SERVICES,12/07/12,"20,615.93"
060712E,MOORE STEPHENS CONSULTING LTD=,672942,1,"39,175.00",MAINTENANCE & SUPPORT,12/07/12,"39,175.00"
060712E,MOORE STEPHENS CONSULTING LTD=,672944,1,"1,000.00",OPERATIONAL EQUIP-PURCHASE,12/07/12,"1,000.00"
060712E,CANON (UK) LTD===============,770357764,1,42.48,OFFICE EQUIPMENT,12/07/12,"2,066.28"
060712E,CANON (UK) LTD===============,770357764,2,142.91,OFFICE EQUIPMENT,12/07/12,
060712E,CANON (UK) LTD===============,770357764,3,142.91,OFFICE EQUIPMENT,12/07/12,
060712E,CANON (UK) LTD===============,770357764,4,142.91,OFFICE EQUIPMENT,12/07/12,
060712E,CANON (UK) LTD===============,770357764,5,142.91,OFFICE EQUIPMENT,12/07/12,
060712E,CANON (UK) LTD===============,770357764,6,183.16,OFFICE EQUIPMENT,12/07/12,
060712E,CANON (UK) LTD===============,770357764,7,183.16,OFFICE EQUIPMENT,12/07/12,
060712E,CANON (UK) LTD===============,770357764,8,271.46,OFFICE EQUIPMENT,12/07/12,
060712E,CANON (UK) LTD===============,770357764,9,271.46,OFFICE EQUIPMENT,12/07/12,
060712E,CANON (UK) LTD===============,770357764,10,271.46,OFFICE EQUIPMENT,12/07/12,
060712E,CANON (UK) LTD===============,770357764,11,271.46,OFFICE EQUIPMENT,12/07/12,
050712E,ORDNANCE SURVEY===============,91496915,1,"2,525.00",MAINTENANCE & SUPPORT,12/07/12,"2,525.00"
060712E,NP AEROSPACE LTD,984696,1,515.18,OPERATIONAL EQUIP-PURCHASE,12/07/12,515.18
060712E,KIER BUILDING SERV ENGINEERS==,F0035761,1,"4,243.01",STRATEGIC (CYCLICAL),12/07/12,"4,243.01"
100712F,FRONTIER PITTS LTD============,H0094079,1,"1,449.00",STRATEGIC (NON CYCLICAL),12/07/12,"1,449.00"
090712G,OUTPERFORM,INV-2012-0059-6120,1,"1,950.00",PROFESSIONAL SERVICES,12/07/12,"1,950.00"
060712E,RSM TENON LTD=================,ITA1340,1,"2,500.00",PROFESSIONAL SERVICES,12/07/12,"2,500.00"
100712F,DET NORSKE VERITAS LTD========,KEUUK222 1190477,1,"61,793.00",PROFESSIONAL SERVICES,12/07/12,"61,793.00"
090712E,BALFOUR BEATTY WORKPLACE LTD,M 114739,1,"26,358.77",TACTICAL DAY TO DAY,12/07/12,"87,835.73"
090712E,BALFOUR BEATTY WORKPLACE LTD,M 114739,2,103.85,TACTICAL DAY TO DAY,12/07/12,
090712E,BALFOUR BEATTY WORKPLACE LTD,M 114739,3,305.00,TACTICAL DAY TO DAY,12/07/12,
090712E,BALFOUR BEATTY WORKPLACE LTD,M 114739,4,"58,517.52",STRATEGIC (CYCLICAL),12/07/12,
090712E,BALFOUR BEATTY WORKPLACE LTD,M 114739,5,219.76,STRATEGIC (CYCLICAL),12/07/12,
090712E,BALFOUR BEATTY WORKPLACE LTD,M 114739,6,558.66,STRATEGIC (CYCLICAL),12/07/12,
090712E,BALFOUR BEATTY WORKPLACE LTD,M 114739,7,"1,772.17",STRATEGIC (CYCLICAL),12/07/12,
020712G,DIO/SECURITY SERVICES GROUP,OP/I106777,1,522.00,OFFICE FURNITURE,12/07/12,522.00
060712G,AQUA GAS AVK LTD==============,PSI45849,1,859.00,GENERAL CONSUMABLES,12/07/12,"2,572.00"
060712G,AQUA GAS AVK LTD==============,PSI45849,2,"1,713.00",GENERAL CONSUMABLES,12/07/12,
260612C,SKYGUARD LTD,SI01117697,1,"1,090.00",GENERAL,12/07/12,"1,090.00"
040712E,T BROWN GROUP LTD,SI10000882,1,"8,250.00",STRATEGIC (NON CYCLICAL),12/07/12,"8,250.00"
040712E,T BROWN GROUP LTD,SI10000883,1,"7,829.71",STRATEGIC (NON CYCLICAL),12/07/12,"7,829.71"
040712E,T BROWN GROUP LTD,SI10000884,1,"8,769.40",STRATEGIC (NON CYCLICAL),12/07/12,"8,769.40"
090712E,CADCORP=======================,SV0016924,1,"8,000.00",MAINTENANCE & SUPPORT,12/07/12,"8,900.00"
090712E,CADCORP=======================,SV0016924,2,900.00,MAINTENANCE & SUPPORT,12/07/12,
060712G,*THOMAS KNEALE & CO LTD,TK2241,1,119.20,CLOTHING,12/07/12,538.80
060712G,*THOMAS KNEALE & CO LTD,TK2241,2,419.60,CLOTHING,12/07/12,
090712E,ACORN BUSINESS SUPPLIES LTD,1/I0020655,1,516.90,OPERATIONAL EQUIP-PURCHASE,14/07/12,516.90
050712E,HAYS ACCOUNTANCY & FINANCE====,1002256550,1,696.00,FRS STAFF AGENCY,14/07/12,696.00
110712E,CARPETS & FLOOR COVERS DIRECT=,1009,1,"1,210.00",FIXTURES & FITTINGS,14/07/12,"1,210.00"
110712E,ALLSTAR BUSINESS SOLUTIONS LTD,1018644716,1,159.05,FUEL,14/07/12,"22,197.51"
110712E,ALLSTAR BUSINESS SOLUTIONS LTD,1018644716,2,125.65,FUEL,14/07/12,
110712E,ALLSTAR BUSINESS SOLUTIONS LTD,1018644716,3,126.49,FUEL,14/07/12,
110712E,ALLSTAR BUSINESS SOLUTIONS LTD,1018644716,4,192.00,FUEL,14/07/12,
110712E,ALLSTAR BUSINESS SOLUTIONS LTD,1018644716,5,243.16,FUEL,14/07/12,
110712E,ALLSTAR BUSINESS SOLUTIONS LTD,1018644716,6,85.69,FUEL,14/07/12,
110712E,ALLSTAR BUSINESS SOLUTIONS LTD,1018644716,7,108.45,FUEL,14/07/12,
110712E,ALLSTAR BUSINESS SOLUTIONS LTD,1018644716,8,269.92,FUEL,14/07/12,
110712E,ALLSTAR BUSINESS SOLUTIONS LTD,1018644716,9,134.17,FUEL,14/07/12,
110712E,ALLSTAR BUSINESS SOLUTIONS LTD,1018644716,10,179.96,FUEL,14/07/12,
110712E,ALLSTAR BUSINESS SOLUTIONS LTD,1018644716,11,229.89,FUEL,14/07/12,
110712E,ALLSTAR BUSINESS SOLUTIONS LTD,1018644716,12,307.88,FUEL,14/07/12,
110712E,ALLSTAR BUSINESS SOLUTIONS LTD,1018644716,13,269.86,FUEL,14/07/12,
110712E,ALLSTAR BUSINESS SOLUTIONS LTD,1018644716,14,292.69,FUEL,14/07/12,
110712E,ALLSTAR BUSINESS SOLUTIONS LTD,1018644716,15,149.54,FUEL,14/07/12,
110712E,ALLSTAR BUSINESS SOLUTIONS LTD,1018644716,16,328.44,FUEL,14/07/12,
110712E,ALLSTAR BUSINESS SOLUTIONS LTD,1018644716,17,159.39,FUEL,14/07/12,
110712E,ALLSTAR BUSINESS SOLUTIONS LTD,1018644716,18,105.16,FUEL,14/07/12,
110712E,ALLSTAR BUSINESS SOLUTIONS LTD,1018644716,19,173.59,FUEL,14/07/12,
110712E,ALLSTAR BUSINESS SOLUTIONS LTD,1018644716,20,119.98,FUEL,14/07/12,
110712E,ALLSTAR BUSINESS SOLUTIONS LTD,1018644716,21,245.72,FUEL,14/07/12,
110712E,ALLSTAR BUSINESS SOLUTIONS LTD,1018644716,22,195.73,FUEL,14/07/12,
110712E,ALLSTAR BUSINESS SOLUTIONS LTD,1018644716,23,188.67,FUEL,14/07/12,
110712E,ALLSTAR BUSINESS SOLUTIONS LTD,1018644716,24,251.08,FUEL,14/07/12,
110712E,ALLSTAR BUSINESS SOLUTIONS LTD,1018644716,25,295.83,FUEL,14/07/12,
110712E,ALLSTAR BUSINESS SOLUTIONS LTD,1018644716,26,146.41,FUEL,14/07/12,
110712E,ALLSTAR BUSINESS SOLUTIONS LTD,1018644716,27,256.18,FUEL,14/07/12,
110712E,ALLSTAR BUSINESS SOLUTIONS LTD,1018644716,28,254.19,FUEL,14/07/12,
110712E,ALLSTAR BUSINESS SOLUTIONS LTD,1018644716,29,172.98,FUEL,14/07/12,
110712E,ALLSTAR BUSINESS SOLUTIONS LTD,1018644716,30,233.18,FUEL,14/07/12,
110712E,ALLSTAR BUSINESS SOLUTIONS LTD,1018644716,31,246.84,FUEL,14/07/12,
110712E,ALLSTAR BUSINESS SOLUTIONS LTD,1018644716,32,200.94,FUEL,14/07/12,
110712E,ALLSTAR BUSINESS SOLUTIONS LTD,1018644716,33,288.97,FUEL,14/07/12,
110712E,ALLSTAR BUSINESS SOLUTIONS LTD,1018644716,34,213.05,FUEL,14/07/12,
110712E,ALLSTAR BUSINESS SOLUTIONS LTD,1018644716,35,604.27,FUEL,14/07/12,
110712E,ALLSTAR BUSINESS SOLUTIONS LTD,1018644716,36,128.65,FUEL,14/07/12,
110712E,ALLSTAR BUSINESS SOLUTIONS LTD,1018644716,37,402.33,FUEL,14/07/12,
110712E,ALLSTAR BUSINESS SOLUTIONS LTD,1018644716,38,114.91,FUEL,14/07/12,
110712E,ALLSTAR BUSINESS SOLUTIONS LTD,1018644716,39,75.06,FUEL,14/07/12,
110712E,ALLSTAR BUSINESS SOLUTIONS LTD,1018644716,40,476.08,FUEL,14/07/12,
110712E,ALLSTAR BUSINESS SOLUTIONS LTD,1018644716,41,132.39,FUEL,14/07/12,
110712E,ALLSTAR BUSINESS SOLUTIONS LTD,1018644716,42,246.65,FUEL,14/07/12,
110712E,ALLSTAR BUSINESS SOLUTIONS LTD,1018644716,43,178.04,FUEL,14/07/12,
110712E,ALLSTAR BUSINESS SOLUTIONS LTD,1018644716,44,128.43,FUEL,14/07/12,
110712E,ALLSTAR BUSINESS SOLUTIONS LTD,1018644716,45,191.42,FUEL,14/07/12,
110712E,ALLSTAR BUSINESS SOLUTIONS LTD,1018644716,46,431.93,FUEL,14/07/12,
110712E,ALLSTAR BUSINESS SOLUTIONS LTD,1018644716,47,151.65,FUEL,14/07/12,
110712E,ALLSTAR BUSINESS SOLUTIONS LTD,1018644716,48,167.84,FUEL,14/07/12,
110712E,ALLSTAR BUSINESS SOLUTIONS LTD,1018644716,49,199.54,FUEL,14/07/12,
110712E,ALLSTAR BUSINESS SOLUTIONS LTD,1018644716,50,186.34,FUEL,14/07/12,
110712E,ALLSTAR BUSINESS SOLUTIONS LTD,1018644716,51,25.65,FUEL,14/07/12,
110712E,ALLSTAR BUSINESS SOLUTIONS LTD,1018644716,52,219.23,FUEL,14/07/12,
110712E,ALLSTAR BUSINESS SOLUTIONS LTD,1018644716,53,837.97,FUEL,14/07/12,
110712E,ALLSTAR BUSINESS SOLUTIONS LTD,1018644716,54,403.39,FUEL,14/07/12,
110712E,ALLSTAR BUSINESS SOLUTIONS LTD,1018644716,55,226.96,FUEL,14/07/12,
110712E,ALLSTAR BUSINESS SOLUTIONS LTD,1018644716,56,232.44,FUEL,14/07/12,
110712E,ALLSTAR BUSINESS SOLUTIONS LTD,1018644716,57,277.92,FUEL,14/07/12,
110712E,ALLSTAR BUSINESS SOLUTIONS LTD,1018644716,58,421.89,FUEL,14/07/12,
110712E,ALLSTAR BUSINESS SOLUTIONS LTD,1018644716,59,119.09,FUEL,14/07/12,
110712E,ALLSTAR BUSINESS SOLUTIONS LTD,1018644716,60,297.68,FUEL,14/07/12,
110712E,ALLSTAR BUSINESS SOLUTIONS LTD,1018644716,61,91.61,FUEL,14/07/12,
110712E,ALLSTAR BUSINESS SOLUTIONS LTD,1018644716,62,188.29,FUEL,14/07/12,
110712E,ALLSTAR BUSINESS SOLUTIONS LTD,1018644716,63,261.80,FUEL,14/07/12,
110712E,ALLSTAR BUSINESS SOLUTIONS LTD,1018644716,64,92.20,FUEL,14/07/12,
110712E,ALLSTAR BUSINESS SOLUTIONS LTD,1018644716,65,103.64,FUEL,14/07/12,
110712E,ALLSTAR BUSINESS SOLUTIONS LTD,1018644716,66,180.77,FUEL,14/07/12,
110712E,ALLSTAR BUSINESS SOLUTIONS LTD,1018644716,67,86.22,FUEL,14/07/12,
110712E,ALLSTAR BUSINESS SOLUTIONS LTD,1018644716,68,95.86,FUEL,14/07/12,
110712E,ALLSTAR BUSINESS SOLUTIONS LTD,1018644716,69,98.10,FUEL,14/07/12,
110712E,ALLSTAR BUSINESS SOLUTIONS LTD,1018644716,70,36.18,FUEL,14/07/12,
110712E,ALLSTAR BUSINESS SOLUTIONS LTD,1018644716,71,90.20,FUEL,14/07/12,
110712E,ALLSTAR BUSINESS SOLUTIONS LTD,1018644716,72,166.78,FUEL,14/07/12,
110712E,ALLSTAR BUSINESS SOLUTIONS LTD,1018644716,73,215.04,FUEL,14/07/12,
110712E,ALLSTAR BUSINESS SOLUTIONS LTD,1018644716,74,"1,108.02",FUEL,14/07/12,
110712E,ALLSTAR BUSINESS SOLUTIONS LTD,1018644716,75,79.07,FUEL,14/07/12,
110712E,ALLSTAR BUSINESS SOLUTIONS LTD,1018644716,76,60.04,FUEL,14/07/12,
110712E,ALLSTAR BUSINESS SOLUTIONS LTD,1018644716,77,117.27,FUEL,14/07/12,
110712E,ALLSTAR BUSINESS SOLUTIONS LTD,1018644716,78,59.25,FUEL,14/07/12,
110712E,ALLSTAR BUSINESS SOLUTIONS LTD,1018644716,79,141.26,FUEL,14/07/12,
110712E,ALLSTAR BUSINESS SOLUTIONS LTD,1018644716,80,79.47,FUEL,14/07/12,
110712E,ALLSTAR BUSINESS SOLUTIONS LTD,1018644716,81,121.81,FUEL,14/07/12,
110712E,ALLSTAR BUSINESS SOLUTIONS LTD,1018644716,82,109.08,FUEL,14/07/12,
110712E,ALLSTAR BUSINESS SOLUTIONS LTD,1018644716,83,181.78,FUEL,14/07/12,
110712E,ALLSTAR BUSINESS SOLUTIONS LTD,1018644716,84,205.26,FUEL,14/07/12,
110712E,ALLSTAR BUSINESS SOLUTIONS LTD,1018644716,85,119.05,FUEL,14/07/12,
110712E,ALLSTAR BUSINESS SOLUTIONS LTD,1018644716,86,274.16,FUEL,14/07/12,
110712E,ALLSTAR BUSINESS SOLUTIONS LTD,1018644716,87,80.48,FUEL,14/07/12,
110712E,ALLSTAR BUSINESS SOLUTIONS LTD,1018644716,88,81.35,FUEL,14/07/12,
110712E,ALLSTAR BUSINESS SOLUTIONS LTD,1018644716,89,69.49,FUEL,14/07/12,
110712E,ALLSTAR BUSINESS SOLUTIONS LTD,1018644716,90,125.63,FUEL,14/07/12,
110712E,ALLSTAR BUSINESS SOLUTIONS LTD,1018644716,91,102.58,FUEL,14/07/12,
110712E,ALLSTAR BUSINESS SOLUTIONS LTD,1018644716,92,50.58,FUEL,14/07/12,
110712E,ALLSTAR BUSINESS SOLUTIONS LTD,1018644716,93,106.14,FUEL,14/07/12,
110712E,ALLSTAR BUSINESS SOLUTIONS LTD,1018644716,94,55.81,FUEL,14/07/12,
110712E,ALLSTAR BUSINESS SOLUTIONS LTD,1018644716,95,303.63,FUEL,14/07/12,
110712E,ALLSTAR BUSINESS SOLUTIONS LTD,1018644716,96,47.63,FUEL,14/07/12,
110712E,ALLSTAR BUSINESS SOLUTIONS LTD,1018644716,97,331.04,FUEL,14/07/12,
110712E,ALLSTAR BUSINESS SOLUTIONS LTD,1018644716,98,114.35,FUEL,14/07/12,
110712E,ALLSTAR BUSINESS SOLUTIONS LTD,1018644716,99,77.33,FUEL,14/07/12,
110712E,ALLSTAR BUSINESS SOLUTIONS LTD,1018644716,100,102.22,FUEL,14/07/12,
110712E,ALLSTAR BUSINESS SOLUTIONS LTD,1018644716,101,61.10,FUEL,14/07/12,
110712E,ALLSTAR BUSINESS SOLUTIONS LTD,1018644716,102,140.60,FUEL,14/07/12,
110712E,ALLSTAR BUSINESS SOLUTIONS LTD,1018644716,103,40.97,FUEL,14/07/12,
110712E,ALLSTAR BUSINESS SOLUTIONS LTD,1018644716,104,66.27,FUEL,14/07/12,
110712E,ALLSTAR BUSINESS SOLUTIONS LTD,1018644716,105,20.83,FUEL,14/07/12,
110712E,ALLSTAR BUSINESS SOLUTIONS LTD,1018644716,106,50.00,FUEL,14/07/12,
110712E,ALLSTAR BUSINESS SOLUTIONS LTD,1018644716,107,83.66,FUEL,14/07/12,
110712E,ALLSTAR BUSINESS SOLUTIONS LTD,1018644716,108,75.19,FUEL,14/07/12,
110712E,ALLSTAR BUSINESS SOLUTIONS LTD,1018644716,109,210.41,FUEL,14/07/12,
110712E,ALLSTAR BUSINESS SOLUTIONS LTD,1018644716,110,41.67,FUEL,14/07/12,
110712E,ALLSTAR BUSINESS SOLUTIONS LTD,1018644716,111,86.12,FUEL,14/07/12,
110712E,ALLSTAR BUSINESS SOLUTIONS LTD,1018644716,112,59.50,FUEL,14/07/12,
110712E,ALLSTAR BUSINESS SOLUTIONS LTD,1018644716,113,242.48,FUEL,14/07/12,
110712E,ALLSTAR BUSINESS SOLUTIONS LTD,1018644716,114,58.16,FUEL,14/07/12,
110712E,ALLSTAR BUSINESS SOLUTIONS LTD,1018644716,115,804.29,FUEL,14/07/12,
110712E,ALLSTAR BUSINESS SOLUTIONS LTD,1018644716,116,317.31,FUEL,14/07/12,
110712E,H J HALL & SON================,108596,1,"1,199.70",UNIFORMS - POMS,14/07/12,"1,559.61"
110712E,H J HALL & SON================,108596,2,359.91,UNIFORMS - POMS,14/07/12,
110712G,INFOR GLOBAL SOLUTIONS LTD====,11203727,1,"4,280.00",PROFESSIONAL SERVICES,14/07/12,"7,670.00"
110712G,INFOR GLOBAL SOLUTIONS LTD====,11203727,2,"3,390.00",PROFESSIONAL SERVICES,14/07/12,
040712G,INFOR GLOBAL SOLUTIONS LTD====,11204310,1,178.34,PROFESSIONAL SERVICES,14/07/12,535.02
040712G,INFOR GLOBAL SOLUTIONS LTD====,11204310,2,178.34,PROFESSIONAL SERVICES,14/07/12,
040712G,INFOR GLOBAL SOLUTIONS LTD====,11204310,3,178.34,PROFESSIONAL SERVICES,14/07/12,
139765,BOURNE CONSTRUCTION COMPANY,12/377,1,350.00,TACTICAL DAY TO DAY,14/07/12,750.00
139765,BOURNE CONSTRUCTION COMPANY,12/377,2,400.00,TACTICAL DAY TO DAY,14/07/12,
139765,BOURNE CONSTRUCTION COMPANY,12/378,1,"2,000.00",STRATEGIC (NON CYCLICAL),14/07/12,"4,610.00"
139765,BOURNE CONSTRUCTION COMPANY,12/378,2,"2,610.00",STRATEGIC (NON CYCLICAL),14/07/12,
139765,BOURNE CONSTRUCTION COMPANY,12/379,1,450.00,STRATEGIC (NON CYCLICAL),14/07/12,750.00
139765,BOURNE CONSTRUCTION COMPANY,12/379,2,300.00,STRATEGIC (NON CYCLICAL),14/07/12,
280612C,GREATER LONDON AUTHORITY======,1800002504,1,"10,000.00",PROFESSIONAL SERVICES,14/07/12,"10,000.00"
100712C,TRADE WINDS===================,20023,1,"11,193.00",PRINTING,14/07/12,"11,193.00"
100712C,TRADE WINDS===================,20024,1,"9,322.00",PRINTING,14/07/12,"9,322.00"
110712E,SCOTT MERRICK ASSOCIATES======,24567,1,"9,870.00",MAINTENANCE & SUPPORT,14/07/12,"9,870.00"
110712E,SCOTT MERRICK ASSOCIATES======,24585,1,"12,662.99",MAINTENANCE & SUPPORT,14/07/12,"12,662.99"
139766,THAMES WATER UTILITIES LTD====,2559901112Z,1,639.68,WATER & SEWERAGE RATES,14/07/12,639.68
800011669,ADECCO UK LIMITED=============,26055293,1,546.70,FRS STAFF AGENCY,14/07/12,546.70
800011671,ADECCO UK LIMITED=============,26055295,1,579.60,FRS STAFF AGENCY,14/07/12,579.60
800011672,ADECCO UK LIMITED=============,26055296,1,621.04,FRS STAFF AGENCY,14/07/12,621.04
800011673,ADECCO UK LIMITED=============,26055297,1,659.01,FRS STAFF AGENCY,14/07/12,659.01
800011674,ADECCO UK LIMITED=============,26055298,1,579.60,FRS STAFF AGENCY,14/07/12,579.60
800011675,ADECCO UK LIMITED=============,26055299,1,579.60,FRS STAFF AGENCY,14/07/12,579.60
800011676,ADECCO UK LIMITED=============,26055300,1,579.60,FRS STAFF AGENCY,14/07/12,579.60
800011679,ADECCO UK LIMITED=============,26055303,1,579.60,FRS STAFF AGENCY,14/07/12,579.60
800011682,ADECCO UK LIMITED=============,26055306,1,"1,426.25",FRS STAFF AGENCY,14/07/12,"1,426.25"
800011685,ADECCO UK LIMITED=============,26055309,1,501.90,FRS STAFF AGENCY,14/07/12,501.90
800011688,ADECCO UK LIMITED=============,26055312,1,693.70,FRS STAFF AGENCY,14/07/12,693.70
800011702,ADECCO UK LIMITED=============,26055317,1,"1,116.20",FRS STAFF AGENCY,14/07/12,"1,116.20"
800011694,ADECCO UK LIMITED=============,26055318,1,776.30,FRS STAFF AGENCY,14/07/12,776.30
800011695,ADECCO UK LIMITED=============,26055319,1,758.45,FRS STAFF AGENCY,14/07/12,758.45
800011704,ADECCO UK LIMITED=============,26055322,1,594.43,FRS STAFF AGENCY,14/07/12,594.43
800011699,ADECCO UK LIMITED=============,26055323,1,693.70,FRS STAFF AGENCY,14/07/12,693.70
139766,THAMES WATER UTILITIES LTD====,2797086298G,1,"2,320.23",WATER & SEWERAGE RATES,14/07/12,"2,320.23"
110712E,COMPUTACENTRE================,3803962453,1,"1,578.69",ACQUISITIONS,14/07/12,"1,578.69"
139768,MR DAVID MYHILL===============,400647A,1,"1,850.00",COUNSELS FEES,14/07/12,"1,850.00"
110712E,*ALEXANDRA PLC================,4321477,1,41.40,UNIFORMS - POMS,14/07/12,"10,960.65"
110712E,*ALEXANDRA PLC================,4321477,2,124.20,UNIFORMS - POMS,14/07/12,
110712E,*ALEXANDRA PLC================,4321477,3,10.35,UNIFORMS - POMS,14/07/12,
110712E,*ALEXANDRA PLC================,4321477,4,341.55,UNIFORMS - POMS,14/07/12,
110712E,*ALEXANDRA PLC================,4321477,5,807.30,UNIFORMS - POMS,14/07/12,
110712E,*ALEXANDRA PLC================,4321477,6,"1,324.80",UNIFORMS - POMS,14/07/12,
110712E,*ALEXANDRA PLC================,4321477,7,41.40,UNIFORMS - POMS,14/07/12,
110712E,*ALEXANDRA PLC================,4321477,8,786.60,UNIFORMS - POMS,14/07/12,
110712E,*ALEXANDRA PLC================,4321477,9,"1,428.30",UNIFORMS - POMS,14/07/12,
110712E,*ALEXANDRA PLC================,4321477,10,96.80,UNIFORMS - POMS,14/07/12,
110712E,*ALEXANDRA PLC================,4321477,11,693.45,UNIFORMS - POMS,14/07/12,
110712E,*ALEXANDRA PLC================,4321477,12,"1,035.00",UNIFORMS - POMS,14/07/12,
110712E,*ALEXANDRA PLC================,4321477,13,227.70,UNIFORMS - POMS,14/07/12,
110712E,*ALEXANDRA PLC================,4321477,14,165.60,UNIFORMS - POMS,14/07/12,
110712E,*ALEXANDRA PLC================,4321477,15,"1,304.10",UNIFORMS - POMS,14/07/12,
110712E,*ALEXANDRA PLC================,4321477,16,"1,459.35",UNIFORMS - POMS,14/07/12,
110712E,*ALEXANDRA PLC================,4321477,17,652.05,UNIFORMS - POMS,14/07/12,
110712E,*ALEXANDRA PLC================,4321477,18,82.80,UNIFORMS - POMS,14/07/12,
110712E,*ALEXANDRA PLC================,4321477,19,62.10,UNIFORMS - POMS,14/07/12,
110712E,*ALEXANDRA PLC================,4321477,20,93.15,UNIFORMS - POMS,14/07/12,
110712E,*ALEXANDRA PLC================,4321477,21,82.80,UNIFORMS - POMS,14/07/12,
110712E,*ALEXANDRA PLC================,4321477,22,99.85,UNIFORMS - POMS,14/07/12,
060712E,RIG EQUIPMENT LTD,465,1,657.90,OPERATIONAL EQUIP-PURCHASE,14/07/12,657.90
110712G,EJT ASSOCIATES LIMITED========,741EJTLFB,1,910.00,PROFESSIONAL SERVICES,14/07/12,910.00
110712E,SHARPE PRITCHARD==============,74309,1,"1,070.20",PROFESSIONAL SERVICES,14/07/12,"1,070.20"
110712E,CPL PETROLEUM=================,7966333,1,"2,383.70",FUEL,14/07/12,"2,383.70"
110712E,PACE PETROLEUM LIMITED========,7975409,1,"3,020.00",FUEL,14/07/12,"3,020.00"
110712E,CPL PETROLEUM=================,7999615,1,"1,637.55",FUEL,14/07/12,"1,637.55"
139766,THAMES WATER UTILITIES LTD====,95240-85193F,1,629.72,WATER & SEWERAGE RATES,14/07/12,629.72
139766,THAMES WATER UTILITIES LTD====,95240-85193G,1,852.68,WATER & SEWERAGE RATES,14/07/12,852.68
040712G,*OFFICE DEPOT UK LTD,954071528,1,"1,190.00",STATIONERY CONSUMABLES,14/07/12,"1,190.00"
060712G,NP AEROSPACE LTD,984999,1,"3,222.00",OPERATIONAL EQUIP-PURCHASE,14/07/12,"3,938.00"
060712G,NP AEROSPACE LTD,984999,2,716.00,OPERATIONAL EQUIP-PURCHASE,14/07/12,
060712G,NP AEROSPACE LTD,985000,1,"3,580.00",OPERATIONAL EQUIP-PURCHASE,14/07/12,"4,475.00"
060712G,NP AEROSPACE LTD,985000,2,895.00,OPERATIONAL EQUIP-PURCHASE,14/07/12,
020712E,GORKANA GROUP LTD,GB_6694,1,"8,250.00",PRESS OFFICE,14/07/12,"8,250.00"
139768,P OLDHAM======================,GEN071,1,"3,000.00",PROFESSIONAL FEES GENERAL,14/07/12,"3,000.00"
139766,JCT600 CONTRACTS LIMITED======,INV00012156,1,"3,369.70",LEASE CAR CHARGES,14/07/12,"4,572.27"
139766,JCT600 CONTRACTS LIMITED======,INV00012156,2,"1,202.57",P/PAYMTS-CAR LEASG-RENTAL,14/07/12,
139766,JCT600 CONTRACTS LIMITED======,INV00012156,3,-399.62,VAT CAR LEASING,14/07/12,
139766,JCT600 CONTRACTS LIMITED======,INV00012156,4,399.62,LEASE CAR CHARGES,14/07/12,
139766,JCT600 CONTRACTS LIMITED======,INV00012157,1,"2,905.26",LEASE CAR CHARGES,14/07/12,"4,208.02"
139766,JCT600 CONTRACTS LIMITED======,INV00012157,2,"1,302.76",P/PAYMTS-CAR LEASG-RENTAL,14/07/12,
139766,JCT600 CONTRACTS LIMITED======,INV00012157,3,-364.73,VAT CAR LEASING,14/07/12,
139766,JCT600 CONTRACTS LIMITED======,INV00012157,4,364.73,LEASE CAR CHARGES,14/07/12,
139766,JCT600 CONTRACTS LIMITED======,INV00012158,1,"2,746.37",LEASE CAR CHARGES,14/07/12,"3,977.87"
139766,JCT600 CONTRACTS LIMITED======,INV00012158,2,"1,231.50",P/PAYMTS-CAR LEASG-RENTAL,14/07/12,
139766,JCT600 CONTRACTS LIMITED======,INV00012158,3,-350.48,VAT CAR LEASING,14/07/12,
139766,JCT600 CONTRACTS LIMITED======,INV00012158,4,350.48,LEASE CAR CHARGES,14/07/12,
139766,JCT600 CONTRACTS LIMITED======,INV00012159,1,"2,713.65",LEASE CAR CHARGES,14/07/12,"4,042.79"
139766,JCT600 CONTRACTS LIMITED======,INV00012159,2,"1,329.14",P/PAYMTS-CAR LEASG-RENTAL,14/07/12,
139766,JCT600 CONTRACTS LIMITED======,INV00012159,3,-358.43,VAT CAR LEASING,14/07/12,
139766,JCT600 CONTRACTS LIMITED======,INV00012159,4,358.43,LEASE CAR CHARGES,14/07/12,
139766,JCT600 CONTRACTS LIMITED======,INV00012160,1,"2,365.25",LEASE CAR CHARGES,14/07/12,"3,385.55"
139766,JCT600 CONTRACTS LIMITED======,INV00012160,2,"1,020.30",P/PAYMTS-CAR LEASG-RENTAL,14/07/12,
139766,JCT600 CONTRACTS LIMITED======,INV00012160,3,-298.39,VAT CAR LEASING,14/07/12,
139766,JCT600 CONTRACTS LIMITED======,INV00012160,4,298.39,LEASE CAR CHARGES,14/07/12,
139766,JCT600 CONTRACTS LIMITED======,INV00012161,1,"2,660.37",LEASE CAR CHARGES,14/07/12,"3,543.92"
139766,JCT600 CONTRACTS LIMITED======,INV00012161,2,883.55,P/PAYMTS-CAR LEASG-RENTAL,14/07/12,
139766,JCT600 CONTRACTS LIMITED======,INV00012161,3,-302.58,VAT CAR LEASING,14/07/12,
139766,JCT600 CONTRACTS LIMITED======,INV00012161,4,302.58,LEASE CAR CHARGES,14/07/12,
139766,JCT600 CONTRACTS LIMITED======,INV00012162,1,"2,908.35",LEASE CAR CHARGES,14/07/12,"3,946.27"
139766,JCT600 CONTRACTS LIMITED======,INV00012162,2,"1,037.92",P/PAYMTS-CAR LEASG-RENTAL,14/07/12,
139766,JCT600 CONTRACTS LIMITED======,INV00012162,3,-347.32,VAT CAR LEASING,14/07/12,
139766,JCT600 CONTRACTS LIMITED======,INV00012162,4,347.32,LEASE CAR CHARGES,14/07/12,
139766,JCT600 CONTRACTS LIMITED======,INV00012163,1,"3,605.50",LEASE CAR CHARGES,14/07/12,"4,802.95"
139766,JCT600 CONTRACTS LIMITED======,INV00012163,2,"1,197.45",P/PAYMTS-CAR LEASG-RENTAL,14/07/12,
139766,JCT600 CONTRACTS LIMITED======,INV00012163,3,-424.32,VAT CAR LEASING,14/07/12,
139766,JCT600 CONTRACTS LIMITED======,INV00012163,4,424.32,LEASE CAR CHARGES,14/07/12,
139766,JCT600 CONTRACTS LIMITED======,INV00012164,1,"3,307.03",LEASE CAR CHARGES,14/07/12,"4,487.24"
139766,JCT600 CONTRACTS LIMITED======,INV00012164,2,"1,180.21",P/PAYMTS-CAR LEASG-RENTAL,14/07/12,
139766,JCT600 CONTRACTS LIMITED======,INV00012164,3,-394.24,VAT CAR LEASING,14/07/12,
139766,JCT600 CONTRACTS LIMITED======,INV00012164,4,394.24,LEASE CAR CHARGES,14/07/12,
110712E,SMITH O'SULLIVAN LTD.=========,LFB/RFS/003 NO 3,1,600.05,STRATEGIC (NON CYCLICAL),14/07/12,600.05
110712E,ASSETCO ENGINEERING===========,OP/I040887,1,"125,816.42",GENERAL,14/07/12,"125,816.42"
139771,THE JACK PETCHEY FOUNDATION,AD5704,1,800.00,SPONSORSHIP,17/07/12,800.00
040712E,HEALTH MANAGEMENT LIMITED=====,0000085089,1,670.68,DRUG & ALCOHOL TESTS,19/07/12,670.68
060712G,HEALTH MANAGEMENT LIMITED=====,0000085208,1,"113,556.67",OHS CONTRACT,19/07/12,"113,556.67"
060712G,"TOYE, KENNING & SPENCER LTD===",0010240534,1,254.50,UNIFORMS - POMS,19/07/12,509.00
060712G,"TOYE, KENNING & SPENCER LTD===",0010240534,2,254.50,UNIFORMS - POMS,19/07/12,
120712C,REGENT OFFICE CARE LTD========,0037554,1,157.50,STRATEGIC (CYCLICAL),19/07/12,"6,851.25"
120712C,REGENT OFFICE CARE LTD========,0037554,2,189.00,STRATEGIC (CYCLICAL),19/07/12,
120712C,REGENT OFFICE CARE LTD========,0037554,3,189.00,STRATEGIC (CYCLICAL),19/07/12,
120712C,REGENT OFFICE CARE LTD========,0037554,4,157.50,STRATEGIC (CYCLICAL),19/07/12,
120712C,REGENT OFFICE CARE LTD========,0037554,5,189.00,STRATEGIC (CYCLICAL),19/07/12,
120712C,REGENT OFFICE CARE LTD========,0037554,6,157.50,STRATEGIC (CYCLICAL),19/07/12,
120712C,REGENT OFFICE CARE LTD========,0037554,7,189.00,STRATEGIC (CYCLICAL),19/07/12,
120712C,REGENT OFFICE CARE LTD========,0037554,8,157.50,STRATEGIC (CYCLICAL),19/07/12,
120712C,REGENT OFFICE CARE LTD========,0037554,9,157.50,STRATEGIC (CYCLICAL),19/07/12,
120712C,REGENT OFFICE CARE LTD========,0037554,10,157.50,STRATEGIC (CYCLICAL),19/07/12,
120712C,REGENT OFFICE CARE LTD========,0037554,11,157.50,STRATEGIC (CYCLICAL),19/07/12,
120712C,REGENT OFFICE CARE LTD========,0037554,12,189.00,STRATEGIC (CYCLICAL),19/07/12,
120712C,REGENT OFFICE CARE LTD========,0037554,13,189.00,STRATEGIC (CYCLICAL),19/07/12,
120712C,REGENT OFFICE CARE LTD========,0037554,14,189.00,STRATEGIC (CYCLICAL),19/07/12,
120712C,REGENT OFFICE CARE LTD========,0037554,15,157.50,STRATEGIC (CYCLICAL),19/07/12,
120712C,REGENT OFFICE CARE LTD========,0037554,16,157.50,STRATEGIC (CYCLICAL),19/07/12,
120712C,REGENT OFFICE CARE LTD========,0037554,17,157.50,STRATEGIC (CYCLICAL),19/07/12,
120712C,REGENT OFFICE CARE LTD========,0037554,18,189.00,STRATEGIC (CYCLICAL),19/07/12,
120712C,REGENT OFFICE CARE LTD========,0037554,19,157.50,STRATEGIC (CYCLICAL),19/07/12,
120712C,REGENT OFFICE CARE LTD========,0037554,20,189.00,STRATEGIC (CYCLICAL),19/07/12,
120712C,REGENT OFFICE CARE LTD========,0037554,21,157.50,STRATEGIC (CYCLICAL),19/07/12,
120712C,REGENT OFFICE CARE LTD========,0037554,22,189.00,STRATEGIC (CYCLICAL),19/07/12,
120712C,REGENT OFFICE CARE LTD========,0037554,23,157.50,STRATEGIC (CYCLICAL),19/07/12,
120712C,REGENT OFFICE CARE LTD========,0037554,24,189.00,STRATEGIC (CYCLICAL),19/07/12,
120712C,REGENT OFFICE CARE LTD========,0037554,25,189.00,STRATEGIC (CYCLICAL),19/07/12,
120712C,REGENT OFFICE CARE LTD========,0037554,26,189.00,STRATEGIC (CYCLICAL),19/07/12,
120712C,REGENT OFFICE CARE LTD========,0037554,27,189.00,STRATEGIC (CYCLICAL),19/07/12,
120712C,REGENT OFFICE CARE LTD========,0037554,28,173.25,STRATEGIC (CYCLICAL),19/07/12,
120712C,REGENT OFFICE CARE LTD========,0037554,29,157.50,STRATEGIC (CYCLICAL),19/07/12,
120712C,REGENT OFFICE CARE LTD========,0037554,30,189.00,STRATEGIC (CYCLICAL),19/07/12,
120712C,REGENT OFFICE CARE LTD========,0037554,31,157.50,STRATEGIC (CYCLICAL),19/07/12,
120712C,REGENT OFFICE CARE LTD========,0037554,32,189.00,STRATEGIC (CYCLICAL),19/07/12,
120712C,REGENT OFFICE CARE LTD========,0037554,33,252.00,STRATEGIC (CYCLICAL),19/07/12,
120712C,REGENT OFFICE CARE LTD========,0037554,34,189.00,STRATEGIC (CYCLICAL),19/07/12,
120712C,REGENT OFFICE CARE LTD========,0037554,35,157.50,STRATEGIC (CYCLICAL),19/07/12,
120712C,REGENT OFFICE CARE LTD========,0037554,36,157.50,STRATEGIC (CYCLICAL),19/07/12,
120712C,REGENT OFFICE CARE LTD========,0037554,37,189.00,STRATEGIC (CYCLICAL),19/07/12,
120712C,REGENT OFFICE CARE LTD========,0037554,38,189.00,STRATEGIC (CYCLICAL),19/07/12,
120712C,REGENT OFFICE CARE LTD========,0037554,39,157.50,STRATEGIC (CYCLICAL),19/07/12,
040712E,GEORGE JONES & SON LTD========,035914,1,"1,545.70",STRATEGIC (NON CYCLICAL),19/07/12,"1,545.70"
090712E,ESRI (UK) LIMITED=============,083128,1,"1,095.00",PROFESSIONAL SERVICES,19/07/12,"1,174.71"
090712E,ESRI (UK) LIMITED=============,083128,2,79.71,PROFESSIONAL SERVICES,19/07/12,
160712C,CARPETS & FLOOR COVERS DIRECT=,1012,1,"2,462.00",FIXTURES & FITTINGS,19/07/12,"4,762.00"
160712C,CARPETS & FLOOR COVERS DIRECT=,1012,2,"2,300.00",FIXTURES & FITTINGS,19/07/12,
160712E,ALLSTAR BUSINESS SOLUTIONS LTD,1018806571,1,309.72,FUEL,19/07/12,"21,932.09"
160712E,ALLSTAR BUSINESS SOLUTIONS LTD,1018806571,2,92.70,FUEL,19/07/12,
160712E,ALLSTAR BUSINESS SOLUTIONS LTD,1018806571,3,87.24,FUEL,19/07/12,
160712E,ALLSTAR BUSINESS SOLUTIONS LTD,1018806571,4,205.54,FUEL,19/07/12,
160712E,ALLSTAR BUSINESS SOLUTIONS LTD,1018806571,5,181.35,FUEL,19/07/12,
160712E,ALLSTAR BUSINESS SOLUTIONS LTD,1018806571,6,105.80,FUEL,19/07/12,
160712E,ALLSTAR BUSINESS SOLUTIONS LTD,1018806571,7,134.49,FUEL,19/07/12,
160712E,ALLSTAR BUSINESS SOLUTIONS LTD,1018806571,8,234.96,FUEL,19/07/12,
160712E,ALLSTAR BUSINESS SOLUTIONS LTD,1018806571,9,62.75,FUEL,19/07/12,
160712E,ALLSTAR BUSINESS SOLUTIONS LTD,1018806571,10,144.08,FUEL,19/07/12,
160712E,ALLSTAR BUSINESS SOLUTIONS LTD,1018806571,11,298.07,FUEL,19/07/12,
160712E,ALLSTAR BUSINESS SOLUTIONS LTD,1018806571,12,340.40,FUEL,19/07/12,
160712E,ALLSTAR BUSINESS SOLUTIONS LTD,1018806571,13,184.33,FUEL,19/07/12,
160712E,ALLSTAR BUSINESS SOLUTIONS LTD,1018806571,14,205.25,FUEL,19/07/12,
160712E,ALLSTAR BUSINESS SOLUTIONS LTD,1018806571,15,120.89,FUEL,19/07/12,
160712E,ALLSTAR BUSINESS SOLUTIONS LTD,1018806571,16,428.30,FUEL,19/07/12,
160712E,ALLSTAR BUSINESS SOLUTIONS LTD,1018806571,17,138.51,FUEL,19/07/12,
160712E,ALLSTAR BUSINESS SOLUTIONS LTD,1018806571,18,89.48,FUEL,19/07/12,
160712E,ALLSTAR BUSINESS SOLUTIONS LTD,1018806571,19,154.92,FUEL,19/07/12,
160712E,ALLSTAR BUSINESS SOLUTIONS LTD,1018806571,20,130.55,FUEL,19/07/12,
160712E,ALLSTAR BUSINESS SOLUTIONS LTD,1018806571,21,196.10,FUEL,19/07/12,
160712E,ALLSTAR BUSINESS SOLUTIONS LTD,1018806571,22,191.91,FUEL,19/07/12,
160712E,ALLSTAR BUSINESS SOLUTIONS LTD,1018806571,23,786.10,FUEL,19/07/12,
160712E,ALLSTAR BUSINESS SOLUTIONS LTD,1018806571,24,205.49,FUEL,19/07/12,
160712E,ALLSTAR BUSINESS SOLUTIONS LTD,1018806571,25,257.96,FUEL,19/07/12,
160712E,ALLSTAR BUSINESS SOLUTIONS LTD,1018806571,26,289.21,FUEL,19/07/12,
160712E,ALLSTAR BUSINESS SOLUTIONS LTD,1018806571,27,171.07,FUEL,19/07/12,
160712E,ALLSTAR BUSINESS SOLUTIONS LTD,1018806571,28,194.82,FUEL,19/07/12,
160712E,ALLSTAR BUSINESS SOLUTIONS LTD,1018806571,29,250.86,FUEL,19/07/12,
160712E,ALLSTAR BUSINESS SOLUTIONS LTD,1018806571,30,282.11,FUEL,19/07/12,
160712E,ALLSTAR BUSINESS SOLUTIONS LTD,1018806571,31,320.37,FUEL,19/07/12,
160712E,ALLSTAR BUSINESS SOLUTIONS LTD,1018806571,32,232.48,FUEL,19/07/12,
160712E,ALLSTAR BUSINESS SOLUTIONS LTD,1018806571,33,339.00,FUEL,19/07/12,
160712E,ALLSTAR BUSINESS SOLUTIONS LTD,1018806571,34,301.88,FUEL,19/07/12,
160712E,ALLSTAR BUSINESS SOLUTIONS LTD,1018806571,35,536.89,FUEL,19/07/12,
160712E,ALLSTAR BUSINESS SOLUTIONS LTD,1018806571,36,98.12,FUEL,19/07/12,
160712E,ALLSTAR BUSINESS SOLUTIONS LTD,1018806571,37,301.24,FUEL,19/07/12,
160712E,ALLSTAR BUSINESS SOLUTIONS LTD,1018806571,38,195.75,FUEL,19/07/12,
160712E,ALLSTAR BUSINESS SOLUTIONS LTD,1018806571,39,166.58,FUEL,19/07/12,
160712E,ALLSTAR BUSINESS SOLUTIONS LTD,1018806571,40,555.17,FUEL,19/07/12,
160712E,ALLSTAR BUSINESS SOLUTIONS LTD,1018806571,41,176.65,FUEL,19/07/12,
160712E,ALLSTAR BUSINESS SOLUTIONS LTD,1018806571,42,182.99,FUEL,19/07/12,
160712E,ALLSTAR BUSINESS SOLUTIONS LTD,1018806571,43,219.67,FUEL,19/07/12,
160712E,ALLSTAR BUSINESS SOLUTIONS LTD,1018806571,44,216.63,FUEL,19/07/12,
160712E,ALLSTAR BUSINESS SOLUTIONS LTD,1018806571,45,79.16,FUEL,19/07/12,
160712E,ALLSTAR BUSINESS SOLUTIONS LTD,1018806571,46,262.64,FUEL,19/07/12,
160712E,ALLSTAR BUSINESS SOLUTIONS LTD,1018806571,47,247.37,FUEL,19/07/12,
160712E,ALLSTAR BUSINESS SOLUTIONS LTD,1018806571,48,122.75,FUEL,19/07/12,
160712E,ALLSTAR BUSINESS SOLUTIONS LTD,1018806571,49,157.84,FUEL,19/07/12,
160712E,ALLSTAR BUSINESS SOLUTIONS LTD,1018806571,50,76.53,FUEL,19/07/12,
160712E,ALLSTAR BUSINESS SOLUTIONS LTD,1018806571,51,151.31,FUEL,19/07/12,
160712E,ALLSTAR BUSINESS SOLUTIONS LTD,1018806571,52,565.29,FUEL,19/07/12,
160712E,ALLSTAR BUSINESS SOLUTIONS LTD,1018806571,53,352.81,FUEL,19/07/12,
160712E,ALLSTAR BUSINESS SOLUTIONS LTD,1018806571,54,298.10,FUEL,19/07/12,
160712E,ALLSTAR BUSINESS SOLUTIONS LTD,1018806571,55,214.54,FUEL,19/07/12,
160712E,ALLSTAR BUSINESS SOLUTIONS LTD,1018806571,56,273.10,FUEL,19/07/12,
160712E,ALLSTAR BUSINESS SOLUTIONS LTD,1018806571,57,362.30,FUEL,19/07/12,
160712E,ALLSTAR BUSINESS SOLUTIONS LTD,1018806571,58,120.54,FUEL,19/07/12,
160712E,ALLSTAR BUSINESS SOLUTIONS LTD,1018806571,59,285.34,FUEL,19/07/12,
160712E,ALLSTAR BUSINESS SOLUTIONS LTD,1018806571,60,120.36,FUEL,19/07/12,
160712E,ALLSTAR BUSINESS SOLUTIONS LTD,1018806571,61,145.85,FUEL,19/07/12,
160712E,ALLSTAR BUSINESS SOLUTIONS LTD,1018806571,62,242.33,FUEL,19/07/12,
160712E,ALLSTAR BUSINESS SOLUTIONS LTD,1018806571,63,199.25,FUEL,19/07/12,
160712E,ALLSTAR BUSINESS SOLUTIONS LTD,1018806571,64,108.93,FUEL,19/07/12,
160712E,ALLSTAR BUSINESS SOLUTIONS LTD,1018806571,65,115.36,FUEL,19/07/12,
160712E,ALLSTAR BUSINESS SOLUTIONS LTD,1018806571,66,161.52,FUEL,19/07/12,
160712E,ALLSTAR BUSINESS SOLUTIONS LTD,1018806571,67,95.96,FUEL,19/07/12,
160712E,ALLSTAR BUSINESS SOLUTIONS LTD,1018806571,68,101.01,FUEL,19/07/12,
160712E,ALLSTAR BUSINESS SOLUTIONS LTD,1018806571,69,74.50,FUEL,19/07/12,
160712E,ALLSTAR BUSINESS SOLUTIONS LTD,1018806571,70,127.72,FUEL,19/07/12,
160712E,ALLSTAR BUSINESS SOLUTIONS LTD,1018806571,71,81.93,FUEL,19/07/12,
160712E,ALLSTAR BUSINESS SOLUTIONS LTD,1018806571,72,281.36,FUEL,19/07/12,
160712E,ALLSTAR BUSINESS SOLUTIONS LTD,1018806571,73,779.66,FUEL,19/07/12,
160712E,ALLSTAR BUSINESS SOLUTIONS LTD,1018806571,74,152.44,FUEL,19/07/12,
160712E,ALLSTAR BUSINESS SOLUTIONS LTD,1018806571,75,144.62,FUEL,19/07/12,
160712E,ALLSTAR BUSINESS SOLUTIONS LTD,1018806571,76,87.28,FUEL,19/07/12,
160712E,ALLSTAR BUSINESS SOLUTIONS LTD,1018806571,77,98.75,FUEL,19/07/12,
160712E,ALLSTAR BUSINESS SOLUTIONS LTD,1018806571,78,75.20,FUEL,19/07/12,
160712E,ALLSTAR BUSINESS SOLUTIONS LTD,1018806571,79,197.71,FUEL,19/07/12,
160712E,ALLSTAR BUSINESS SOLUTIONS LTD,1018806571,80,187.56,FUEL,19/07/12,
160712E,ALLSTAR BUSINESS SOLUTIONS LTD,1018806571,81,74.83,FUEL,19/07/12,
160712E,ALLSTAR BUSINESS SOLUTIONS LTD,1018806571,82,236.39,FUEL,19/07/12,
160712E,ALLSTAR BUSINESS SOLUTIONS LTD,1018806571,83,251.22,FUEL,19/07/12,
160712E,ALLSTAR BUSINESS SOLUTIONS LTD,1018806571,84,138.05,FUEL,19/07/12,
160712E,ALLSTAR BUSINESS SOLUTIONS LTD,1018806571,85,374.30,FUEL,19/07/12,
160712E,ALLSTAR BUSINESS SOLUTIONS LTD,1018806571,86,126.23,FUEL,19/07/12,
160712E,ALLSTAR BUSINESS SOLUTIONS LTD,1018806571,87,167.14,FUEL,19/07/12,
160712E,ALLSTAR BUSINESS SOLUTIONS LTD,1018806571,88,306.61,FUEL,19/07/12,
160712E,ALLSTAR BUSINESS SOLUTIONS LTD,1018806571,89,81.80,FUEL,19/07/12,
160712E,ALLSTAR BUSINESS SOLUTIONS LTD,1018806571,90,47.52,FUEL,19/07/12,
160712E,ALLSTAR BUSINESS SOLUTIONS LTD,1018806571,91,63.42,FUEL,19/07/12,
160712E,ALLSTAR BUSINESS SOLUTIONS LTD,1018806571,92,151.17,FUEL,19/07/12,
160712E,ALLSTAR BUSINESS SOLUTIONS LTD,1018806571,93,117.80,FUEL,19/07/12,
160712E,ALLSTAR BUSINESS SOLUTIONS LTD,1018806571,94,66.37,FUEL,19/07/12,
160712E,ALLSTAR BUSINESS SOLUTIONS LTD,1018806571,95,141.04,FUEL,19/07/12,
160712E,ALLSTAR BUSINESS SOLUTIONS LTD,1018806571,96,79.40,FUEL,19/07/12,
160712E,ALLSTAR BUSINESS SOLUTIONS LTD,1018806571,97,189.26,FUEL,19/07/12,
160712E,ALLSTAR BUSINESS SOLUTIONS LTD,1018806571,98,40.08,FUEL,19/07/12,
160712E,ALLSTAR BUSINESS SOLUTIONS LTD,1018806571,99,60.60,FUEL,19/07/12,
160712E,ALLSTAR BUSINESS SOLUTIONS LTD,1018806571,100,42.08,FUEL,19/07/12,
160712E,ALLSTAR BUSINESS SOLUTIONS LTD,1018806571,101,58.33,FUEL,19/07/12,
160712E,ALLSTAR BUSINESS SOLUTIONS LTD,1018806571,102,218.42,FUEL,19/07/12,
160712E,ALLSTAR BUSINESS SOLUTIONS LTD,1018806571,103,112.70,FUEL,19/07/12,
160712E,ALLSTAR BUSINESS SOLUTIONS LTD,1018806571,104,80.00,FUEL,19/07/12,
160712E,ALLSTAR BUSINESS SOLUTIONS LTD,1018806571,105,41.75,FUEL,19/07/12,
160712E,ALLSTAR BUSINESS SOLUTIONS LTD,1018806571,106,123.08,FUEL,19/07/12,
160712E,ALLSTAR BUSINESS SOLUTIONS LTD,1018806571,107,213.58,FUEL,19/07/12,
160712E,ALLSTAR BUSINESS SOLUTIONS LTD,1018806571,108,37.50,FUEL,19/07/12,
160712E,ALLSTAR BUSINESS SOLUTIONS LTD,1018806571,109,74.10,FUEL,19/07/12,
160712E,ALLSTAR BUSINESS SOLUTIONS LTD,1018806571,110,31.86,FUEL,19/07/12,
160712E,ALLSTAR BUSINESS SOLUTIONS LTD,1018806571,111,21.57,FUEL,19/07/12,
160712E,ALLSTAR BUSINESS SOLUTIONS LTD,1018806571,112,231.34,FUEL,19/07/12,
160712E,ALLSTAR BUSINESS SOLUTIONS LTD,1018806571,113,57.06,FUEL,19/07/12,
160712E,ALLSTAR BUSINESS SOLUTIONS LTD,1018806571,114,408.19,FUEL,19/07/12,
160712C,*SPRUE SAFETY PRODUCTS LTD====,1033946,1,"1,011.20",FIRE DETECTORS,19/07/12,"1,011.20"
160712C,*SPRUE SAFETY PRODUCTS LTD====,1033957,1,"1,011.20",FIRE DETECTORS,19/07/12,"1,011.20"
160712C,*SPRUE SAFETY PRODUCTS LTD====,1033966,1,"1,011.20",FIRE DETECTORS,19/07/12,"1,011.20"
160712C,*SPRUE SAFETY PRODUCTS LTD====,1034220,1,632.00,FIRE DETECTORS,19/07/12,632.00
160712C,*SPRUE SAFETY PRODUCTS LTD====,1034314,1,"1,264.00",FIRE DETECTORS,19/07/12,"1,264.00"
160712C,*SPRUE SAFETY PRODUCTS LTD====,1034315,1,"1,137.60",FIRE DETECTORS,19/07/12,"1,137.60"
160712C,*SPRUE SAFETY PRODUCTS LTD====,1034316,1,"2,528.00",FIRE DETECTORS,19/07/12,"2,528.00"
060712E,A M SLASKI====================,1068,1,"4,110.45",PROFESSIONAL SERVICES,19/07/12,"4,110.45"
060712E,A M SLASKI====================,1069,1,"1,967.00",PROFESSIONAL SERVICES,19/07/12,"1,967.00"
060712E,A M SLASKI====================,1070,1,"4,110.45",PROFESSIONAL SERVICES,19/07/12,"4,110.45"
060712E,A M SLASKI====================,1071,1,"1,412.40",PROFESSIONAL SERVICES,19/07/12,"1,412.40"
120712C,DELOITTE LLP,1110814993,1,"2,119.81",PROFESSIONAL SERVICES,19/07/12,"2,119.81"
120712C,DELOITTE LLP,1110815010,1,591.89,PROFESSIONAL SERVICES,19/07/12,591.89
120712C,DELOITTE LLP,1110815018,1,"1,322.07",PROFESSIONAL SERVICES,19/07/12,"1,322.07"
050712E,VISTA LANDSCAPE MANAGEMENT LTD,116754,1,140.21,GROUNDS MAINTENANCE,19/07/12,"2,930.41"
050712E,VISTA LANDSCAPE MANAGEMENT LTD,116754,2,22.67,GROUNDS MAINTENANCE,19/07/12,
050712E,VISTA LANDSCAPE MANAGEMENT LTD,116754,3,25.19,GROUNDS MAINTENANCE,19/07/12,
050712E,VISTA LANDSCAPE MANAGEMENT LTD,116754,4,28.22,GROUNDS MAINTENANCE,19/07/12,
050712E,VISTA LANDSCAPE MANAGEMENT LTD,116754,5,109.18,GROUNDS MAINTENANCE,19/07/12,
050712E,VISTA LANDSCAPE MANAGEMENT LTD,116754,6,21.38,GROUNDS MAINTENANCE,19/07/12,
050712E,VISTA LANDSCAPE MANAGEMENT LTD,116754,7,29.10,GROUNDS MAINTENANCE,19/07/12,
050712E,VISTA LANDSCAPE MANAGEMENT LTD,116754,8,22.42,GROUNDS MAINTENANCE,19/07/12,
050712E,VISTA LANDSCAPE MANAGEMENT LTD,116754,9,19.01,GROUNDS MAINTENANCE,19/07/12,
050712E,VISTA LANDSCAPE MANAGEMENT LTD,116754,10,19.10,GROUNDS MAINTENANCE,19/07/12,
050712E,VISTA LANDSCAPE MANAGEMENT LTD,116754,11,22.64,GROUNDS MAINTENANCE,19/07/12,
050712E,VISTA LANDSCAPE MANAGEMENT LTD,116754,12,33.19,GROUNDS MAINTENANCE,19/07/12,
050712E,VISTA LANDSCAPE MANAGEMENT LTD,116754,13,120.09,GROUNDS MAINTENANCE,19/07/12,
050712E,VISTA LANDSCAPE MANAGEMENT LTD,116754,14,18.42,GROUNDS MAINTENANCE,19/07/12,
050712E,VISTA LANDSCAPE MANAGEMENT LTD,116754,15,89.96,GROUNDS MAINTENANCE,19/07/12,
050712E,VISTA LANDSCAPE MANAGEMENT LTD,116754,16,25.11,GROUNDS MAINTENANCE,19/07/12,
050712E,VISTA LANDSCAPE MANAGEMENT LTD,116754,17,21.81,GROUNDS MAINTENANCE,19/07/12,
050712E,VISTA LANDSCAPE MANAGEMENT LTD,116754,18,137.70,GROUNDS MAINTENANCE,19/07/12,
050712E,VISTA LANDSCAPE MANAGEMENT LTD,116754,19,20.23,GROUNDS MAINTENANCE,19/07/12,
050712E,VISTA LANDSCAPE MANAGEMENT LTD,116754,20,21.77,GROUNDS MAINTENANCE,19/07/12,
050712E,VISTA LANDSCAPE MANAGEMENT LTD,116754,21,15.43,GROUNDS MAINTENANCE,19/07/12,
050712E,VISTA LANDSCAPE MANAGEMENT LTD,116754,22,20.90,GROUNDS MAINTENANCE,19/07/12,
050712E,VISTA LANDSCAPE MANAGEMENT LTD,116754,23,21.75,GROUNDS MAINTENANCE,19/07/12,
050712E,VISTA LANDSCAPE MANAGEMENT LTD,116754,24,25.45,GROUNDS MAINTENANCE,19/07/12,
050712E,VISTA LANDSCAPE MANAGEMENT LTD,116754,25,23.62,GROUNDS MAINTENANCE,19/07/12,
050712E,VISTA LANDSCAPE MANAGEMENT LTD,116754,26,64.17,GROUNDS MAINTENANCE,19/07/12,
050712E,VISTA LANDSCAPE MANAGEMENT LTD,116754,27,19.31,GROUNDS MAINTENANCE,19/07/12,
050712E,VISTA LANDSCAPE MANAGEMENT LTD,116754,28,19.18,GROUNDS MAINTENANCE,19/07/12,
050712E,VISTA LANDSCAPE MANAGEMENT LTD,116754,29,17.08,GROUNDS MAINTENANCE,19/07/12,
050712E,VISTA LANDSCAPE MANAGEMENT LTD,116754,30,87.10,GROUNDS MAINTENANCE,19/07/12,
050712E,VISTA LANDSCAPE MANAGEMENT LTD,116754,31,92.00,GROUNDS MAINTENANCE,19/07/12,
050712E,VISTA LANDSCAPE MANAGEMENT LTD,116754,32,20.48,GROUNDS MAINTENANCE,19/07/12,
050712E,VISTA LANDSCAPE MANAGEMENT LTD,116754,33,276.21,GROUNDS MAINTENANCE,19/07/12,
050712E,VISTA LANDSCAPE MANAGEMENT LTD,116754,34,19.97,GROUNDS MAINTENANCE,19/07/12,
050712E,VISTA LANDSCAPE MANAGEMENT LTD,116754,35,69.19,GROUNDS MAINTENANCE,19/07/12,
050712E,VISTA LANDSCAPE MANAGEMENT LTD,116754,36,18.49,GROUNDS MAINTENANCE,19/07/12,
050712E,VISTA LANDSCAPE MANAGEMENT LTD,116754,37,19.98,GROUNDS MAINTENANCE,19/07/12,
050712E,VISTA LANDSCAPE MANAGEMENT LTD,116754,38,19.30,GROUNDS MAINTENANCE,19/07/12,
050712E,VISTA LANDSCAPE MANAGEMENT LTD,116754,39,86.80,GROUNDS MAINTENANCE,19/07/12,
050712E,VISTA LANDSCAPE MANAGEMENT LTD,116754,40,128.26,GROUNDS MAINTENANCE,19/07/12,
050712E,VISTA LANDSCAPE MANAGEMENT LTD,116754,41,17.02,GROUNDS MAINTENANCE,19/07/12,
050712E,VISTA LANDSCAPE MANAGEMENT LTD,116754,42,747.72,GROUNDS MAINTENANCE,19/07/12,
050712E,VISTA LANDSCAPE MANAGEMENT LTD,116754,43,68.14,GROUNDS MAINTENANCE,19/07/12,
050712E,VISTA LANDSCAPE MANAGEMENT LTD,116754,44,60.24,GROUNDS MAINTENANCE,19/07/12,
050712E,VISTA LANDSCAPE MANAGEMENT LTD,116754,45,25.22,GROUNDS MAINTENANCE,19/07/12,
040712G,SILVERSANDS LIMITED===========,118365,1,"2,375.00",MAINTENANCE & SUPPORT,19/07/12,"2,375.00"
120712C,RICHARD EDWARD LTD============,124251,1,974.00,PRINTING,19/07/12,974.00
110712E,AIRSERVICES(UK)===============,15604,1,624.00,REPAIR & MAINTENANCE,19/07/12,838.00
110712E,AIRSERVICES(UK)===============,15604,2,13.00,REPAIR & MAINTENANCE,19/07/12,
110712E,AIRSERVICES(UK)===============,15604,3,13.00,REPAIR & MAINTENANCE,19/07/12,
110712E,AIRSERVICES(UK)===============,15604,4,91.00,REPAIR & MAINTENANCE,19/07/12,
110712E,AIRSERVICES(UK)===============,15604,5,91.00,REPAIR & MAINTENANCE,19/07/12,
110712E,AIRSERVICES(UK)===============,15604,6,6.00,REPAIR & MAINTENANCE,19/07/12,
110712E,IRON MOUNTAIN (UK) LTD========,16167285,1,"1,342.46",MAINTENANCE & SUPPORT,19/07/12,"1,342.46"
110712E,IRON MOUNTAIN (UK) LTD========,16167286,1,"2,507.89",MAINTENANCE & SUPPORT,19/07/12,"2,507.89"
060712E,PKF===========================,1694743,1,"2,015.00",PROFESSIONAL SERVICES,19/07/12,"2,015.00"
090712E,STORM TECHNOLOGIES============,188205,1,175.00,ACQUISITIONS,19/07/12,"1,050.00"
090712E,STORM TECHNOLOGIES============,188205,2,175.00,ACQUISITIONS,19/07/12,
090712E,STORM TECHNOLOGIES============,188205,3,700.00,ACQUISITIONS,19/07/12,
090712E,STORM TECHNOLOGIES============,188323,1,"1,800.00",ACQUISITIONS,19/07/12,"1,800.00"
090712E,STORM TECHNOLOGIES============,188324,1,"3,475.23",ACQUISITIONS,19/07/12,"3,475.23"
120712C,AUTOGLASS LIMITED=============,19397076,1,639.39,WINDSCREEN & TYRE CHARGES,19/07/12,639.39
050712E,SAFEGUARD PEST CON. & ENV.LTD,208248,1,"1,920.00",PEST CONTROL,19/07/12,"1,920.00"
090712E,PRECISE MEDIA MONITORING LTD==,209798,1,834.39,PRESS OFFICE,19/07/12,834.39
090712E,VODAFONE LIMITED==============,221072,1,"1,015.00",RADIO,19/07/12,"1,396.47"
090712E,VODAFONE LIMITED==============,221072,2,381.47,RADIO,19/07/12,
160712E,ARKAS LIMITED=================,22146,1,"1,787.00",STRATEGIC (NON CYCLICAL),19/07/12,"1,787.00"
130712C,ARKAS LIMITED=================,22256,1,749.00,TACTICAL DAY TO DAY,19/07/12,749.00
130712C,ARKAS LIMITED=================,22257,1,"1,274.00",TACTICAL DAY TO DAY,19/07/12,"1,274.00"
130712C,ARKAS LIMITED=================,22463,1,190.00,STRATEGIC (CYCLICAL),19/07/12,"1,474.74"
130712C,ARKAS LIMITED=================,22463,2,175.75,STRATEGIC (CYCLICAL),19/07/12,
130712C,ARKAS LIMITED=================,22463,3,374.85,STRATEGIC (CYCLICAL),19/07/12,
130712C,ARKAS LIMITED=================,22463,4,734.14,TACTICAL DAY TO DAY,19/07/12,
130712C,ARKAS LIMITED=================,22464,1,161.50,STRATEGIC (CYCLICAL),19/07/12,788.50
130712C,ARKAS LIMITED=================,22464,2,190.00,STRATEGIC (CYCLICAL),19/07/12,
130712C,ARKAS LIMITED=================,22464,3,161.50,STRATEGIC (CYCLICAL),19/07/12,
130712C,ARKAS LIMITED=================,22464,4,275.50,TACTICAL DAY TO DAY,19/07/12,
130712C,ARKAS LIMITED=================,22465,1,382.89,STRATEGIC (CYCLICAL),19/07/12,"1,132.09"
130712C,ARKAS LIMITED=================,22465,2,204.25,STRATEGIC (CYCLICAL),19/07/12,
130712C,ARKAS LIMITED=================,22465,3,288.53,STRATEGIC (CYCLICAL),19/07/12,
130712C,ARKAS LIMITED=================,22465,4,256.42,STRATEGIC (CYCLICAL),19/07/12,
130712C,ARKAS LIMITED=================,22466,1,161.50,STRATEGIC (CYCLICAL),19/07/12,945.32
130712C,ARKAS LIMITED=================,22466,2,375.32,STRATEGIC (CYCLICAL),19/07/12,
130712C,ARKAS LIMITED=================,22466,3,247.00,STRATEGIC (CYCLICAL),19/07/12,
130712C,ARKAS LIMITED=================,22466,4,161.50,TACTICAL DAY TO DAY,19/07/12,
130712C,ARKAS LIMITED=================,22467,1,190.00,TACTICAL DAY TO DAY,19/07/12,845.50
130712C,ARKAS LIMITED=================,22467,2,161.50,STRATEGIC (CYCLICAL),19/07/12,
130712C,ARKAS LIMITED=================,22467,3,304.00,STRATEGIC (CYCLICAL),19/07/12,
130712C,ARKAS LIMITED=================,22467,4,190.00,TACTICAL DAY TO DAY,19/07/12,
130712C,ARKAS LIMITED=================,22468,1,178.37,STRATEGIC (CYCLICAL),19/07/12,928.11
130712C,ARKAS LIMITED=================,22468,2,163.30,TACTICAL DAY TO DAY,19/07/12,
130712C,ARKAS LIMITED=================,22468,3,296.69,STRATEGIC (CYCLICAL),19/07/12,
130712C,ARKAS LIMITED=================,22468,4,289.75,STRATEGIC (CYCLICAL),19/07/12,
130712C,ARKAS LIMITED=================,22469,1,218.50,STRATEGIC (CYCLICAL),19/07/12,600.78
130712C,ARKAS LIMITED=================,22469,2,220.78,STRATEGIC (CYCLICAL),19/07/12,
130712C,ARKAS LIMITED=================,22469,3,161.50,STRATEGIC (CYCLICAL),19/07/12,
130712C,ARKAS LIMITED=================,22474,1,"1,338.31",STRATEGIC (CYCLICAL),19/07/12,"1,338.31"
160712E,CORDIS BRIGHT LTD,2414,1,"8,214.05",PROFESSIONAL SERVICES,19/07/12,"8,214.05"
120712E,GALLAGHER HEATH,3186,1,"7,280.00",PROFESSIONAL SERVICES,19/07/12,"7,280.00"
050712E,*BURLINGTON UNIFORMS LTD,409850,1,170.00,UNIFORMS - POMS,19/07/12,765.00
050712E,*BURLINGTON UNIFORMS LTD,409850,2,170.00,UNIFORMS - POMS,19/07/12,
050712E,*BURLINGTON UNIFORMS LTD,409850,3,425.00,UNIFORMS - POMS,19/07/12,
130712C,SPORTSAFE UK LTD==============,435096,1,92.01,GYM EQUIPMENT,19/07/12,781.63
130712C,SPORTSAFE UK LTD==============,435096,2,25.90,GYM EQUIPMENT,19/07/12,
130712C,SPORTSAFE UK LTD==============,435096,3,315.72,GYM EQUIPMENT,19/07/12,
130712C,SPORTSAFE UK LTD==============,435096,4,69.00,GYM EQUIPMENT,19/07/12,
130712C,SPORTSAFE UK LTD==============,435096,5,184.00,GYM EQUIPMENT,19/07/12,
130712C,SPORTSAFE UK LTD==============,435096,6,95.00,GYM EQUIPMENT,19/07/12,
130712C,SPORTSAFE UK LTD==============,435122,1,395.00,GYM EQUIPMENT,19/07/12,660.00
130712C,SPORTSAFE UK LTD==============,435122,2,69.00,GYM EQUIPMENT,19/07/12,
130712C,SPORTSAFE UK LTD==============,435122,3,196.00,GYM EQUIPMENT,19/07/12,
120712C,R J HOLLAND LTD===============,4538,1,"1,265.00",DAY TO DAY MINOR IMPS,19/07/12,"1,265.00"
090712E,JAMES FISHER NUCLEAR LIMITED==,5334,1,262.69,REPAIR & MAINTENANCE,19/07/12,515.69
090712E,JAMES FISHER NUCLEAR LIMITED==,5334,2,233.00,REPAIR & MAINTENANCE,19/07/12,
090712E,JAMES FISHER NUCLEAR LIMITED==,5334,3,20.00,REPAIR & MAINTENANCE,19/07/12,
130712G,GARRAN LOCKERS LTD============,54757,1,"1,448.88",PURCHASE - FURNITURE,19/07/12,"1,448.88"
160712E,OPERATIONAL RESEARCH IN HEALTH,56W/LFBD2/1,1,"4,500.00",PROFESSIONAL SERVICES,19/07/12,"4,500.00"
160712C,BYWATERS LTD=========,627737,1,"1,891.55",REFUSE COLLECTION,19/07/12,"1,891.55"
160712C,TWO SERVICES LTD==============,65407,1,673.50,CATERING EQUIPMENT,19/07/12,"1,347.00"
160712C,TWO SERVICES LTD==============,65407,2,673.50,CATERING EQUIPMENT,19/07/12,
050712E,SWEETT  UK LTD,7014400,1,"10,000.00",DEVELOPMENT EX - CONTRACTOR,19/07/12,"10,000.00"
130712G,EJT ASSOCIATES LIMITED========,743LFB,1,"2,500.00",TRAINING & CONFERENCES,19/07/12,"2,500.00"
160712C,NISBETS=======================,7549870,1,529.98,CATERING EQUIPMENT,19/07/12,529.98
160712E,CPL PETROLEUM=================,7966926,1,"1,277.79",FUEL,19/07/12,"1,277.79"
160712E,DRAEGER SAFETY UK LIMITED=====,90381086,1,948.30,PROTECTIVE EQUIPT - PARTS,19/07/12,948.30
160712E,DRAEGER SAFETY UK LIMITED=====,90381102,1,348.00,PROTECTIVE EQUIPT - PARTS,19/07/12,667.08
160712E,DRAEGER SAFETY UK LIMITED=====,90381102,2,319.08,PROTECTIVE EQUIPT - PARTS,19/07/12,
120712C,CARPETS & FLOOR COVERS DIRECT=,996,1,"4,953.33",FIXTURES & FITTINGS,19/07/12,"4,953.33"
120712C,CARPETS & FLOOR COVERS DIRECT=,997,1,"4,953.33",FIXTURES & FITTINGS,19/07/12,"4,953.33"
160712G,PITNEY BOWES PURCHASE POWER,AF281487,1,"9,019.00",POSTAL SERVICES,19/07/12,"9,019.00"
130712C,BROADWAY MALYAN===============,BM00000295,1,"1,510.50",DISPOSAL COSTS - ESTATE AGENTS,19/07/12,"1,510.50"
139771,BT OPENREACH,CNS141973,1,"1,260.00",STRATEGIC (NON CYCLICAL),19/07/12,"1,260.00"
139768,LEXISNEXIS BUTTERWORTHS TOLLEY,DI2M33625,1,"42,895.00",BOOKS & JOURNALS,19/07/12,"42,895.00"
090712E,VODAFONE LIMITED==============,EB88071,1,210.00,CELLULAR TELEPHONES,19/07/12,"1,050.00"
090712E,VODAFONE LIMITED==============,EB88071,2,210.00,CELLULAR TELEPHONES,19/07/12,
090712E,VODAFONE LIMITED==============,EB88071,3,210.00,CELLULAR TELEPHONES,19/07/12,
090712E,VODAFONE LIMITED==============,EB88071,4,210.00,CELLULAR TELEPHONES,19/07/12,
090712E,VODAFONE LIMITED==============,EB88071,5,210.00,CELLULAR TELEPHONES,19/07/12,
160712C,KIER BUILDING SERV ENGINEERS==,F00035056,1,300.00,STRATEGIC (NON CYCLICAL),19/07/12,"1,492.00"
160712C,KIER BUILDING SERV ENGINEERS==,F00035056,2,"1,192.00",STRATEGIC (NON CYCLICAL),19/07/12,
120712E,PURDY CONTRACTS LTD,IN223908,1,"16,099.51",STRATEGIC (NON CYCLICAL),19/07/12,"16,099.51"
130712C,JACKSON LIFT GROUP============,JS290187M,1,16.67,STRATEGIC (CYCLICAL),19/07/12,"3,108.45"
130712C,JACKSON LIFT GROUP============,JS290187M,2,104.17,STRATEGIC (CYCLICAL),19/07/12,
130712C,JACKSON LIFT GROUP============,JS290187M,3,41.67,STRATEGIC (CYCLICAL),19/07/12,
130712C,JACKSON LIFT GROUP============,JS290187M,4,41.67,STRATEGIC (CYCLICAL),19/07/12,
130712C,JACKSON LIFT GROUP============,JS290187M,5,41.67,STRATEGIC (CYCLICAL),19/07/12,
130712C,JACKSON LIFT GROUP============,JS290187M,6,104.17,STRATEGIC (CYCLICAL),19/07/12,
130712C,JACKSON LIFT GROUP============,JS290187M,7,104.17,STRATEGIC (CYCLICAL),19/07/12,
130712C,JACKSON LIFT GROUP============,JS290187M,8,104.17,STRATEGIC (CYCLICAL),19/07/12,
130712C,JACKSON LIFT GROUP============,JS290187M,9,104.17,STRATEGIC (CYCLICAL),19/07/12,
130712C,JACKSON LIFT GROUP============,JS290187M,10,104.17,STRATEGIC (CYCLICAL),19/07/12,
130712C,JACKSON LIFT GROUP============,JS290187M,11,104.17,STRATEGIC (CYCLICAL),19/07/12,
130712C,JACKSON LIFT GROUP============,JS290187M,12,104.17,STRATEGIC (CYCLICAL),19/07/12,
130712C,JACKSON LIFT GROUP============,JS290187M,13,104.17,STRATEGIC (CYCLICAL),19/07/12,
130712C,JACKSON LIFT GROUP============,JS290187M,14,104.17,STRATEGIC (CYCLICAL),19/07/12,
130712C,JACKSON LIFT GROUP============,JS290187M,15,104.17,STRATEGIC (CYCLICAL),19/07/12,
130712C,JACKSON LIFT GROUP============,JS290187M,16,47.92,STRATEGIC (CYCLICAL),19/07/12,
130712C,JACKSON LIFT GROUP============,JS290187M,17,47.92,STRATEGIC (CYCLICAL),19/07/12,
130712C,JACKSON LIFT GROUP============,JS290187M,18,116.67,STRATEGIC (CYCLICAL),19/07/12,
130712C,JACKSON LIFT GROUP============,JS290187M,19,116.67,STRATEGIC (CYCLICAL),19/07/12,
130712C,JACKSON LIFT GROUP============,JS290187M,20,116.67,STRATEGIC (CYCLICAL),19/07/12,
130712C,JACKSON LIFT GROUP============,JS290187M,21,116.67,STRATEGIC (CYCLICAL),19/07/12,
130712C,JACKSON LIFT GROUP============,JS290187M,22,116.67,STRATEGIC (CYCLICAL),19/07/12,
130712C,JACKSON LIFT GROUP============,JS290187M,23,116.67,STRATEGIC (CYCLICAL),19/07/12,
130712C,JACKSON LIFT GROUP============,JS290187M,24,47.92,STRATEGIC (CYCLICAL),19/07/12,
130712C,JACKSON LIFT GROUP============,JS290187M,25,104.17,STRATEGIC (CYCLICAL),19/07/12,
130712C,JACKSON LIFT GROUP============,JS290187M,26,47.92,STRATEGIC (CYCLICAL),19/07/12,
130712C,JACKSON LIFT GROUP============,JS290187M,27,104.17,STRATEGIC (CYCLICAL),19/07/12,
130712C,JACKSON LIFT GROUP============,JS290187M,28,47.92,STRATEGIC (CYCLICAL),19/07/12,
130712C,JACKSON LIFT GROUP============,JS290187M,29,104.17,STRATEGIC (CYCLICAL),19/07/12,
130712C,JACKSON LIFT GROUP============,JS290187M,30,104.17,STRATEGIC (CYCLICAL),19/07/12,
130712C,JACKSON LIFT GROUP============,JS290187M,31,104.17,STRATEGIC (CYCLICAL),19/07/12,
130712C,JACKSON LIFT GROUP============,JS290187M,32,104.17,STRATEGIC (CYCLICAL),19/07/12,
130712C,JACKSON LIFT GROUP============,JS290187M,33,47.92,STRATEGIC (CYCLICAL),19/07/12,
130712C,JACKSON LIFT GROUP============,JS290187M,34,104.17,STRATEGIC (CYCLICAL),19/07/12,
130712C,JACKSON LIFT GROUP============,JS290187M,35,104.17,STRATEGIC (CYCLICAL),19/07/12,
120712E,MANSELL CONST SERVICES LTD====,MC5051,1,"36,526.92",DEVELOPMENT EXP - CONTRACTORS,19/07/12,"39,129.00"
120712E,MANSELL CONST SERVICES LTD====,MC5051,2,"2,167.75",DEVELOPMENT EXP - CONTRACTORS,19/07/12,
120712E,MANSELL CONST SERVICES LTD====,MC5051,3,434.33,STRATEGIC (NON CYCLICAL),19/07/12,
160712C,*ALEXANDRA PLC================,OLSINV/585786,1,"1,492.50",UNIFORMS - POMS,19/07/12,"1,492.50"
160712C,*ALEXANDRA PLC================,OLSINV/585787,1,995.00,UNIFORMS - POMS,19/07/12,995.00
160712C,*ALEXANDRA PLC================,OLSINV/585793,1,995.00,UNIFORMS - POMS,19/07/12,995.00
160712C,*ALEXANDRA PLC================,OLSINV/585794,1,537.30,UNIFORMS - POMS,19/07/12,537.30
160712C,*ALEXANDRA PLC================,OLSINV/585795,1,746.25,UNIFORMS - POMS,19/07/12,746.25
160712C,*ALEXANDRA PLC================,OLSINV/585796,1,995.00,UNIFORMS - POMS,19/07/12,995.00
160712C,*ALEXANDRA PLC================,OLSINV/585798,1,796.00,UNIFORMS - POMS,19/07/12,796.00
160712C,*ALEXANDRA PLC================,OLSINV/585799,1,995.00,UNIFORMS - POMS,19/07/12,995.00
060712G,SPECIALIST COMPUTER CENTRES===,OP/L513963,1,"4,145.00",ACQUISITIONS,19/07/12,"4,145.00"
060712E,PULLMAN MOTORS================,PULL 112,1,"1,500.00",OPERATIONAL EQUIP-PURCHASE,19/07/12,"1,500.00"
160712C,GROUND CONTROL LIMITED,SIN004812,1,12.59,GROUNDS MAINTENANCE,19/07/12,"1,016.86"
160712C,GROUND CONTROL LIMITED,SIN004812,2,12.59,GROUNDS MAINTENANCE,19/07/12,
160712C,GROUND CONTROL LIMITED,SIN004812,3,55.56,GROUNDS MAINTENANCE,19/07/12,
160712C,GROUND CONTROL LIMITED,SIN004812,4,12.59,GROUNDS MAINTENANCE,19/07/12,
160712C,GROUND CONTROL LIMITED,SIN004812,5,40.29,GROUNDS MAINTENANCE,19/07/12,
160712C,GROUND CONTROL LIMITED,SIN004812,6,40.29,GROUNDS MAINTENANCE,19/07/12,
160712C,GROUND CONTROL LIMITED,SIN004812,7,12.59,GROUNDS MAINTENANCE,19/07/12,
160712C,GROUND CONTROL LIMITED,SIN004812,8,12.59,GROUNDS MAINTENANCE,19/07/12,
160712C,GROUND CONTROL LIMITED,SIN004812,9,52.20,GROUNDS MAINTENANCE,19/07/12,
160712C,GROUND CONTROL LIMITED,SIN004812,10,12.59,GROUNDS MAINTENANCE,19/07/12,
160712C,GROUND CONTROL LIMITED,SIN004812,11,12.59,GROUNDS MAINTENANCE,19/07/12,
160712C,GROUND CONTROL LIMITED,SIN004812,12,58.50,GROUNDS MAINTENANCE,19/07/12,
160712C,GROUND CONTROL LIMITED,SIN004812,13,43.81,GROUNDS MAINTENANCE,19/07/12,
160712C,GROUND CONTROL LIMITED,SIN004812,14,47.59,GROUNDS MAINTENANCE,19/07/12,
160712C,GROUND CONTROL LIMITED,SIN004812,15,12.59,GROUNDS MAINTENANCE,19/07/12,
160712C,GROUND CONTROL LIMITED,SIN004812,16,12.59,GROUNDS MAINTENANCE,19/07/12,
160712C,GROUND CONTROL LIMITED,SIN004812,17,12.59,GROUNDS MAINTENANCE,19/07/12,
160712C,GROUND CONTROL LIMITED,SIN004812,18,47.59,GROUNDS MAINTENANCE,19/07/12,
160712C,GROUND CONTROL LIMITED,SIN004812,19,15.00,GROUNDS MAINTENANCE,19/07/12,
160712C,GROUND CONTROL LIMITED,SIN004812,20,12.59,GROUNDS MAINTENANCE,19/07/12,
160712C,GROUND CONTROL LIMITED,SIN004812,21,12.59,GROUNDS MAINTENANCE,19/07/12,
160712C,GROUND CONTROL LIMITED,SIN004812,22,48.84,GROUNDS MAINTENANCE,19/07/12,
160712C,GROUND CONTROL LIMITED,SIN004812,23,12.59,GROUNDS MAINTENANCE,19/07/12,
160712C,GROUND CONTROL LIMITED,SIN004812,24,12.59,GROUNDS MAINTENANCE,19/07/12,
160712C,GROUND CONTROL LIMITED,SIN004812,25,12.59,GROUNDS MAINTENANCE,19/07/12,
160712C,GROUND CONTROL LIMITED,SIN004812,26,47.59,GROUNDS MAINTENANCE,19/07/12,
160712C,GROUND CONTROL LIMITED,SIN004812,27,43.81,GROUNDS MAINTENANCE,19/07/12,
160712C,GROUND CONTROL LIMITED,SIN004812,28,12.59,GROUNDS MAINTENANCE,19/07/12,
160712C,GROUND CONTROL LIMITED,SIN004812,29,43.81,GROUNDS MAINTENANCE,19/07/12,
160712C,GROUND CONTROL LIMITED,SIN004812,30,15.00,GROUNDS MAINTENANCE,19/07/12,
160712C,GROUND CONTROL LIMITED,SIN004812,31,47.59,GROUNDS MAINTENANCE,19/07/12,
160712C,GROUND CONTROL LIMITED,SIN004812,32,47.59,GROUNDS MAINTENANCE,19/07/12,
160712C,GROUND CONTROL LIMITED,SIN004812,33,47.59,GROUNDS MAINTENANCE,19/07/12,
160712C,GROUND CONTROL LIMITED,SIN004812,34,12.59,GROUNDS MAINTENANCE,19/07/12,
160712C,GROUND CONTROL LIMITED,SIN004812,35,47.59,GROUNDS MAINTENANCE,19/07/12,
160712C,GROUND CONTROL LIMITED,SIN004812,36,12.59,GROUNDS MAINTENANCE,19/07/12,
160712C,GROUND CONTROL LIMITED,SIN004986,1,77.37,GROUNDS MAINTENANCE,19/07/12,818.01
160712C,GROUND CONTROL LIMITED,SIN004986,2,12.59,GROUNDS MAINTENANCE,19/07/12,
160712C,GROUND CONTROL LIMITED,SIN004986,3,12.59,GROUNDS MAINTENANCE,19/07/12,
160712C,GROUND CONTROL LIMITED,SIN004986,4,47.92,GROUNDS MAINTENANCE,19/07/12,
160712C,GROUND CONTROL LIMITED,SIN004986,5,9.57,GROUNDS MAINTENANCE,19/07/12,
160712C,GROUND CONTROL LIMITED,SIN004986,6,33.48,GROUNDS MAINTENANCE,19/07/12,
160712C,GROUND CONTROL LIMITED,SIN004986,7,13.85,GROUNDS MAINTENANCE,19/07/12,
160712C,GROUND CONTROL LIMITED,SIN004986,8,13.85,GROUNDS MAINTENANCE,19/07/12,
160712C,GROUND CONTROL LIMITED,SIN004986,9,40.03,GROUNDS MAINTENANCE,19/07/12,
160712C,GROUND CONTROL LIMITED,SIN004986,10,40.03,GROUNDS MAINTENANCE,19/07/12,
160712C,GROUND CONTROL LIMITED,SIN004986,11,12.59,GROUNDS MAINTENANCE,19/07/12,
160712C,GROUND CONTROL LIMITED,SIN004986,12,12.59,GROUNDS MAINTENANCE,19/07/12,
160712C,GROUND CONTROL LIMITED,SIN004986,13,43.81,GROUNDS MAINTENANCE,19/07/12,
160712C,GROUND CONTROL LIMITED,SIN004986,14,40.03,GROUNDS MAINTENANCE,19/07/12,
160712C,GROUND CONTROL LIMITED,SIN004986,15,12.59,GROUNDS MAINTENANCE,19/07/12,
160712C,GROUND CONTROL LIMITED,SIN004986,16,12.59,GROUNDS MAINTENANCE,19/07/12,
160712C,GROUND CONTROL LIMITED,SIN004986,17,12.59,GROUNDS MAINTENANCE,19/07/12,
160712C,GROUND CONTROL LIMITED,SIN004986,18,12.59,GROUNDS MAINTENANCE,19/07/12,
160712C,GROUND CONTROL LIMITED,SIN004986,19,12.59,GROUNDS MAINTENANCE,19/07/12,
160712C,GROUND CONTROL LIMITED,SIN004986,20,12.59,GROUNDS MAINTENANCE,19/07/12,
160712C,GROUND CONTROL LIMITED,SIN004986,21,12.59,GROUNDS MAINTENANCE,19/07/12,
160712C,GROUND CONTROL LIMITED,SIN004986,22,12.59,GROUNDS MAINTENANCE,19/07/12,
160712C,GROUND CONTROL LIMITED,SIN004986,23,62.69,GROUNDS MAINTENANCE,19/07/12,
160712C,GROUND CONTROL LIMITED,SIN004986,24,12.59,GROUNDS MAINTENANCE,19/07/12,
160712C,GROUND CONTROL LIMITED,SIN004986,25,12.59,GROUNDS MAINTENANCE,19/07/12,
160712C,GROUND CONTROL LIMITED,SIN004986,26,12.59,GROUNDS MAINTENANCE,19/07/12,
160712C,GROUND CONTROL LIMITED,SIN004986,27,33.48,GROUNDS MAINTENANCE,19/07/12,
160712C,GROUND CONTROL LIMITED,SIN004986,28,12.59,GROUNDS MAINTENANCE,19/07/12,
160712C,GROUND CONTROL LIMITED,SIN004986,29,33.48,GROUNDS MAINTENANCE,19/07/12,
160712C,GROUND CONTROL LIMITED,SIN004986,30,37.26,GROUNDS MAINTENANCE,19/07/12,
160712C,GROUND CONTROL LIMITED,SIN004986,31,37.26,GROUNDS MAINTENANCE,19/07/12,
160712C,GROUND CONTROL LIMITED,SIN004986,32,12.59,GROUNDS MAINTENANCE,19/07/12,
160712C,GROUND CONTROL LIMITED,SIN004986,33,12.59,GROUNDS MAINTENANCE,19/07/12,
160712C,GROUND CONTROL LIMITED,SIN004986,34,12.59,GROUNDS MAINTENANCE,19/07/12,
160712C,GROUND CONTROL LIMITED,SIN004986,35,6.30,GROUNDS MAINTENANCE,19/07/12,
160712C,GROUND CONTROL LIMITED,SIN004986,36,8.39,GROUNDS MAINTENANCE,19/07/12,
130712C,MARINA ROPES LTD==============,SIN016091,1,470.05,OPERATIONAL EQUIP-PURCHASE,19/07/12,"1,982.00"
130712C,MARINA ROPES LTD==============,SIN016091,2,651.75,OPERATIONAL EQUIP-PURCHASE,19/07/12,
130712C,MARINA ROPES LTD==============,SIN016091,3,860.20,OPERATIONAL EQUIP-PURCHASE,19/07/12,
130712G,FIRE SERVICE COLLEGE==========,SIN050340,1,"1,927.20",TRAINING & CONFERENCES,19/07/12,"1,927.20"
130712G,FIRE SERVICE COLLEGE==========,SIN50340,1,"1,108.80",TRAINING & CONFERENCES,19/07/12,"1,108.80"
110712E,VODAFONE PAGING LTD===========,VR1326581,1,"4,615.41",MAINTENANCE & SUPPORT,19/07/12,"4,615.41"
090712E,VODAFONE PAGING LTD===========,VR1326582,1,"1,801.32",MAINTENANCE & SUPPORT,19/07/12,"1,801.32"
139774,CORONA ENERGY RETAIL 4 LTD,07175555,1,"14,601.48",GAS,23/07/12,"14,601.48"
139775,CORONA ENERGY RETAIL 4 LTD,072235555,1,"6,690.41",GAS,23/07/12,"6,690.41"
139773,CORONA ENERGY RETAIL 4 LTD,07225553,1,"7,487.08",GAS,23/07/12,"7,487.08"
139774,CORONA ENERGY RETAIL 4 LTD,07225554,1,"10,731.43",GAS,23/07/12,"10,731.43"
139774,CORONA ENERGY RETAIL 4 LTD,07225556,1,"12,842.56",GAS,23/07/12,"12,842.56"
139775,CORONA ENERGY RETAIL 4 LTD,072315551,1,"6,805.16",GAS,23/07/12,"6,805.16"
139775,CORONA ENERGY RETAIL 4 LTD,072315552,1,631.74,GAS,23/07/12,631.74
139775,CORONA ENERGY RETAIL 4 LTD,072315553,1,"1,801.40",GAS,23/07/12,"1,801.40"
139775,CORONA ENERGY RETAIL 4 LTD,072315554,1,"8,713.11",GAS,23/07/12,"8,713.11"
139773,CORONA ENERGY RETAIL 4 LTD,07235552,1,"11,586.23",GAS,23/07/12,"11,586.23"
160712E,SWIFTSTORM LIMITED============,09/07/12,1,544.38,REFRESHMENTS,23/07/12,544.38
190712E,ALLSTAR BUSINESS SOLUTIONS LTD,1018768061,1,143.31,FUEL,23/07/12,"21,056.66"
190712E,ALLSTAR BUSINESS SOLUTIONS LTD,1018768061,2,73.89,FUEL,23/07/12,
190712E,ALLSTAR BUSINESS SOLUTIONS LTD,1018768061,3,136.09,FUEL,23/07/12,
190712E,ALLSTAR BUSINESS SOLUTIONS LTD,1018768061,4,145.19,FUEL,23/07/12,
190712E,ALLSTAR BUSINESS SOLUTIONS LTD,1018768061,5,173.38,FUEL,23/07/12,
190712E,ALLSTAR BUSINESS SOLUTIONS LTD,1018768061,6,69.89,FUEL,23/07/12,
190712E,ALLSTAR BUSINESS SOLUTIONS LTD,1018768061,7,75.78,FUEL,23/07/12,
190712E,ALLSTAR BUSINESS SOLUTIONS LTD,1018768061,8,175.11,FUEL,23/07/12,
190712E,ALLSTAR BUSINESS SOLUTIONS LTD,1018768061,9,106.51,FUEL,23/07/12,
190712E,ALLSTAR BUSINESS SOLUTIONS LTD,1018768061,10,249.88,FUEL,23/07/12,
190712E,ALLSTAR BUSINESS SOLUTIONS LTD,1018768061,11,275.36,FUEL,23/07/12,
190712E,ALLSTAR BUSINESS SOLUTIONS LTD,1018768061,12,241.13,FUEL,23/07/12,
190712E,ALLSTAR BUSINESS SOLUTIONS LTD,1018768061,13,211.27,FUEL,23/07/12,
190712E,ALLSTAR BUSINESS SOLUTIONS LTD,1018768061,14,220.37,FUEL,23/07/12,
190712E,ALLSTAR BUSINESS SOLUTIONS LTD,1018768061,15,145.96,FUEL,23/07/12,
190712E,ALLSTAR BUSINESS SOLUTIONS LTD,1018768061,16,372.97,FUEL,23/07/12,
190712E,ALLSTAR BUSINESS SOLUTIONS LTD,1018768061,17,77.54,FUEL,23/07/12,
190712E,ALLSTAR BUSINESS SOLUTIONS LTD,1018768061,18,31.19,FUEL,23/07/12,
190712E,ALLSTAR BUSINESS SOLUTIONS LTD,1018768061,19,87.09,FUEL,23/07/12,
190712E,ALLSTAR BUSINESS SOLUTIONS LTD,1018768061,20,148.75,FUEL,23/07/12,
190712E,ALLSTAR BUSINESS SOLUTIONS LTD,1018768061,21,146.80,FUEL,23/07/12,
190712E,ALLSTAR BUSINESS SOLUTIONS LTD,1018768061,22,214.12,FUEL,23/07/12,
190712E,ALLSTAR BUSINESS SOLUTIONS LTD,1018768061,23,234.99,FUEL,23/07/12,
190712E,ALLSTAR BUSINESS SOLUTIONS LTD,1018768061,24,153.77,FUEL,23/07/12,
190712E,ALLSTAR BUSINESS SOLUTIONS LTD,1018768061,25,295.35,FUEL,23/07/12,
190712E,ALLSTAR BUSINESS SOLUTIONS LTD,1018768061,26,138.05,FUEL,23/07/12,
190712E,ALLSTAR BUSINESS SOLUTIONS LTD,1018768061,27,235.14,FUEL,23/07/12,
190712E,ALLSTAR BUSINESS SOLUTIONS LTD,1018768061,28,334.51,FUEL,23/07/12,
190712E,ALLSTAR BUSINESS SOLUTIONS LTD,1018768061,29,205.39,FUEL,23/07/12,
190712E,ALLSTAR BUSINESS SOLUTIONS LTD,1018768061,30,174.49,FUEL,23/07/12,
190712E,ALLSTAR BUSINESS SOLUTIONS LTD,1018768061,31,278.82,FUEL,23/07/12,
190712E,ALLSTAR BUSINESS SOLUTIONS LTD,1018768061,32,386.65,FUEL,23/07/12,
190712E,ALLSTAR BUSINESS SOLUTIONS LTD,1018768061,33,292.86,FUEL,23/07/12,
190712E,ALLSTAR BUSINESS SOLUTIONS LTD,1018768061,34,294.90,FUEL,23/07/12,
190712E,ALLSTAR BUSINESS SOLUTIONS LTD,1018768061,35,435.53,FUEL,23/07/12,
190712E,ALLSTAR BUSINESS SOLUTIONS LTD,1018768061,36,105.09,FUEL,23/07/12,
190712E,ALLSTAR BUSINESS SOLUTIONS LTD,1018768061,37,342.66,FUEL,23/07/12,
190712E,ALLSTAR BUSINESS SOLUTIONS LTD,1018768061,38,158.30,FUEL,23/07/12,
190712E,ALLSTAR BUSINESS SOLUTIONS LTD,1018768061,39,122.44,FUEL,23/07/12,
190712E,ALLSTAR BUSINESS SOLUTIONS LTD,1018768061,40,678.15,FUEL,23/07/12,
190712E,ALLSTAR BUSINESS SOLUTIONS LTD,1018768061,41,174.41,FUEL,23/07/12,
190712E,ALLSTAR BUSINESS SOLUTIONS LTD,1018768061,42,180.69,FUEL,23/07/12,
190712E,ALLSTAR BUSINESS SOLUTIONS LTD,1018768061,43,151.28,FUEL,23/07/12,
190712E,ALLSTAR BUSINESS SOLUTIONS LTD,1018768061,44,324.90,FUEL,23/07/12,
190712E,ALLSTAR BUSINESS SOLUTIONS LTD,1018768061,45,110.10,FUEL,23/07/12,
190712E,ALLSTAR BUSINESS SOLUTIONS LTD,1018768061,46,281.27,FUEL,23/07/12,
190712E,ALLSTAR BUSINESS SOLUTIONS LTD,1018768061,47,192.05,FUEL,23/07/12,
190712E,ALLSTAR BUSINESS SOLUTIONS LTD,1018768061,48,238.89,FUEL,23/07/12,
190712E,ALLSTAR BUSINESS SOLUTIONS LTD,1018768061,49,160.17,FUEL,23/07/12,
190712E,ALLSTAR BUSINESS SOLUTIONS LTD,1018768061,50,245.99,FUEL,23/07/12,
190712E,ALLSTAR BUSINESS SOLUTIONS LTD,1018768061,51,44.64,FUEL,23/07/12,
190712E,ALLSTAR BUSINESS SOLUTIONS LTD,1018768061,52,43.93,FUEL,23/07/12,
190712E,ALLSTAR BUSINESS SOLUTIONS LTD,1018768061,53,191.98,FUEL,23/07/12,
190712E,ALLSTAR BUSINESS SOLUTIONS LTD,1018768061,54,791.60,FUEL,23/07/12,
190712E,ALLSTAR BUSINESS SOLUTIONS LTD,1018768061,55,623.80,FUEL,23/07/12,
190712E,ALLSTAR BUSINESS SOLUTIONS LTD,1018768061,56,188.68,FUEL,23/07/12,
190712E,ALLSTAR BUSINESS SOLUTIONS LTD,1018768061,57,150.90,FUEL,23/07/12,
190712E,ALLSTAR BUSINESS SOLUTIONS LTD,1018768061,58,198.97,FUEL,23/07/12,
190712E,ALLSTAR BUSINESS SOLUTIONS LTD,1018768061,59,629.21,FUEL,23/07/12,
190712E,ALLSTAR BUSINESS SOLUTIONS LTD,1018768061,60,115.97,FUEL,23/07/12,
190712E,ALLSTAR BUSINESS SOLUTIONS LTD,1018768061,61,149.98,FUEL,23/07/12,
190712E,ALLSTAR BUSINESS SOLUTIONS LTD,1018768061,62,104.30,FUEL,23/07/12,
190712E,ALLSTAR BUSINESS SOLUTIONS LTD,1018768061,63,133.93,FUEL,23/07/12,
190712E,ALLSTAR BUSINESS SOLUTIONS LTD,1018768061,64,340.87,FUEL,23/07/12,
190712E,ALLSTAR BUSINESS SOLUTIONS LTD,1018768061,65,74.74,FUEL,23/07/12,
190712E,ALLSTAR BUSINESS SOLUTIONS LTD,1018768061,66,87.63,FUEL,23/07/12,
190712E,ALLSTAR BUSINESS SOLUTIONS LTD,1018768061,67,109.45,FUEL,23/07/12,
190712E,ALLSTAR BUSINESS SOLUTIONS LTD,1018768061,68,67.29,FUEL,23/07/12,
190712E,ALLSTAR BUSINESS SOLUTIONS LTD,1018768061,69,184.26,FUEL,23/07/12,
190712E,ALLSTAR BUSINESS SOLUTIONS LTD,1018768061,70,89.63,FUEL,23/07/12,
190712E,ALLSTAR BUSINESS SOLUTIONS LTD,1018768061,71,225.36,FUEL,23/07/12,
190712E,ALLSTAR BUSINESS SOLUTIONS LTD,1018768061,72,137.92,FUEL,23/07/12,
190712E,ALLSTAR BUSINESS SOLUTIONS LTD,1018768061,73,103.18,FUEL,23/07/12,
190712E,ALLSTAR BUSINESS SOLUTIONS LTD,1018768061,74,216.69,FUEL,23/07/12,
190712E,ALLSTAR BUSINESS SOLUTIONS LTD,1018768061,75,592.19,FUEL,23/07/12,
190712E,ALLSTAR BUSINESS SOLUTIONS LTD,1018768061,76,77.68,FUEL,23/07/12,
190712E,ALLSTAR BUSINESS SOLUTIONS LTD,1018768061,77,99.47,FUEL,23/07/12,
190712E,ALLSTAR BUSINESS SOLUTIONS LTD,1018768061,78,134.51,FUEL,23/07/12,
190712E,ALLSTAR BUSINESS SOLUTIONS LTD,1018768061,79,95.29,FUEL,23/07/12,
190712E,ALLSTAR BUSINESS SOLUTIONS LTD,1018768061,80,40.22,FUEL,23/07/12,
190712E,ALLSTAR BUSINESS SOLUTIONS LTD,1018768061,81,44.80,FUEL,23/07/12,
190712E,ALLSTAR BUSINESS SOLUTIONS LTD,1018768061,82,52.23,FUEL,23/07/12,
190712E,ALLSTAR BUSINESS SOLUTIONS LTD,1018768061,83,75.22,FUEL,23/07/12,
190712E,ALLSTAR BUSINESS SOLUTIONS LTD,1018768061,84,201.08,FUEL,23/07/12,
190712E,ALLSTAR BUSINESS SOLUTIONS LTD,1018768061,85,359.06,FUEL,23/07/12,
190712E,ALLSTAR BUSINESS SOLUTIONS LTD,1018768061,86,64.36,FUEL,23/07/12,
190712E,ALLSTAR BUSINESS SOLUTIONS LTD,1018768061,87,212.75,FUEL,23/07/12,
190712E,ALLSTAR BUSINESS SOLUTIONS LTD,1018768061,88,184.57,FUEL,23/07/12,
190712E,ALLSTAR BUSINESS SOLUTIONS LTD,1018768061,89,71.59,FUEL,23/07/12,
190712E,ALLSTAR BUSINESS SOLUTIONS LTD,1018768061,90,170.96,FUEL,23/07/12,
190712E,ALLSTAR BUSINESS SOLUTIONS LTD,1018768061,91,66.03,FUEL,23/07/12,
190712E,ALLSTAR BUSINESS SOLUTIONS LTD,1018768061,92,98.69,FUEL,23/07/12,
190712E,ALLSTAR BUSINESS SOLUTIONS LTD,1018768061,93,43.06,FUEL,23/07/12,
190712E,ALLSTAR BUSINESS SOLUTIONS LTD,1018768061,94,132.40,FUEL,23/07/12,
190712E,ALLSTAR BUSINESS SOLUTIONS LTD,1018768061,95,31.67,FUEL,23/07/12,
190712E,ALLSTAR BUSINESS SOLUTIONS LTD,1018768061,96,118.00,FUEL,23/07/12,
190712E,ALLSTAR BUSINESS SOLUTIONS LTD,1018768061,97,175.36,FUEL,23/07/12,
190712E,ALLSTAR BUSINESS SOLUTIONS LTD,1018768061,98,223.34,FUEL,23/07/12,
190712E,ALLSTAR BUSINESS SOLUTIONS LTD,1018768061,99,128.89,FUEL,23/07/12,
190712E,ALLSTAR BUSINESS SOLUTIONS LTD,1018768061,100,56.02,FUEL,23/07/12,
190712E,ALLSTAR BUSINESS SOLUTIONS LTD,1018768061,101,56.30,FUEL,23/07/12,
190712E,ALLSTAR BUSINESS SOLUTIONS LTD,1018768061,102,64.12,FUEL,23/07/12,
190712E,ALLSTAR BUSINESS SOLUTIONS LTD,1018768061,103,39.97,FUEL,23/07/12,
190712E,ALLSTAR BUSINESS SOLUTIONS LTD,1018768061,104,28.07,FUEL,23/07/12,
190712E,ALLSTAR BUSINESS SOLUTIONS LTD,1018768061,105,83.23,FUEL,23/07/12,
190712E,ALLSTAR BUSINESS SOLUTIONS LTD,1018768061,106,29.16,FUEL,23/07/12,
190712E,ALLSTAR BUSINESS SOLUTIONS LTD,1018768061,107,171.51,FUEL,23/07/12,
190712E,ALLSTAR BUSINESS SOLUTIONS LTD,1018768061,108,522.57,FUEL,23/07/12,
190712E,ALLSTAR BUSINESS SOLUTIONS LTD,1018768061,109,49.67,FUEL,23/07/12,
190712E,ALLSTAR BUSINESS SOLUTIONS LTD,1018768061,110,35.44,FUEL,23/07/12,
190712E,ALLSTAR BUSINESS SOLUTIONS LTD,1018768061,111,106.13,FUEL,23/07/12,
190712E,ALLSTAR BUSINESS SOLUTIONS LTD,1018768061,112,335.00,FUEL,23/07/12,
190712E,ALLSTAR BUSINESS SOLUTIONS LTD,1018768061,113,532.72,FUEL,23/07/12,
180712C,*SPRUE SAFETY PRODUCTS LTD====,1033961,1,"1,011.20",FIRE DETECTORS,23/07/12,"1,011.20"
180712C,*SPRUE SAFETY PRODUCTS LTD====,1034199,1,"1,516.80",FIRE DETECTORS,23/07/12,"1,516.80"
